{"text_format":"1","workbook":"xlsx","n_sheets":15,"sheets":["Summary Sheet","Ministry of Env. and Agricultur","Economic Recovery","Ministry of Education","Human Rights","Ministry of Health","Humanitarian Aid","Ministry of Defence","MRDI","MOESD","Ministry of Internal Affairs","State Minister's Office","Ministry of Justice","Large-scale Committments ","LISTS"],"not_rendered":{"charts":0,"images":0,"macros":1,"external_links":0,"defined_names":3,"comments":3,"pivot_tables":0},"unopened":[],"bounds":{"document_bytes":16777216,"sheet_cells":100000,"rows_first":2000,"rows_last":500,"rows_between":2000,"halvings":0,"cell_chars":16384,"cell_head_chars":4096},"cells_cut":0,"cells_raw":0,"read":"whole","date_system":"1900"}

{"sheet":"Summary Sheet","index":0,"n_rows":20,"n_cols":16,"rows_kept":20,"cut":false,"hidden":false,"merged":[[1,1,2,9],[1,11,2,15],[3,1,5,1],[3,2,4,5],[3,6,4,9],[3,11,3,15],[10,11,10,15],[19,5,20,5],[19,6,20,6],[19,7,20,7],[19,8,20,8],[12,11,12,15],[14,11,14,15],[16,11,16,15],[19,1,20,1],[19,2,20,2],[19,3,20,3],[19,4,20,4],[19,9,20,9]]}
[]
[null,"Summary of COVID-19 Financial Commitments",null,null,null,null,null,null,null,null,null,"Assistance Type"]
[]
[null,"Priorities","Total",null,null,null,"Donor Commitments",null,null,null,null,"Financial Assistance"]
[null,null,null,null,null,null,null,null,null,null,null,"Euro","USD","GEL","Sum in Gel"]
[null,null,"Euro","USD","GEL","Sum in GEL","Euro","USD","GEL","Sum in GEL",null,{"$f":"SUMIFS('Economic Recovery'!I6:I300,'Economic Recovery'!J6:J300,\"EUR\",'Economic Recovery'!K6:K300,\"Financial Assistance - Grant\")+SUMIFS('Ministry of Env. and Agricultur'!J6:J305,'Ministry of Env. and Agricultur'!K6:K305,\"EUR\",'Ministry of Env. and Agricultur'!L6:L305,\"Financial Assistance - Grant\")+SUMIFS('Ministry of Education'!J6:J300,'Ministry of Education'!K6:K300,\"EUR\",'Ministry of Education'!L6:L300,\"Financial Assistance - Grant\")+SUMIFS('Human Rights'!J5:J300,'Human Rights'!K5:K300,\"EUR\",'Human Rights'!L5:L300,\"Financial Assistance - Grant\")+SUMIFS('Ministry of Health'!I6:I300,'Ministry of Health'!J6:J300,\"EUR\",'Ministry of Health'!K6:K300,\"Financial Assistance - Grant\")+SUMIFS('Humanitarian Aid'!K6:K300,'Humanitarian Aid'!L6:L300,\"EUR\",'Humanitarian Aid'!N6:N300,\"Financial Assistance - Grant\")+SUMIFS('Ministry of Defence'!L6:L300,'Ministry of Defence'!M6:M300,\"EUR\",'Ministry of Defence'!N6:N300,\"Financial Assistance - Grant\")+SUMIFS(MRDI!K6:K300,MRDI!L6:L300,\"EUR\",MRDI!M6:M300,\"Financial Assistance - Grant\")+SUMIFS('Ministry of Internal Affairs'!K6:K300,'Ministry of Internal Affairs'!L6:L300,\"EUR\",'Ministry of Internal Affairs'!M6:M300,\"Financial Assistance - Grant\")+SUMIFS('Ministry of Justice'!K6:K300,'Ministry of Justice'!L6:L300,\"EUR\",'Ministry of Justice'!M6:M300,\"Financial Assistance - Grant\")+SUMIFS('State Minister''s Office'!I6:I300,'State Minister''s Office'!J6:J300,\"EUR\",'State Minister''s Office'!K6:K300,\"Financial Assistance - Grant\")+SUMIFS('Large-scale Committments '!J6:J303,'Large-scale Committments '!K6:K303,\"EUR\",'Large-scale Committments '!L6:L303,\"Financial Assistance - Grant\")+SUMIFS(MOESD!K6:K300,MOESD!L6:L300,\"EUR\",MOESD!M6:M300,\"Financial Assistance - Grant\")","v":69300000},{"$f":"SUMIFS('Economic Recovery'!I6:I300,'Economic Recovery'!J6:J300,\"USD\",'Economic Recovery'!K6:K300,\"Financial Assistance - Grant\")+SUMIFS('Ministry of Env. and Agricultur'!J6:J305,'Ministry of Env. and Agricultur'!K6:K305,\"USD\",'Ministry of Env. and Agricultur'!L6:L305,\"Financial Assistance - Grant\")+SUMIFS('Ministry of Education'!J6:J300,'Ministry of Education'!K6:K300,\"USD\",'Ministry of Education'!L6:L300,\"Financial Assistance - Grant\")+SUMIFS('Human Rights'!J5:J300,'Human Rights'!K5:K300,\"USD\",'Human Rights'!L5:L300,\"Financial Assistance - Grant\")+SUMIFS('Ministry of Health'!I6:I300,'Ministry of Health'!J6:J300,\"USD\",'Ministry of Health'!K6:K300,\"Financial Assistance - Grant\")+SUMIFS('Humanitarian Aid'!K6:K300,'Humanitarian Aid'!L6:L300,\"USD\",'Humanitarian Aid'!N6:N300,\"Financial Assistance - Grant\")+SUMIFS('Ministry of Defence'!L6:L300,'Ministry of Defence'!M6:M300,\"USD\",'Ministry of Defence'!N6:N300,\"Financial Assistance - Grant\")+SUMIFS(MRDI!K6:K300,MRDI!L6:L300,\"USD\",MRDI!M6:M300,\"Financial Assistance - Grant\")+SUMIFS('Ministry of Internal Affairs'!K6:K300,'Ministry of Internal Affairs'!L6:L300,\"USD\",'Ministry of Internal Affairs'!M6:M300,\"Financial Assistance - Grant\")+SUMIFS('Ministry of Justice'!K6:K300,'Ministry of Justice'!L6:L300,\"USD\",'Ministry of Justice'!M6:M300,\"Financial Assistance - Grant\")+SUMIFS('State Minister''s Office'!I6:I300,'State Minister''s Office'!J6:J300,\"USD\",'State Minister''s Office'!K6:K300,\"Financial Assistance - Grant\")+SUMIFS('Large-scale Committments '!J6:J303,'Large-scale Committments '!K6:K303,\"USD\",'Large-scale Committments '!L6:L303,\"Financial Assistance - Grant\")+SUMIFS(MOESD!K6:K300,MOESD!L6:L300,\"USD\",MOESD!M6:M300,\"Financial Assistance - Grant\")","v":1155000},{"$f":"SUMIFS('Economic Recovery'!I6:I300,'Economic Recovery'!J6:J300,\"GEL\",'Economic Recovery'!K6:K300,\"Financial Assistance - Grant\")+SUMIFS('Ministry of Env. and Agricultur'!J6:J305,'Ministry of Env. and Agricultur'!K6:K305,\"GEL\",'Ministry of Env. and Agricultur'!L6:L305,\"Financial Assistance - Grant\")+SUMIFS('Ministry of Education'!J6:J300,'Ministry of Education'!K6:K300,\"GEL\",'Ministry of Education'!L6:L300,\"Financial Assistance - Grant\")+SUMIFS('Human Rights'!J5:J300,'Human Rights'!K5:K300,\"GEL\",'Human Rights'!L5:L300,\"Financial Assistance - Grant\")+SUMIFS('Ministry of Health'!I6:I300,'Ministry of Health'!J6:J300,\"GEL\",'Ministry of Health'!K6:K300,\"Financial Assistance - Grant\")+SUMIFS('Humanitarian Aid'!K6:K300,'Humanitarian Aid'!L6:L300,\"GEL\",'Humanitarian Aid'!N6:N300,\"Financial Assistance - Grant\")+SUMIFS('Ministry of Defence'!L6:L300,'Ministry of Defence'!M6:M300,\"GEL\",'Ministry of Defence'!N6:N300,\"Financial Assistance - Grant\")+SUMIFS(MRDI!K6:K300,MRDI!L6:L300,\"GEL\",MRDI!M6:M300,\"Financial Assistance - Grant\")+SUMIFS('Ministry of Internal Affairs'!K6:K300,'Ministry of Internal Affairs'!L6:L300,\"GEL\",'Ministry of Internal Affairs'!M6:M300,\"Financial Assistance - Grant\")+SUMIFS('Ministry of Justice'!K6:K300,'Ministry of Justice'!L6:L300,\"GEL\",'Ministry of Justice'!M6:M300,\"Financial Assistance - Grant\")+SUMIFS('State Minister''s Office'!I6:I300,'State Minister''s Office'!J6:J300,\"GEL\",'State Minister''s Office'!K6:K300,\"Financial Assistance - Grant\")+SUMIFS('Large-scale Committments '!J6:J303,'Large-scale Committments '!K6:K303,\"GEL\",'Large-scale Committments '!L6:L303,\"Financial Assistance - Grant\")+SUMIFS(MOESD!K6:K300,MOESD!L6:L300,\"GEL\",MOESD!M6:M300,\"Financial Assistance - Grant\")","v":0},{"$f":"IFERROR(__xludf.DUMMYFUNCTION(\"(L6*GOOGLEFINANCE(\"\"Currency:EURGEL\"\")+(M6*GOOGLEFINANCE(\"\"Currency:USDGEL\"\")+N6))\"),2.4266979660000002E8)","v":242669796.6},"Grant"]
[null,"Economic Recovery",{"$f":"SUMIF('Economic Recovery'!J6:J300,\"EUR\",'Economic Recovery'!I6:I300)","v":0},{"$f":"SUMIF('Economic Recovery'!J6:J300,\"USD\",'Economic Recovery'!I6:I300)","v":0},{"$f":"SUMIF('Economic Recovery'!J6:J300,\"GEL\",'Economic Recovery'!I6:I300)","v":0},{"$f":"IFERROR(__xludf.DUMMYFUNCTION(\"(C7*GOOGLEFINANCE(\"\"currency:eurgel\"\"))+(D7*GOOGLEFINANCE(\"\"currency:usdgel\"\"))+E7\"),0.0)","v":0},{"$f":"SUMIF('Economic Recovery'!J6:J300,\"EUR\",'Economic Recovery'!I6:I300)","v":0},{"$f":"SUMIF('Economic Recovery'!J6:J300,\"USD\",'Economic Recovery'!I6:I300)","v":0},{"$f":"SUMIF('Economic Recovery'!J6:J300,\"GEL\",'Economic Recovery'!I6:I300)","v":0},{"$f":"IFERROR(__xludf.DUMMYFUNCTION(\"(G7*GOOGLEFINANCE(\"\"currency:eurgel\"\"))+(H7*GOOGLEFINANCE(\"\"currency:usdgel\"\"))+I7\"),0.0)","v":0},null,{"$f":"SUMIFS('Economic Recovery'!I6:I300,'Economic Recovery'!J6:J300,\"EUR\",'Economic Recovery'!K6:K300,\"Financial Assistance - Loan\")+SUMIFS('Ministry of Env. and Agricultur'!J6:J305,'Ministry of Env. and Agricultur'!K6:K305,\"EUR\",'Ministry of Env. and Agricultur'!L6:L305,\"Financial Assistance - Loan\")+SUMIFS('Ministry of Education'!J6:J300,'Ministry of Education'!K6:K300,\"EUR\",'Ministry of Education'!L6:L300,\"Financial Assistance - Loan\")+SUMIFS('Human Rights'!J5:J300,'Human Rights'!K5:K300,\"EUR\",'Human Rights'!L5:L300,\"Financial Assistance - Loan\")+SUMIFS('Ministry of Health'!I6:I300,'Ministry of Health'!J6:J300,\"EUR\",'Ministry of Health'!K6:K300,\"Financial Assistance - Loan\")+SUMIFS('Humanitarian Aid'!K6:K300,'Humanitarian Aid'!L6:L300,\"EUR\",'Humanitarian Aid'!N6:N300,\"Financial Assistance - Loan\")+SUMIFS('Ministry of Defence'!L6:L300,'Ministry of Defence'!M6:M300,\"EUR\",'Ministry of Defence'!N6:N300,\"Financial Assistance - Loan\")+SUMIFS(MRDI!K6:K300,MRDI!L6:L300,\"EUR\",MRDI!M6:M300,\"Financial Assistance - Loan\")+SUMIFS('Ministry of Internal Affairs'!K6:K300,'Ministry of Internal Affairs'!L6:L300,\"EUR\",'Ministry of Internal Affairs'!M6:M300,\"Financial Assistance - Loan\")+SUMIFS('Ministry of Justice'!K6:K300,'Ministry of Justice'!L6:L300,\"EUR\",'Ministry of Justice'!M6:M300,\"Financial Assistance - Loan\")+SUMIFS('State Minister''s Office'!I6:I300,'State Minister''s Office'!J6:J300,\"EUR\",'State Minister''s Office'!K6:K300,\"Financial Assistance - Loan\")+SUMIFS('Large-scale Committments '!J6:J303,'Large-scale Committments '!K6:K303,\"EUR\",'Large-scale Committments '!L6:L303,\"Financial Assistance - Loan\")+SUMIFS(MOESD!K6:K300,MOESD!L6:L300,\"EUR\",MOESD!M6:M300,\"Financial Assistance - Loan\")","v":70000000},{"$f":"SUMIFS('Economic Recovery'!I6:I300,'Economic Recovery'!J6:J300,\"USD\",'Economic Recovery'!K6:K300,\"Financial Assistance - Loan\")+SUMIFS('Ministry of Env. and Agricultur'!J6:J305,'Ministry of Env. and Agricultur'!K6:K305,\"USD\",'Ministry of Env. and Agricultur'!L6:L305,\"Financial Assistance - Loan\")+SUMIFS('Ministry of Education'!J6:J300,'Ministry of Education'!K6:K300,\"USD\",'Ministry of Education'!L6:L300,\"Financial Assistance - Loan\")+SUMIFS('Human Rights'!J5:J300,'Human Rights'!K5:K300,\"USD\",'Human Rights'!L5:L300,\"Financial Assistance - Loan\")+SUMIFS('Ministry of Health'!I6:I300,'Ministry of Health'!J6:J300,\"USD\",'Ministry of Health'!K6:K300,\"Financial Assistance - Loan\")+SUMIFS('Humanitarian Aid'!K6:K300,'Humanitarian Aid'!L6:L300,\"USD\",'Humanitarian Aid'!N6:N300,\"Financial Assistance - Loan\")+SUMIFS('Ministry of Defence'!L6:L300,'Ministry of Defence'!M6:M300,\"USD\",'Ministry of Defence'!N6:N300,\"Financial Assistance - Loan\")+SUMIFS(MRDI!K6:K300,MRDI!L6:L300,\"USD\",MRDI!M6:M300,\"Financial Assistance - Loan\")+SUMIFS('Ministry of Internal Affairs'!K6:K300,'Ministry of Internal Affairs'!L6:L300,\"USD\",'Ministry of Internal Affairs'!M6:M300,\"Financial Assistance - Loan\")+SUMIFS('Ministry of Justice'!K6:K300,'Ministry of Justice'!L6:L300,\"USD\",'Ministry of Justice'!M6:M300,\"Financial Assistance - Loan\")+SUMIFS('State Minister''s Office'!I6:I300,'State Minister''s Office'!J6:J300,\"USD\",'State Minister''s Office'!K6:K300,\"Financial Assistance - Loan\")+SUMIFS('Large-scale Committments '!J6:J303,'Large-scale Committments '!K6:K303,\"USD\",'Large-scale Committments '!L6:L303,\"Financial Assistance - Loan\")+SUMIFS(MOESD!K6:K300,MOESD!L6:L300,\"USD\",MOESD!M6:M300,\"Financial Assistance - Loan\")","v":0},{"$f":"SUMIFS('Economic Recovery'!I6:I300,'Economic Recovery'!J6:J300,\"GEL\",'Economic Recovery'!K6:K300,\"Financial Assistance - Loan\")+SUMIFS('Ministry of Env. and Agricultur'!J6:J305,'Ministry of Env. and Agricultur'!K6:K305,\"GEL\",'Ministry of Env. and Agricultur'!L6:L305,\"Financial Assistance - Loan\")+SUMIFS('Ministry of Education'!J6:J300,'Ministry of Education'!K6:K300,\"GEL\",'Ministry of Education'!L6:L300,\"Financial Assistance - Loan\")+SUMIFS('Human Rights'!J5:J300,'Human Rights'!K5:K300,\"GEL\",'Human Rights'!L5:L300,\"Financial Assistance - Loan\")+SUMIFS('Ministry of Health'!I6:I300,'Ministry of Health'!J6:J300,\"GEL\",'Ministry of Health'!K6:K300,\"Financial Assistance - Loan\")+SUMIFS('Humanitarian Aid'!K6:K300,'Humanitarian Aid'!L6:L300,\"GEL\",'Humanitarian Aid'!N6:N300,\"Financial Assistance - Loan\")+SUMIFS('Ministry of Defence'!L6:L300,'Ministry of Defence'!M6:M300,\"GEL\",'Ministry of Defence'!N6:N300,\"Financial Assistance - Loan\")+SUMIFS(MRDI!K6:K300,MRDI!L6:L300,\"GEL\",MRDI!M6:M300,\"Financial Assistance - Loan\")+SUMIFS('Ministry of Internal Affairs'!K6:K300,'Ministry of Internal Affairs'!L6:L300,\"GEL\",'Ministry of Internal Affairs'!M6:M300,\"Financial Assistance - Loan\")+SUMIFS('Ministry of Justice'!K6:K300,'Ministry of Justice'!L6:L300,\"GEL\",'Ministry of Justice'!M6:M300,\"Financial Assistance - Loan\")+SUMIFS('State Minister''s Office'!I6:I300,'State Minister''s Office'!J6:J300,\"GEL\",'State Minister''s Office'!K6:K300,\"Financial Assistance - Loan\")+SUMIFS('Large-scale Committments '!J6:J303,'Large-scale Committments '!K6:K303,\"GEL\",'Large-scale Committments '!L6:L303,\"Financial Assistance - Loan\")+SUMIFS(MOESD!K6:K300,MOESD!L6:L300,\"GEL\",MOESD!M6:M300,\"Financial Assistance - Loan\")","v":0},{"$f":"IFERROR(__xludf.DUMMYFUNCTION(\"(L7*GOOGLEFINANCE(\"\"Currency:EURGEL\"\")+(M7*GOOGLEFINANCE(\"\"Currency:USDGEL\"\")+N7))\"),2.4141684E8)","v":241416840},"Loan"]
[null,"Ministry of Env and Agricultrure",{"$f":"SUMIF('Ministry of Env. and Agricultur'!H6:H305,\"EUR\",'Ministry of Env. and Agricultur'!G6:G305)","v":0},{"$f":"SUMIF('Ministry of Env. and Agricultur'!H6:H305,\"USD\",'Ministry of Env. and Agricultur'!G6:G305)","v":0},{"$f":"SUMIF('Ministry of Env. and Agricultur'!H6:H305,\"GEL\",'Ministry of Env. and Agricultur'!G6:G305)","v":1021200000},{"$f":"IFERROR(__xludf.DUMMYFUNCTION(\"(C8*GOOGLEFINANCE(\"\"currency:eurgel\"\"))+(D8*GOOGLEFINANCE(\"\"currency:usdgel\"\"))+E8\"),1.0212E9)","v":1021200000},{"$f":"SUMIF('Ministry of Env. and Agricultur'!K6:K305,\"EUR\",'Ministry of Env. and Agricultur'!J6:J305)","v":0},{"$f":"SUMIF('Ministry of Env. and Agricultur'!K6:K305,\"USD\",'Ministry of Env. and Agricultur'!J6:J305)","v":0},{"$f":"SUMIF('Ministry of Env. and Agricultur'!K6:K305,\"GEL\",'Ministry of Env. and Agricultur'!J6:J305)","v":0},{"$f":"IFERROR(__xludf.DUMMYFUNCTION(\"(G8*GOOGLEFINANCE(\"\"currency:eurgel\"\"))+(H8*GOOGLEFINANCE(\"\"currency:usdgel\"\"))+I8\"),0.0)","v":0},null,{"$f":"SUMIFS('Economic Recovery'!I6:I300,'Economic Recovery'!J6:J300,\"EUR\",'Economic Recovery'!K6:K300,\"Financial Assistance - Equity\")+SUMIFS('Ministry of Env. and Agricultur'!J6:J305,'Ministry of Env. and Agricultur'!K6:K305,\"EUR\",'Ministry of Env. and Agricultur'!L6:L305,\"Financial Assistance - Equity\")+SUMIFS('Ministry of Education'!J6:J300,'Ministry of Education'!K6:K300,\"EUR\",'Ministry of Education'!L6:L300,\"Financial Assistance - Equity\")+SUMIFS('Human Rights'!J5:J300,'Human Rights'!K5:K300,\"EUR\",'Human Rights'!L5:L300,\"Financial Assistance - Equity\")+SUMIFS('Ministry of Health'!I6:I300,'Ministry of Health'!J6:J300,\"EUR\",'Ministry of Health'!K6:K300,\"Financial Assistance - Equity\")+SUMIFS('Humanitarian Aid'!K6:K300,'Humanitarian Aid'!L6:L300,\"EUR\",'Humanitarian Aid'!N6:N300,\"Financial Assistance - Equity\")+SUMIFS('Ministry of Defence'!L6:L300,'Ministry of Defence'!M6:M300,\"EUR\",'Ministry of Defence'!N6:N300,\"Financial Assistance - Equity\")+SUMIFS(MRDI!K6:K300,MRDI!L6:L300,\"EUR\",MRDI!M6:M300,\"Financial Assistance - Equity\")+SUMIFS('Ministry of Internal Affairs'!K6:K300,'Ministry of Internal Affairs'!L6:L300,\"EUR\",'Ministry of Internal Affairs'!M6:M300,\"Financial Assistance - Equity\")+SUMIFS('Ministry of Justice'!K6:K300,'Ministry of Justice'!L6:L300,\"EUR\",'Ministry of Justice'!M6:M300,\"Financial Assistance - Equity\")+SUMIFS('State Minister''s Office'!I6:I300,'State Minister''s Office'!J6:J300,\"EUR\",'State Minister''s Office'!K6:K300,\"Financial Assistance - Equity\")+SUMIFS('Large-scale Committments '!J6:J303,'Large-scale Committments '!K6:K303,\"EUR\",'Large-scale Committments '!L6:L303,\"Financial Assistance - Equity\")+SUMIFS(MOESD!K6:K300,MOESD!L6:L300,\"EUR\",MOESD!M6:M300,\"Financial Assistance - Equity\")","v":0},{"$f":"SUMIFS('Economic Recovery'!I6:I300,'Economic Recovery'!J6:J300,\"USD\",'Economic Recovery'!K6:K300,\"Financial Assistance - Equity\")+SUMIFS('Ministry of Env. and Agricultur'!J6:J305,'Ministry of Env. and Agricultur'!K6:K305,\"USD\",'Ministry of Env. and Agricultur'!L6:L305,\"Financial Assistance - Equity\")+SUMIFS('Ministry of Education'!J6:J300,'Ministry of Education'!K6:K300,\"USD\",'Ministry of Education'!L6:L300,\"Financial Assistance - Equity\")+SUMIFS('Human Rights'!J5:J300,'Human Rights'!K5:K300,\"USD\",'Human Rights'!L5:L300,\"Financial Assistance - Equity\")+SUMIFS('Ministry of Health'!I6:I300,'Ministry of Health'!J6:J300,\"USD\",'Ministry of Health'!K6:K300,\"Financial Assistance - Equity\")+SUMIFS('Humanitarian Aid'!K6:K300,'Humanitarian Aid'!L6:L300,\"USD\",'Humanitarian Aid'!N6:N300,\"Financial Assistance - Equity\")+SUMIFS('Ministry of Defence'!L6:L300,'Ministry of Defence'!M6:M300,\"USD\",'Ministry of Defence'!N6:N300,\"Financial Assistance - Equity\")+SUMIFS(MRDI!K6:K300,MRDI!L6:L300,\"USD\",MRDI!M6:M300,\"Financial Assistance - Equity\")+SUMIFS('Ministry of Internal Affairs'!K6:K300,'Ministry of Internal Affairs'!L6:L300,\"USD\",'Ministry of Internal Affairs'!M6:M300,\"Financial Assistance - Equity\")+SUMIFS('Ministry of Justice'!K6:K300,'Ministry of Justice'!L6:L300,\"USD\",'Ministry of Justice'!M6:M300,\"Financial Assistance - Equity\")+SUMIFS('State Minister''s Office'!I6:I300,'State Minister''s Office'!J6:J300,\"USD\",'State Minister''s Office'!K6:K300,\"Financial Assistance - Equity\")+SUMIFS('Large-scale Committments '!J6:J303,'Large-scale Committments '!K6:K303,\"USD\",'Large-scale Committments '!L6:L303,\"Financial Assistance - Equity\")+SUMIFS(MOESD!K6:K300,MOESD!L6:L300,\"USD\",MOESD!M6:M300,\"Financial Assistance - Equity\")","v":0},{"$f":"SUMIFS('Economic Recovery'!I6:I300,'Economic Recovery'!J6:J300,\"GEL\",'Economic Recovery'!K6:K300,\"Financial Assistance - Equity\")+SUMIFS('Ministry of Env. and Agricultur'!J6:J305,'Ministry of Env. and Agricultur'!K6:K305,\"GEL\",'Ministry of Env. and Agricultur'!L6:L305,\"Financial Assistance - Equity\")+SUMIFS('Ministry of Education'!J6:J300,'Ministry of Education'!K6:K300,\"GEL\",'Ministry of Education'!L6:L300,\"Financial Assistance - Equity\")+SUMIFS('Human Rights'!J5:J300,'Human Rights'!K5:K300,\"GEL\",'Human Rights'!L5:L300,\"Financial Assistance - Equity\")+SUMIFS('Ministry of Health'!I6:I300,'Ministry of Health'!J6:J300,\"GEL\",'Ministry of Health'!K6:K300,\"Financial Assistance - Equity\")+SUMIFS('Humanitarian Aid'!K6:K300,'Humanitarian Aid'!L6:L300,\"GEL\",'Humanitarian Aid'!N6:N300,\"Financial Assistance - Equity\")+SUMIFS('Ministry of Defence'!L6:L300,'Ministry of Defence'!M6:M300,\"GEL\",'Ministry of Defence'!N6:N300,\"Financial Assistance - Equity\")+SUMIFS(MRDI!K6:K300,MRDI!L6:L300,\"GEL\",MRDI!M6:M300,\"Financial Assistance - Equity\")+SUMIFS('Ministry of Internal Affairs'!K6:K300,'Ministry of Internal Affairs'!L6:L300,\"GEL\",'Ministry of Internal Affairs'!M6:M300,\"Financial Assistance - Equity\")+SUMIFS('Ministry of Justice'!K6:K300,'Ministry of Justice'!L6:L300,\"GEL\",'Ministry of Justice'!M6:M300,\"Financial Assistance - Equity\")+SUMIFS('State Minister''s Office'!I6:I300,'State Minister''s Office'!J6:J300,\"GEL\",'State Minister''s Office'!K6:K300,\"Financial Assistance - Equity\")+SUMIFS('Large-scale Committments '!J6:J303,'Large-scale Committments '!K6:K303,\"GEL\",'Large-scale Committments '!L6:L303,\"Financial Assistance - Equity\")+SUMIFS(MOESD!K6:K300,MOESD!L6:L300,\"GEL\",MOESD!M6:M300,\"Financial Assistance - Equity\")","v":0},{"$f":"IFERROR(__xludf.DUMMYFUNCTION(\"(L8*GOOGLEFINANCE(\"\"Currency:EURGEL\"\")+(M8*GOOGLEFINANCE(\"\"Currency:USDGEL\"\")+N8))\"),0.0)","v":0},"Equity"]
[null,"Ministry of Education",{"$f":"SUMIF('Ministry of Education'!H6:H300,\"EUR\",'Ministry of Education'!G6:G300)","v":150000},{"$f":"SUMIF('Ministry of Education'!H6:H300,\"USD\",'Ministry of Education'!G6:G300)","v":0},{"$f":"SUMIF('Ministry of Education'!H6:H300,\"GEL\",'Ministry of Education'!G6:G300)","v":0},{"$f":"IFERROR(__xludf.DUMMYFUNCTION(\"(C9*GOOGLEFINANCE(\"\"currency:eurgel\"\"))+(D9*GOOGLEFINANCE(\"\"currency:usdgel\"\"))+E9\"),517321.80000000005)","v":517321.8},{"$f":"SUMIF('Ministry of Education'!K6:K300,\"EUR\",'Ministry of Education'!J6:J300)","v":150000},{"$f":"SUMIF('Ministry of Education'!K6:K300,\"USD\",'Ministry of Education'!J6:J300)","v":0},{"$f":"SUMIF('Ministry of Education'!K6:K300,\"GEL\",'Ministry of Education'!J6:J300)","v":0},{"$f":"IFERROR(__xludf.DUMMYFUNCTION(\"(G9*GOOGLEFINANCE(\"\"currency:eurgel\"\"))+(H9*GOOGLEFINANCE(\"\"currency:usdgel\"\"))+I9\"),517321.80000000005)","v":517321.8},null,{"$f":"SUMIFS('Economic Recovery'!I6:I300,'Economic Recovery'!J6:J300,\"EUR\",'Economic Recovery'!K6:K300,\"Financial Assistance - Guarantee\")+SUMIFS('Ministry of Env. and Agricultur'!J6:J305,'Ministry of Env. and Agricultur'!K6:K305,\"EUR\",'Ministry of Env. and Agricultur'!L6:L305,\"Financial Assistance - Guarantee\")+SUMIFS('Ministry of Education'!J6:J300,'Ministry of Education'!K6:K300,\"EUR\",'Ministry of Education'!L6:L300,\"Financial Assistance - Guarantee\")+SUMIFS('Human Rights'!J5:J300,'Human Rights'!K5:K300,\"EUR\",'Human Rights'!L5:L300,\"Financial Assistance - Guarantee\")+SUMIFS('Ministry of Health'!I6:I300,'Ministry of Health'!J6:J300,\"EUR\",'Ministry of Health'!K6:K300,\"Financial Assistance - Guarantee\")+SUMIFS('Humanitarian Aid'!K6:K300,'Humanitarian Aid'!L6:L300,\"EUR\",'Humanitarian Aid'!N6:N300,\"Financial Assistance - Guarantee\")+SUMIFS('Ministry of Defence'!L6:L300,'Ministry of Defence'!M6:M300,\"EUR\",'Ministry of Defence'!N6:N300,\"Financial Assistance - Guarantee\")+SUMIFS(MRDI!K6:K300,MRDI!L6:L300,\"EUR\",MRDI!M6:M300,\"Financial Assistance - Guarantee\")+SUMIFS('Ministry of Internal Affairs'!K6:K300,'Ministry of Internal Affairs'!L6:L300,\"EUR\",'Ministry of Internal Affairs'!M6:M300,\"Financial Assistance - Guarantee\")+SUMIFS('Ministry of Justice'!K6:K300,'Ministry of Justice'!L6:L300,\"EUR\",'Ministry of Justice'!M6:M300,\"Financial Assistance - Guarantee\")+SUMIFS('State Minister''s Office'!I6:I300,'State Minister''s Office'!J6:J300,\"EUR\",'State Minister''s Office'!K6:K300,\"Financial Assistance - Guarantee\")+SUMIFS('Large-scale Committments '!J6:J303,'Large-scale Committments '!K6:K303,\"EUR\",'Large-scale Committments '!L6:L303,\"Financial Assistance - Guarantee\")+SUMIFS(MOESD!K6:K300,MOESD!L6:L300,\"EUR\",MOESD!M6:M300,\"Financial Assistance - Guarantee\")","v":20000000},{"$f":"SUMIFS('Economic Recovery'!I6:I300,'Economic Recovery'!J6:J300,\"USD\",'Economic Recovery'!K6:K300,\"Financial Assistance - Guarantee\")+SUMIFS('Ministry of Env. and Agricultur'!J6:J305,'Ministry of Env. and Agricultur'!K6:K305,\"USD\",'Ministry of Env. and Agricultur'!L6:L305,\"Financial Assistance - Guarantee\")+SUMIFS('Ministry of Education'!J6:J300,'Ministry of Education'!K6:K300,\"USD\",'Ministry of Education'!L6:L300,\"Financial Assistance - Guarantee\")+SUMIFS('Human Rights'!J5:J300,'Human Rights'!K5:K300,\"USD\",'Human Rights'!L5:L300,\"Financial Assistance - Guarantee\")+SUMIFS('Ministry of Health'!I6:I300,'Ministry of Health'!J6:J300,\"USD\",'Ministry of Health'!K6:K300,\"Financial Assistance - Guarantee\")+SUMIFS('Humanitarian Aid'!K6:K300,'Humanitarian Aid'!L6:L300,\"USD\",'Humanitarian Aid'!N6:N300,\"Financial Assistance - Guarantee\")+SUMIFS('Ministry of Defence'!L6:L300,'Ministry of Defence'!M6:M300,\"USD\",'Ministry of Defence'!N6:N300,\"Financial Assistance - Guarantee\")+SUMIFS(MRDI!K6:K300,MRDI!L6:L300,\"USD\",MRDI!M6:M300,\"Financial Assistance - Guarantee\")+SUMIFS('Ministry of Internal Affairs'!K6:K300,'Ministry of Internal Affairs'!L6:L300,\"USD\",'Ministry of Internal Affairs'!M6:M300,\"Financial Assistance - Guarantee\")+SUMIFS('Ministry of Justice'!K6:K300,'Ministry of Justice'!L6:L300,\"USD\",'Ministry of Justice'!M6:M300,\"Financial Assistance - Guarantee\")+SUMIFS('State Minister''s Office'!I6:I300,'State Minister''s Office'!J6:J300,\"USD\",'State Minister''s Office'!K6:K300,\"Financial Assistance - Guarantee\")+SUMIFS('Large-scale Committments '!J6:J303,'Large-scale Committments '!K6:K303,\"USD\",'Large-scale Committments '!L6:L303,\"Financial Assistance - Guarantee\")+SUMIFS(MOESD!K6:K300,MOESD!L6:L300,\"USD\",MOESD!M6:M300,\"Financial Assistance - Guarantee\")","v":0},{"$f":"SUMIFS('Economic Recovery'!I6:I300,'Economic Recovery'!J6:J300,\"GEL\",'Economic Recovery'!K6:K300,\"Financial Assistance - Guarantee\")+SUMIFS('Ministry of Env. and Agricultur'!J6:J305,'Ministry of Env. and Agricultur'!K6:K305,\"GEL\",'Ministry of Env. and Agricultur'!L6:L305,\"Financial Assistance - Guarantee\")+SUMIFS('Ministry of Education'!J6:J300,'Ministry of Education'!K6:K300,\"GEL\",'Ministry of Education'!L6:L300,\"Financial Assistance - Guarantee\")+SUMIFS('Human Rights'!J5:J300,'Human Rights'!K5:K300,\"GEL\",'Human Rights'!L5:L300,\"Financial Assistance - Guarantee\")+SUMIFS('Ministry of Health'!I6:I300,'Ministry of Health'!J6:J300,\"GEL\",'Ministry of Health'!K6:K300,\"Financial Assistance - Guarantee\")+SUMIFS('Humanitarian Aid'!K6:K300,'Humanitarian Aid'!L6:L300,\"GEL\",'Humanitarian Aid'!N6:N300,\"Financial Assistance - Guarantee\")+SUMIFS('Ministry of Defence'!L6:L300,'Ministry of Defence'!M6:M300,\"GEL\",'Ministry of Defence'!N6:N300,\"Financial Assistance - Guarantee\")+SUMIFS(MRDI!K6:K300,MRDI!L6:L300,\"GEL\",MRDI!M6:M300,\"Financial Assistance - Guarantee\")+SUMIFS('Ministry of Internal Affairs'!K6:K300,'Ministry of Internal Affairs'!L6:L300,\"GEL\",'Ministry of Internal Affairs'!M6:M300,\"Financial Assistance - Guarantee\")+SUMIFS('Ministry of Justice'!K6:K300,'Ministry of Justice'!L6:L300,\"GEL\",'Ministry of Justice'!M6:M300,\"Financial Assistance - Guarantee\")+SUMIFS('State Minister''s Office'!I6:I300,'State Minister''s Office'!J6:J300,\"GEL\",'State Minister''s Office'!K6:K300,\"Financial Assistance - Guarantee\")+SUMIFS('Large-scale Committments '!J6:J303,'Large-scale Committments '!K6:K303,\"GEL\",'Large-scale Committments '!L6:L303,\"Financial Assistance - Guarantee\")+SUMIFS(MOESD!K6:K300,MOESD!L6:L300,\"GEL\",MOESD!M6:M300,\"Financial Assistance - Guarantee\")","v":0},{"$f":"IFERROR(__xludf.DUMMYFUNCTION(\"(L9*GOOGLEFINANCE(\"\"Currency:EURGEL\"\")+(M9*GOOGLEFINANCE(\"\"Currency:USDGEL\"\")+N9))\"),6.897624E7)","v":68976240},"Guarantee"]
[null,"Human Rights ",{"$f":"SUMIF('Human Rights'!H5:H300,\"EUR\",'Human Rights'!G5:G300)","v":417},{"$f":"SUMIF('Human Rights'!H5:H300,\"USD\",'Human Rights'!G5:G300)","v":189100},{"$f":"SUMIF('Human Rights'!H5:H300,\"GEL\",'Human Rights'!G5:G300)","v":0},{"$f":"IFERROR(__xludf.DUMMYFUNCTION(\"(C10*GOOGLEFINANCE(\"\"currency:eurgel\"\"))+(D10*GOOGLEFINANCE(\"\"currency:usdgel\"\"))+E10\"),601830.654604)","v":601830.6546},{"$f":"SUMIF('Human Rights'!K5:K300,\"EUR\",'Human Rights'!J5:J300)","v":417},{"$f":"SUMIF('Human Rights'!K5:K300,\"USD\",'Human Rights'!J5:J300)","v":183400},{"$f":"SUMIF('Human Rights'!K5:K300,\"GEL\",'Human Rights'!J5:J300)","v":0},{"$f":"IFERROR(__xludf.DUMMYFUNCTION(\"(G10*GOOGLEFINANCE(\"\"currency:eurgel\"\"))+(H10*GOOGLEFINANCE(\"\"currency:usdgel\"\"))+I10\"),583733.154604)","v":583733.1546},null,{"$f":"SUMIFS('Economic Recovery'!I6:I300,'Economic Recovery'!J6:J300,\"EUR\",'Economic Recovery'!K6:K300,\"Financial Assistance - not specified\")+SUMIFS('Ministry of Env. and Agricultur'!J6:J305,'Ministry of Env. and Agricultur'!K6:K305,\"EUR\",'Ministry of Env. and Agricultur'!L6:L305,\"Financial Assistance - not specified\")+SUMIFS('Ministry of Education'!J6:J300,'Ministry of Education'!K6:K300,\"EUR\",'Ministry of Education'!L6:L300,\"Financial Assistance - not specified\")+SUMIFS('Human Rights'!J5:J300,'Human Rights'!K5:K300,\"EUR\",'Human Rights'!L5:L300,\"Financial Assistance - not specified\")+SUMIFS('Ministry of Health'!I6:I300,'Ministry of Health'!J6:J300,\"EUR\",'Ministry of Health'!K6:K300,\"Financial Assistance - not specified\")+SUMIFS('Humanitarian Aid'!K6:K300,'Humanitarian Aid'!L6:L300,\"EUR\",'Humanitarian Aid'!N6:N300,\"Financial Assistance - not specified\")+SUMIFS('Ministry of Defence'!L6:L300,'Ministry of Defence'!M6:M300,\"EUR\",'Ministry of Defence'!N6:N300,\"Financial Assistance - not specified\")+SUMIFS(MRDI!K6:K300,MRDI!L6:L300,\"EUR\",MRDI!M6:M300,\"Financial Assistance - not specified\")+SUMIFS('Ministry of Internal Affairs'!K6:K300,'Ministry of Internal Affairs'!L6:L300,\"EUR\",'Ministry of Internal Affairs'!M6:M300,\"Financial Assistance - not specified\")+SUMIFS('Ministry of Justice'!K6:K300,'Ministry of Justice'!L6:L300,\"EUR\",'Ministry of Justice'!M6:M300,\"Financial Assistance - not specified\")+SUMIFS('State Minister''s Office'!I6:I300,'State Minister''s Office'!J6:J300,\"EUR\",'State Minister''s Office'!K6:K300,\"Financial Assistance - not specified\")+SUMIFS('Large-scale Committments '!J6:J303,'Large-scale Committments '!K6:K303,\"EUR\",'Large-scale Committments '!L6:L303,\"Financial Assistance - not specified\")+SUMIFS(MOESD!K6:K300,MOESD!L6:L300,\"EUR\",MOESD!M6:M300,\"Financial Assistance - not specified\")","v":0},{"$f":"SUMIFS('Economic Recovery'!I6:I300,'Economic Recovery'!J6:J300,\"USD\",'Economic Recovery'!K6:K300,\"Financial Assistance - not specified\")+SUMIFS('Ministry of Env. and Agricultur'!J6:J305,'Ministry of Env. and Agricultur'!K6:K305,\"USD\",'Ministry of Env. and Agricultur'!L6:L305,\"Financial Assistance - not specified\")+SUMIFS('Ministry of Education'!J6:J300,'Ministry of Education'!K6:K300,\"USD\",'Ministry of Education'!L6:L300,\"Financial Assistance - not specified\")+SUMIFS('Human Rights'!J5:J300,'Human Rights'!K5:K300,\"USD\",'Human Rights'!L5:L300,\"Financial Assistance - not specified\")+SUMIFS('Ministry of Health'!I6:I300,'Ministry of Health'!J6:J300,\"USD\",'Ministry of Health'!K6:K300,\"Financial Assistance - not specified\")+SUMIFS('Humanitarian Aid'!K6:K300,'Humanitarian Aid'!L6:L300,\"USD\",'Humanitarian Aid'!N6:N300,\"Financial Assistance - not specified\")+SUMIFS('Ministry of Defence'!L6:L300,'Ministry of Defence'!M6:M300,\"USD\",'Ministry of Defence'!N6:N300,\"Financial Assistance - not specified\")+SUMIFS(MRDI!K6:K300,MRDI!L6:L300,\"USD\",MRDI!M6:M300,\"Financial Assistance - not specified\")+SUMIFS('Ministry of Internal Affairs'!K6:K300,'Ministry of Internal Affairs'!L6:L300,\"USD\",'Ministry of Internal Affairs'!M6:M300,\"Financial Assistance - not specified\")+SUMIFS('Ministry of Justice'!K6:K300,'Ministry of Justice'!L6:L300,\"USD\",'Ministry of Justice'!M6:M300,\"Financial Assistance - not specified\")+SUMIFS('State Minister''s Office'!I6:I300,'State Minister''s Office'!J6:J300,\"USD\",'State Minister''s Office'!K6:K300,\"Financial Assistance - not specified\")+SUMIFS('Large-scale Committments '!J6:J303,'Large-scale Committments '!K6:K303,\"USD\",'Large-scale Committments '!L6:L303,\"Financial Assistance - not specified\")+SUMIFS(MOESD!K6:K300,MOESD!L6:L300,\"USD\",MOESD!M6:M300,\"Financial Assistance - not specified\")","v":0},{"$f":"SUMIFS('Economic Recovery'!I6:I300,'Economic Recovery'!J6:J300,\"GEL\",'Economic Recovery'!K6:K300,\"Financial Assistance - not specified\")+SUMIFS('Ministry of Env. and Agricultur'!J6:J305,'Ministry of Env. and Agricultur'!K6:K305,\"GEL\",'Ministry of Env. and Agricultur'!L6:L305,\"Financial Assistance - not specified\")+SUMIFS('Ministry of Education'!J6:J300,'Ministry of Education'!K6:K300,\"GEL\",'Ministry of Education'!L6:L300,\"Financial Assistance - not specified\")+SUMIFS('Human Rights'!J5:J300,'Human Rights'!K5:K300,\"GEL\",'Human Rights'!L5:L300,\"Financial Assistance - not specified\")+SUMIFS('Ministry of Health'!I6:I300,'Ministry of Health'!J6:J300,\"GEL\",'Ministry of Health'!K6:K300,\"Financial Assistance - not specified\")+SUMIFS('Humanitarian Aid'!K6:K300,'Humanitarian Aid'!L6:L300,\"GEL\",'Humanitarian Aid'!N6:N300,\"Financial Assistance - not specified\")+SUMIFS('Ministry of Defence'!L6:L300,'Ministry of Defence'!M6:M300,\"GEL\",'Ministry of Defence'!N6:N300,\"Financial Assistance - not specified\")+SUMIFS(MRDI!K6:K300,MRDI!L6:L300,\"GEL\",MRDI!M6:M300,\"Financial Assistance - not specified\")+SUMIFS('Ministry of Internal Affairs'!K6:K300,'Ministry of Internal Affairs'!L6:L300,\"GEL\",'Ministry of Internal Affairs'!M6:M300,\"Financial Assistance - not specified\")+SUMIFS('Ministry of Justice'!K6:K300,'Ministry of Justice'!L6:L300,\"GEL\",'Ministry of Justice'!M6:M300,\"Financial Assistance - not specified\")+SUMIFS('State Minister''s Office'!I6:I300,'State Minister''s Office'!J6:J300,\"GEL\",'State Minister''s Office'!K6:K300,\"Financial Assistance - not specified\")+SUMIFS('Large-scale Committments '!J6:J303,'Large-scale Committments '!K6:K303,\"GEL\",'Large-scale Committments '!L6:L303,\"Financial Assistance - not specified\")+SUMIFS(MOESD!K6:K300,MOESD!L6:L300,\"GEL\",MOESD!M6:M300,\"Financial Assistance - not specified\")","v":0},{"$f":"IFERROR(__xludf.DUMMYFUNCTION(\"(L10*GOOGLEFINANCE(\"\"Currency:EURGEL\"\")+(M10*GOOGLEFINANCE(\"\"Currency:USDGEL\"\")+N10))\"),0.0)","v":0},"Not Specified"]
[null,"Ministry of Health",{"$f":"SUMIF('Ministry of Health'!G6:G303,\"EUR\",'Ministry of Health'!F6:F303)","v":0},{"$f":"SUMIF('Ministry of Health'!G6:G303,\"USD\",'Ministry of Health'!F6:F303)","v":0},{"$f":"SUMIF('Ministry of Health'!G6:G303,\"GEL\",'Ministry of Health'!F6:F303)","v":10000500},{"$f":"IFERROR(__xludf.DUMMYFUNCTION(\"(C11*GOOGLEFINANCE(\"\"currency:eurgel\"\"))+(D11*GOOGLEFINANCE(\"\"currency:usdgel\"\"))+E11\"),1.00005E7)","v":10000500},{"$f":"SUMIF('Ministry of Health'!J6:J300,\"EUR\",'Ministry of Health'!I6:I300)","v":55000},{"$f":"SUMIF('Ministry of Health'!J6:J300,\"USD\",'Ministry of Health'!I6:I300)","v":14348},{"$f":"SUMIF('Ministry of Health'!J6:J300,\"GEL\",'Ministry of Health'!I6:I300)","v":0},{"$f":"IFERROR(__xludf.DUMMYFUNCTION(\"(G11*GOOGLEFINANCE(\"\"currency:eurgel\"\"))+(H11*GOOGLEFINANCE(\"\"currency:usdgel\"\"))+I11\"),235239.56)","v":235239.56},null,"TA/Expert Consultancy"]
[null,"Humanitarian Aid",{"$f":"SUMIF('Humanitarian Aid'!H6:H300,\"EUR\",'Humanitarian Aid'!G6:G300)","v":0},{"$f":"SUMIF('Humanitarian Aid'!H6:H300,\"USD\",'Humanitarian Aid'!G6:G300)","v":8160},{"$f":"SUMIF('Humanitarian Aid'!H6:H300,\"GEL\",'Humanitarian Aid'!G6:G300)","v":0},{"$f":"IFERROR(__xludf.DUMMYFUNCTION(\"(C12*GOOGLEFINANCE(\"\"currency:eurgel\"\"))+(D12*GOOGLEFINANCE(\"\"currency:usdgel\"\"))+E12\"),25908.0)","v":25908},{"$f":"SUMIF('Humanitarian Aid'!L6:L300,\"EUR\",'Humanitarian Aid'!K6:K300)","v":0},{"$f":"SUMIF('Humanitarian Aid'!L6:L300,\"USD\",'Humanitarian Aid'!K6:K300)","v":0},{"$f":"SUMIF('Humanitarian Aid'!L6:L300,\"GEL\",'Humanitarian Aid'!K6:K300)","v":0},{"$f":"IFERROR(__xludf.DUMMYFUNCTION(\"(G12*GOOGLEFINANCE(\"\"currency:eurgel\"\"))+(H12*GOOGLEFINANCE(\"\"currency:usdgel\"\"))+I12\"),0.0)","v":0},null,{"$f":"SUMIFS('Economic Recovery'!I6:I300,'Economic Recovery'!J6:J300,\"EUR\",'Economic Recovery'!K6:K300,\"TA/Expert Consultancy\")+SUMIFS('Ministry of Env. and Agricultur'!J6:J305,'Ministry of Env. and Agricultur'!K6:K305,\"EUR\",'Ministry of Env. and Agricultur'!L6:L305,\"TA/Expert Consultancy\")+SUMIFS('Ministry of Education'!J6:J300,'Ministry of Education'!K6:K300,\"EUR\",'Ministry of Education'!L6:L300,\"TA/Expert Consultancy\")+SUMIFS('Human Rights'!J5:J300,'Human Rights'!K5:K300,\"EUR\",'Human Rights'!L5:L300,\"TA/Expert Consultancy\")+SUMIFS('Ministry of Health'!I6:I300,'Ministry of Health'!J6:J300,\"EUR\",'Ministry of Health'!K6:K300,\"TA/Expert Consultancy\")+SUMIFS('Humanitarian Aid'!K6:K300,'Humanitarian Aid'!L6:L300,\"EUR\",'Humanitarian Aid'!N6:N300,\"TA/Expert Consultancy\")+SUMIFS('Ministry of Defence'!L6:L300,'Ministry of Defence'!M6:M300,\"EUR\",'Ministry of Defence'!N6:N300,\"TA/Expert Consultancy\")+SUMIFS(MRDI!K6:K300,MRDI!L6:L300,\"EUR\",MRDI!M6:M300,\"TA/Expert Consultancy\")+SUMIFS('Ministry of Internal Affairs'!K6:K300,'Ministry of Internal Affairs'!L6:L300,\"EUR\",'Ministry of Internal Affairs'!M6:M300,\"TA/Expert Consultancy\")+SUMIFS('Ministry of Justice'!K6:K300,'Ministry of Justice'!L6:L300,\"EUR\",'Ministry of Justice'!M6:M300,\"TA/Expert Consultancy\")+SUMIFS('State Minister''s Office'!I6:I300,'State Minister''s Office'!J6:J300,\"EUR\",'State Minister''s Office'!K6:K300,\"TA/Expert Consultancy\")+SUMIFS('Large-scale Committments '!J6:J303,'Large-scale Committments '!K6:K303,\"EUR\",'Large-scale Committments '!L6:L303,\"TA/Expert Consultancy\")+SUMIFS(MOESD!K6:K300,MOESD!L6:L300,\"EUR\",MOESD!M6:M300,\"TA/Expert Consultancy\")","v":150417},{"$f":"SUMIFS('Economic Recovery'!I6:I300,'Economic Recovery'!J6:J300,\"USD\",'Economic Recovery'!K6:K300,\"TA/Expert Consultancy\")+SUMIFS('Ministry of Env. and Agricultur'!J6:J305,'Ministry of Env. and Agricultur'!K6:K305,\"USD\",'Ministry of Env. and Agricultur'!L6:L305,\"TA/Expert Consultancy\")+SUMIFS('Ministry of Education'!J6:J300,'Ministry of Education'!K6:K300,\"USD\",'Ministry of Education'!L6:L300,\"TA/Expert Consultancy\")+SUMIFS('Human Rights'!J5:J300,'Human Rights'!K5:K300,\"USD\",'Human Rights'!L5:L300,\"TA/Expert Consultancy\")+SUMIFS('Ministry of Health'!I6:I300,'Ministry of Health'!J6:J300,\"USD\",'Ministry of Health'!K6:K300,\"TA/Expert Consultancy\")+SUMIFS('Humanitarian Aid'!K6:K300,'Humanitarian Aid'!L6:L300,\"USD\",'Humanitarian Aid'!N6:N300,\"TA/Expert Consultancy\")+SUMIFS('Ministry of Defence'!L6:L300,'Ministry of Defence'!M6:M300,\"USD\",'Ministry of Defence'!N6:N300,\"TA/Expert Consultancy\")+SUMIFS(MRDI!K6:K300,MRDI!L6:L300,\"USD\",MRDI!M6:M300,\"TA/Expert Consultancy\")+SUMIFS('Ministry of Internal Affairs'!K6:K300,'Ministry of Internal Affairs'!L6:L300,\"USD\",'Ministry of Internal Affairs'!M6:M300,\"TA/Expert Consultancy\")+SUMIFS('Ministry of Justice'!K6:K300,'Ministry of Justice'!L6:L300,\"USD\",'Ministry of Justice'!M6:M300,\"TA/Expert Consultancy\")+SUMIFS('State Minister''s Office'!I6:I300,'State Minister''s Office'!J6:J300,\"USD\",'State Minister''s Office'!K6:K300,\"TA/Expert Consultancy\")+SUMIFS('Large-scale Committments '!J6:J303,'Large-scale Committments '!K6:K303,\"USD\",'Large-scale Committments '!L6:L303,\"TA/Expert Consultancy\")+SUMIFS(MOESD!K6:K300,MOESD!L6:L300,\"USD\",MOESD!M6:M300,\"TA/Expert Consultancy\")","v":123780},{"$f":"SUMIFS('Economic Recovery'!I6:I300,'Economic Recovery'!J6:J300,\"GEL\",'Economic Recovery'!K6:K300,\"TA/Expert Consultancy\")+SUMIFS('Ministry of Env. and Agricultur'!J6:J305,'Ministry of Env. and Agricultur'!K6:K305,\"GEL\",'Ministry of Env. and Agricultur'!L6:L305,\"TA/Expert Consultancy\")+SUMIFS('Ministry of Education'!J6:J300,'Ministry of Education'!K6:K300,\"GEL\",'Ministry of Education'!L6:L300,\"TA/Expert Consultancy\")+SUMIFS('Human Rights'!J5:J300,'Human Rights'!K5:K300,\"GEL\",'Human Rights'!L5:L300,\"TA/Expert Consultancy\")+SUMIFS('Ministry of Health'!I6:I300,'Ministry of Health'!J6:J300,\"GEL\",'Ministry of Health'!K6:K300,\"TA/Expert Consultancy\")+SUMIFS('Humanitarian Aid'!K6:K300,'Humanitarian Aid'!L6:L300,\"GEL\",'Humanitarian Aid'!N6:N300,\"TA/Expert Consultancy\")+SUMIFS('Ministry of Defence'!L6:L300,'Ministry of Defence'!M6:M300,\"GEL\",'Ministry of Defence'!N6:N300,\"TA/Expert Consultancy\")+SUMIFS(MRDI!K6:K300,MRDI!L6:L300,\"GEL\",MRDI!M6:M300,\"TA/Expert Consultancy\")+SUMIFS('Ministry of Internal Affairs'!K6:K300,'Ministry of Internal Affairs'!L6:L300,\"GEL\",'Ministry of Internal Affairs'!M6:M300,\"TA/Expert Consultancy\")+SUMIFS('Ministry of Justice'!K6:K300,'Ministry of Justice'!L6:L300,\"GEL\",'Ministry of Justice'!M6:M300,\"TA/Expert Consultancy\")+SUMIFS('State Minister''s Office'!I6:I300,'State Minister''s Office'!J6:J300,\"GEL\",'State Minister''s Office'!K6:K300,\"TA/Expert Consultancy\")+SUMIFS('Large-scale Committments '!J6:J303,'Large-scale Committments '!K6:K303,\"GEL\",'Large-scale Committments '!L6:L303,\"TA/Expert Consultancy\")+SUMIFS(MOESD!K6:K300,MOESD!L6:L300,\"GEL\",MOESD!M6:M300,\"TA/Expert Consultancy\")","v":0},{"$f":"IFERROR(__xludf.DUMMYFUNCTION(\"(L12*GOOGLEFINANCE(\"\"Currency:EURGEL\"\")+(M12*GOOGLEFINANCE(\"\"Currency:USDGEL\"\")+N12))\"),911761.4546040001)","v":911761.4546}]
[null,"Ministry of Defence",{"$f":"SUMIF('Ministry of Defence'!I6:I300,\"EUR\",'Ministry of Defence'!H6:H300)","v":0},{"$f":"SUMIF('Ministry of Defence'!I6:I300,\"USD\",'Ministry of Defence'!H6:H300)","v":0},{"$f":"SUMIF('Ministry of Defence'!I6:I300,\"GEL\",'Ministry of Defence'!H6:H300)","v":0},{"$f":"IFERROR(__xludf.DUMMYFUNCTION(\"(C13*GOOGLEFINANCE(\"\"currency:eurgel\"\"))+(D13*GOOGLEFINANCE(\"\"currency:usdgel\"\"))+E13\"),0.0)","v":0},{"$f":"SUMIF('Ministry of Defence'!M6:M300,\"EUR\",'Ministry of Defence'!L6:L300)","v":0},{"$f":"SUMIF('Ministry of Defence'!M6:M300,\"USD\",'Ministry of Defence'!L6:L300)","v":0},{"$f":"SUMIF('Ministry of Defence'!M6:M300,\"GEL\",'Ministry of Defence'!L6:L300)","v":0},{"$f":"IFERROR(__xludf.DUMMYFUNCTION(\"(G13*GOOGLEFINANCE(\"\"currency:eurgel\"\"))+(H13*GOOGLEFINANCE(\"\"currency:usdgel\"\"))+I13\"),0.0)","v":0},null,"Material Assistance "]
[null,"MRDI",{"$f":"SUMIF(MRDI!H6:H300,\"EUR\",MRDI!G6:G300)","v":0},{"$f":"SUMIF(MRDI!H6:H300,\"USD\",MRDI!G6:G300)","v":0},{"$f":"SUMIF(MRDI!H6:H300,\"GEL\",MRDI!G6:G300)","v":0},{"$f":"IFERROR(__xludf.DUMMYFUNCTION(\"(C14*GOOGLEFINANCE(\"\"currency:eurgel\"\"))+(D14*GOOGLEFINANCE(\"\"currency:usdgel\"\"))+E14\"),0.0)","v":0},{"$f":"SUMIF(MRDI!L6:L300,\"EUR\",MRDI!K6:K300)","v":0},{"$f":"SUMIF(MRDI!L6:L300,\"USD\",MRDI!K6:K300)","v":0},{"$f":"SUMIF(MRDI!L6:L300,\"GEL\",MRDI!K6:K300)","v":0},{"$f":"IFERROR(__xludf.DUMMYFUNCTION(\"(G14*GOOGLEFINANCE(\"\"currency:eurgel\"\"))+(H14*GOOGLEFINANCE(\"\"currency:usdgel\"\"))+I14\"),0.0)","v":0},null,{"$f":"SUMIFS('Economic Recovery'!I6:I300,'Economic Recovery'!J6:J300,\"EUR\",'Economic Recovery'!K6:K300,\"Material Assistance\")+SUMIFS('Ministry of Env. and Agricultur'!J6:J305,'Ministry of Env. and Agricultur'!K6:K305,\"EUR\",'Ministry of Env. and Agricultur'!L6:L305,\"Material Assistance\")+SUMIFS('Ministry of Education'!J6:J300,'Ministry of Education'!K6:K300,\"EUR\",'Ministry of Education'!L6:L300,\"Material Assistance\")+SUMIFS('Human Rights'!J5:J300,'Human Rights'!K5:K300,\"EUR\",'Human Rights'!L5:L300,\"Material Assistance\")+SUMIFS('Ministry of Health'!I6:I300,'Ministry of Health'!J6:J300,\"EUR\",'Ministry of Health'!K6:K300,\"Material Assistance\")+SUMIFS('Humanitarian Aid'!K6:K300,'Humanitarian Aid'!L6:L300,\"EUR\",'Humanitarian Aid'!N6:N300,\"Material Assistance\")+SUMIFS('Ministry of Defence'!L6:L300,'Ministry of Defence'!M6:M300,\"EUR\",'Ministry of Defence'!N6:N300,\"Material Assistance\")+SUMIFS(MRDI!K6:K300,MRDI!L6:L300,\"EUR\",MRDI!M6:M300,\"Material Assistance\")+SUMIFS('Ministry of Internal Affairs'!K6:K300,'Ministry of Internal Affairs'!L6:L300,\"EUR\",'Ministry of Internal Affairs'!M6:M300,\"Material Assistance\")+SUMIFS('Ministry of Justice'!K6:K300,'Ministry of Justice'!L6:L300,\"EUR\",'Ministry of Justice'!M6:M300,\"Material Assistance\")+SUMIFS('State Minister''s Office'!I6:I300,'State Minister''s Office'!J6:J300,\"EUR\",'State Minister''s Office'!K6:K300,\"Material Assistance\")+SUMIFS('Large-scale Committments '!J6:J303,'Large-scale Committments '!K6:K303,\"EUR\",'Large-scale Committments '!L6:L303,\"Material Assistance\")+SUMIFS(MOESD!K6:K300,MOESD!L6:L300,\"EUR\",MOESD!M6:M300,\"Material Assistance\")","v":55000},{"$f":"SUMIFS('Economic Recovery'!I6:I300,'Economic Recovery'!J6:J300,\"USD\",'Economic Recovery'!K6:K300,\"Material Assistance\")+SUMIFS('Ministry of Env. and Agricultur'!J6:J305,'Ministry of Env. and Agricultur'!K6:K305,\"USD\",'Ministry of Env. and Agricultur'!L6:L305,\"Material Assistance\")+SUMIFS('Ministry of Education'!J6:J300,'Ministry of Education'!K6:K300,\"USD\",'Ministry of Education'!L6:L300,\"Material Assistance\")+SUMIFS('Human Rights'!J5:J300,'Human Rights'!K5:K300,\"USD\",'Human Rights'!L5:L300,\"Material Assistance\")+SUMIFS('Ministry of Health'!I6:I300,'Ministry of Health'!J6:J300,\"USD\",'Ministry of Health'!K6:K300,\"Material Assistance\")+SUMIFS('Humanitarian Aid'!K6:K300,'Humanitarian Aid'!L6:L300,\"USD\",'Humanitarian Aid'!N6:N300,\"Material Assistance\")+SUMIFS('Ministry of Defence'!L6:L300,'Ministry of Defence'!M6:M300,\"USD\",'Ministry of Defence'!N6:N300,\"Material Assistance\")+SUMIFS(MRDI!K6:K300,MRDI!L6:L300,\"USD\",MRDI!M6:M300,\"Material Assistance\")+SUMIFS('Ministry of Internal Affairs'!K6:K300,'Ministry of Internal Affairs'!L6:L300,\"USD\",'Ministry of Internal Affairs'!M6:M300,\"Material Assistance\")+SUMIFS('Ministry of Justice'!K6:K300,'Ministry of Justice'!L6:L300,\"USD\",'Ministry of Justice'!M6:M300,\"Material Assistance\")+SUMIFS('State Minister''s Office'!I6:I300,'State Minister''s Office'!J6:J300,\"USD\",'State Minister''s Office'!K6:K300,\"Material Assistance\")+SUMIFS('Large-scale Committments '!J6:J303,'Large-scale Committments '!K6:K303,\"USD\",'Large-scale Committments '!L6:L303,\"Material Assistance\")+SUMIFS(MOESD!K6:K300,MOESD!L6:L300,\"USD\",MOESD!M6:M300,\"Material Assistance\")","v":1268},{"$f":"SUMIFS('Economic Recovery'!I6:I300,'Economic Recovery'!J6:J300,\"GEL\",'Economic Recovery'!K6:K300,\"Material Assistance\")+SUMIFS('Ministry of Env. and Agricultur'!J6:J305,'Ministry of Env. and Agricultur'!K6:K305,\"GEL\",'Ministry of Env. and Agricultur'!L6:L305,\"Material Assistance\")+SUMIFS('Ministry of Education'!J6:J300,'Ministry of Education'!K6:K300,\"GEL\",'Ministry of Education'!L6:L300,\"Material Assistance\")+SUMIFS('Human Rights'!J5:J300,'Human Rights'!K5:K300,\"GEL\",'Human Rights'!L5:L300,\"Material Assistance\")+SUMIFS('Ministry of Health'!I6:I300,'Ministry of Health'!J6:J300,\"GEL\",'Ministry of Health'!K6:K300,\"Material Assistance\")+SUMIFS('Humanitarian Aid'!K6:K300,'Humanitarian Aid'!L6:L300,\"GEL\",'Humanitarian Aid'!N6:N300,\"Material Assistance\")+SUMIFS('Ministry of Defence'!L6:L300,'Ministry of Defence'!M6:M300,\"GEL\",'Ministry of Defence'!N6:N300,\"Material Assistance\")+SUMIFS(MRDI!K6:K300,MRDI!L6:L300,\"GEL\",MRDI!M6:M300,\"Material Assistance\")+SUMIFS('Ministry of Internal Affairs'!K6:K300,'Ministry of Internal Affairs'!L6:L300,\"GEL\",'Ministry of Internal Affairs'!M6:M300,\"Material Assistance\")+SUMIFS('Ministry of Justice'!K6:K300,'Ministry of Justice'!L6:L300,\"GEL\",'Ministry of Justice'!M6:M300,\"Material Assistance\")+SUMIFS('State Minister''s Office'!I6:I300,'State Minister''s Office'!J6:J300,\"GEL\",'State Minister''s Office'!K6:K300,\"Material Assistance\")+SUMIFS('Large-scale Committments '!J6:J303,'Large-scale Committments '!K6:K303,\"GEL\",'Large-scale Committments '!L6:L303,\"Material Assistance\")+SUMIFS(MOESD!K6:K300,MOESD!L6:L300,\"GEL\",MOESD!M6:M300,\"Material Assistance\")","v":101518.8},{"$f":"IFERROR(__xludf.DUMMYFUNCTION(\"(L14*GOOGLEFINANCE(\"\"Currency:EURGEL\"\")+(M14*GOOGLEFINANCE(\"\"Currency:USDGEL\"\")+N14))\"),295229.36)","v":295229.36}]
[null,"MOESD",{"$f":"SUMIF(MOESD!H6:H300,\"EUR\",MOESD!G6:G300)","v":0},{"$f":"SUMIF(MOESD!H6:H300,\"USD\",MOESD!G6:G300)","v":0},{"$f":"SUMIF(MOESD!H6:H300,\"GEL\",MOESD!G6:G300)","v":0},{"$f":"IFERROR(__xludf.DUMMYFUNCTION(\"(C15*GOOGLEFINANCE(\"\"currency:eurgel\"\"))+(D15*GOOGLEFINANCE(\"\"currency:usdgel\"\"))+E15\"),0.0)","v":0},{"$f":"SUMIF(MOESD!L6:L300,\"EUR\",MOESD!K6:K300)","v":0},{"$f":"SUMIF(MOESD!L6:L300,\"USD\",MOESD!K6:K300)","v":0},{"$f":"SUMIF(MOESD!L6:L300,\"GEL\",MOESD!K6:K300)","v":0},{"$f":"IFERROR(__xludf.DUMMYFUNCTION(\"(G15*GOOGLEFINANCE(\"\"currency:eurgel\"\"))+(H15*GOOGLEFINANCE(\"\"currency:usdgel\"\"))+I15\"),0.0)","v":0},null,"Humanitarian Aid"]
[null,"Ministry of Internal Affairs",{"$f":"SUMIF('Ministry of Internal Affairs'!H6:H300,\"EUR\",'Ministry of Internal Affairs'!G6:G300)","v":0},{"$f":"SUMIF('Ministry of Internal Affairs'!H6:H300,\"USD\",'Ministry of Internal Affairs'!G6:G300)","v":0},{"$f":"SUMIF('Ministry of Internal Affairs'!H6:H300,\"GEL\",'Ministry of Internal Affairs'!G6:G300)","v":0},{"$f":"IFERROR(__xludf.DUMMYFUNCTION(\"(C16*GOOGLEFINANCE(\"\"currency:eurgel\"\"))+(D16*GOOGLEFINANCE(\"\"currency:usdgel\"\"))+E16\"),0.0)","v":0},{"$f":"SUMIF('Ministry of Internal Affairs'!L6:L300,\"EUR\",'Ministry of Internal Affairs'!K6:K300)","v":0},{"$f":"SUMIF('Ministry of Internal Affairs'!L6:L300,\"USD\",'Ministry of Internal Affairs'!K6:K300)","v":0},{"$f":"SUMIF('Ministry of Internal Affairs'!L6:L300,\"GEL\",'Ministry of Internal Affairs'!K6:K300)","v":0},{"$f":"IFERROR(__xludf.DUMMYFUNCTION(\"(G16*GOOGLEFINANCE(\"\"currency:eurgel\"\"))+(H16*GOOGLEFINANCE(\"\"currency:usdgel\"\"))+I16\"),0.0)","v":0},null,{"$f":"SUMIFS('Economic Recovery'!I6:I300,'Economic Recovery'!J6:J300,\"EUR\",'Economic Recovery'!K6:K300,\"Humanitarian Aid\")+SUMIFS('Ministry of Env. and Agricultur'!J6:J305,'Ministry of Env. and Agricultur'!K6:K305,\"EUR\",'Ministry of Env. and Agricultur'!L6:L305,\"Humanitarian Aid\")+SUMIFS('Ministry of Education'!J6:J300,'Ministry of Education'!K6:K300,\"EUR\",'Ministry of Education'!L6:L300,\"Humanitarian Aid\")+SUMIFS('Human Rights'!J5:J300,'Human Rights'!K5:K300,\"EUR\",'Human Rights'!L5:L300,\"Humanitarian Aid\")+SUMIFS('Ministry of Health'!I6:I300,'Ministry of Health'!J6:J300,\"EUR\",'Ministry of Health'!K6:K300,\"Humanitarian Aid\")+SUMIFS('Humanitarian Aid'!K6:K300,'Humanitarian Aid'!L6:L300,\"EUR\",'Humanitarian Aid'!N6:N300,\"Humanitarian Aid\")+SUMIFS('Ministry of Defence'!L6:L300,'Ministry of Defence'!M6:M300,\"EUR\",'Ministry of Defence'!N6:N300,\"Humanitarian Aid\")+SUMIFS(MRDI!K6:K300,MRDI!L6:L300,\"EUR\",MRDI!M6:M300,\"Humanitarian Aid\")+SUMIFS('Ministry of Internal Affairs'!K6:K300,'Ministry of Internal Affairs'!L6:L300,\"EUR\",'Ministry of Internal Affairs'!M6:M300,\"Humanitarian Aid\")+SUMIFS('Ministry of Justice'!K6:K300,'Ministry of Justice'!L6:L300,\"EUR\",'Ministry of Justice'!M6:M300,\"Humanitarian Aid\")+SUMIFS('State Minister''s Office'!I6:I300,'State Minister''s Office'!J6:J300,\"EUR\",'State Minister''s Office'!K6:K300,\"Humanitarian Aid\")+SUMIFS('Large-scale Committments '!J6:J303,'Large-scale Committments '!K6:K303,\"EUR\",'Large-scale Committments '!L6:L303,\"Humanitarian Aid\")+SUMIFS(MOESD!K6:K300,MOESD!L6:L300,\"EUR\",MOESD!M6:M300,\"Humanitarian Aid\")","v":0},{"$f":"SUMIFS('Economic Recovery'!I6:I300,'Economic Recovery'!J6:J300,\"USD\",'Economic Recovery'!K6:K300,\"Humanitarian Aid\")+SUMIFS('Ministry of Env. and Agricultur'!J6:J305,'Ministry of Env. and Agricultur'!K6:K305,\"USD\",'Ministry of Env. and Agricultur'!L6:L305,\"Humanitarian Aid\")+SUMIFS('Ministry of Education'!J6:J300,'Ministry of Education'!K6:K300,\"USD\",'Ministry of Education'!L6:L300,\"Humanitarian Aid\")+SUMIFS('Human Rights'!J5:J300,'Human Rights'!K5:K300,\"USD\",'Human Rights'!L5:L300,\"Humanitarian Aid\")+SUMIFS('Ministry of Health'!I6:I300,'Ministry of Health'!J6:J300,\"USD\",'Ministry of Health'!K6:K300,\"Humanitarian Aid\")+SUMIFS('Humanitarian Aid'!K6:K300,'Humanitarian Aid'!L6:L300,\"USD\",'Humanitarian Aid'!N6:N300,\"Humanitarian Aid\")+SUMIFS('Ministry of Defence'!L6:L300,'Ministry of Defence'!M6:M300,\"USD\",'Ministry of Defence'!N6:N300,\"Humanitarian Aid\")+SUMIFS(MRDI!K6:K300,MRDI!L6:L300,\"USD\",MRDI!M6:M300,\"Humanitarian Aid\")+SUMIFS('Ministry of Internal Affairs'!K6:K300,'Ministry of Internal Affairs'!L6:L300,\"USD\",'Ministry of Internal Affairs'!M6:M300,\"Humanitarian Aid\")+SUMIFS('Ministry of Justice'!K6:K300,'Ministry of Justice'!L6:L300,\"USD\",'Ministry of Justice'!M6:M300,\"Humanitarian Aid\")+SUMIFS('State Minister''s Office'!I6:I300,'State Minister''s Office'!J6:J300,\"USD\",'State Minister''s Office'!K6:K300,\"Humanitarian Aid\")+SUMIFS('Large-scale Committments '!J6:J303,'Large-scale Committments '!K6:K303,\"USD\",'Large-scale Committments '!L6:L303,\"Humanitarian Aid\")+SUMIFS(MOESD!K6:K300,MOESD!L6:L300,\"USD\",MOESD!M6:M300,\"Humanitarian Aid\")","v":16000},{"$f":"SUMIFS('Economic Recovery'!I6:I300,'Economic Recovery'!J6:J300,\"GEL\",'Economic Recovery'!K6:K300,\"Humanitarian Aid\")+SUMIFS('Ministry of Env. and Agricultur'!J6:J305,'Ministry of Env. and Agricultur'!K6:K305,\"GEL\",'Ministry of Env. and Agricultur'!L6:L305,\"Humanitarian Aid\")+SUMIFS('Ministry of Education'!J6:J300,'Ministry of Education'!K6:K300,\"GEL\",'Ministry of Education'!L6:L300,\"Humanitarian Aid\")+SUMIFS('Human Rights'!J5:J300,'Human Rights'!K5:K300,\"GEL\",'Human Rights'!L5:L300,\"Humanitarian Aid\")+SUMIFS('Ministry of Health'!I6:I300,'Ministry of Health'!J6:J300,\"GEL\",'Ministry of Health'!K6:K300,\"Humanitarian Aid\")+SUMIFS('Humanitarian Aid'!K6:K300,'Humanitarian Aid'!L6:L300,\"GEL\",'Humanitarian Aid'!N6:N300,\"Humanitarian Aid\")+SUMIFS('Ministry of Defence'!L6:L300,'Ministry of Defence'!M6:M300,\"GEL\",'Ministry of Defence'!N6:N300,\"Humanitarian Aid\")+SUMIFS(MRDI!K6:K300,MRDI!L6:L300,\"GEL\",MRDI!M6:M300,\"Humanitarian Aid\")+SUMIFS('Ministry of Internal Affairs'!K6:K300,'Ministry of Internal Affairs'!L6:L300,\"GEL\",'Ministry of Internal Affairs'!M6:M300,\"Humanitarian Aid\")+SUMIFS('Ministry of Justice'!K6:K300,'Ministry of Justice'!L6:L300,\"GEL\",'Ministry of Justice'!M6:M300,\"Humanitarian Aid\")+SUMIFS('State Minister''s Office'!I6:I300,'State Minister''s Office'!J6:J300,\"GEL\",'State Minister''s Office'!K6:K300,\"Humanitarian Aid\")+SUMIFS('Large-scale Committments '!J6:J303,'Large-scale Committments '!K6:K303,\"GEL\",'Large-scale Committments '!L6:L303,\"Humanitarian Aid\")+SUMIFS(MOESD!K6:K300,MOESD!L6:L300,\"GEL\",MOESD!M6:M300,\"Humanitarian Aid\")","v":0},{"$f":"IFERROR(__xludf.DUMMYFUNCTION(\"(L16*GOOGLEFINANCE(\"\"Currency:EURGEL\"\")+(M16*GOOGLEFINANCE(\"\"Currency:USDGEL\"\")+N16))\"),50800.0)","v":50800}]
[null,"Ministry of Justice",{"$f":"SUMIF('Ministry of Justice'!H6:H299,\"EUR\",'Ministry of Justice'!G6:G299)","v":0},{"$f":"SUMIF('Ministry of Justice'!H6:H299,\"USD\",'Ministry of Justice'!G6:G299)","v":0},{"$f":"SUMIF('Ministry of Justice'!H6:H299,\"GEL\",'Ministry of Justice'!G6:G299)","v":30000},{"$f":"IFERROR(__xludf.DUMMYFUNCTION(\"(C17*GOOGLEFINANCE(\"\"currency:eurgel\"\"))+(D17*GOOGLEFINANCE(\"\"currency:usdgel\"\"))+E17\"),30000.0)","v":30000},{"$f":"SUMIF('Ministry of Justice'!L6:L300,\"EUR\",'Ministry of Justice'!K6:K300)","v":0},{"$f":"SUMIF('Ministry of Justice'!L6:L300,\"USD\",'Ministry of Justice'!K6:K300)","v":0},{"$f":"SUMIF('Ministry of Justice'!L6:L300,\"GEL\",'Ministry of Justice'!K6:K300)","v":0},{"$f":"IFERROR(__xludf.DUMMYFUNCTION(\"(G17*GOOGLEFINANCE(\"\"currency:eurgel\"\"))+(H17*GOOGLEFINANCE(\"\"currency:usdgel\"\"))+I17\"),0.0)","v":0},null,"Others"]
[null,"State Minister's Office",{"$f":"SUMIF('State Minister''s Office'!J6:J300,\"EUR\",'State Minister''s Office'!I6:I300)","v":0},{"$f":"SUMIF('State Minister''s Office'!J6:J300,\"USD\",'State Minister''s Office'!I6:I300)","v":0},{"$f":"SUMIF('State Minister''s Office'!J6:J300,\"GEL\",'State Minister''s Office'!I6:I300)","v":115118.8},{"$f":"IFERROR(__xludf.DUMMYFUNCTION(\"(C18*GOOGLEFINANCE(\"\"currency:eurgel\"\"))+(D18*GOOGLEFINANCE(\"\"currency:usdgel\"\"))+E18\"),115118.8)","v":115118.8},{"$f":"SUMIF('State Minister''s Office'!J6:J300,\"EUR\",'State Minister''s Office'!I6:I300)","v":0},{"$f":"SUMIF('State Minister''s Office'!J6:J300,\"USD\",'State Minister''s Office'!I6:I300)","v":0},{"$f":"SUMIF('State Minister''s Office'!J6:J300,\"GEL\",'State Minister''s Office'!I6:I300)","v":115118.8},{"$f":"IFERROR(__xludf.DUMMYFUNCTION(\"(G18*GOOGLEFINANCE(\"\"currency:eurgel\"\"))+(H18*GOOGLEFINANCE(\"\"currency:usdgel\"\"))+I18\"),115118.8)","v":115118.8},null,{"$f":"SUMIFS('Economic Recovery'!I6:I300,'Economic Recovery'!J6:J300,\"EUR\",'Economic Recovery'!K6:K300,\"Others\")+SUMIFS('Ministry of Env. and Agricultur'!J6:J305,'Ministry of Env. and Agricultur'!K6:K305,\"EUR\",'Ministry of Env. and Agricultur'!L6:L305,\"Others\")+SUMIFS('Ministry of Education'!J6:J300,'Ministry of Education'!K6:K300,\"EUR\",'Ministry of Education'!L6:L300,\"Others\")+SUMIFS('Human Rights'!J5:J300,'Human Rights'!K5:K300,\"EUR\",'Human Rights'!L5:L300,\"Others\")+SUMIFS('Ministry of Health'!I6:I300,'Ministry of Health'!J6:J300,\"EUR\",'Ministry of Health'!K6:K300,\"Others\")+SUMIFS('Humanitarian Aid'!K6:K300,'Humanitarian Aid'!L6:L300,\"EUR\",'Humanitarian Aid'!N6:N300,\"Others\")+SUMIFS('Ministry of Defence'!L6:L300,'Ministry of Defence'!M6:M300,\"EUR\",'Ministry of Defence'!N6:N300,\"Others\")+SUMIFS(MRDI!K6:K300,MRDI!L6:L300,\"EUR\",MRDI!M6:M300,\"Others\")+SUMIFS('Ministry of Internal Affairs'!K6:K300,'Ministry of Internal Affairs'!L6:L300,\"EUR\",'Ministry of Internal Affairs'!M6:M300,\"Others\")+SUMIFS('Ministry of Justice'!K6:K300,'Ministry of Justice'!L6:L300,\"EUR\",'Ministry of Justice'!M6:M300,\"Others\")+SUMIFS('State Minister''s Office'!I6:I300,'State Minister''s Office'!J6:J300,\"EUR\",'State Minister''s Office'!K6:K300,\"Others\")+SUMIFS('Large-scale Committments '!J6:J303,'Large-scale Committments '!K6:K303,\"EUR\",'Large-scale Committments '!L6:L303,\"Others\")+SUMIFS(MOESD!K6:K300,MOESD!L6:L300,\"EUR\",MOESD!M6:M300,\"Others\")","v":0},{"$f":"SUMIFS('Economic Recovery'!I6:I300,'Economic Recovery'!J6:J300,\"USD\",'Economic Recovery'!K6:K300,\"Others\")+SUMIFS('Ministry of Env. and Agricultur'!J6:J305,'Ministry of Env. and Agricultur'!K6:K305,\"USD\",'Ministry of Env. and Agricultur'!L6:L305,\"Others\")+SUMIFS('Ministry of Education'!J6:J300,'Ministry of Education'!K6:K300,\"USD\",'Ministry of Education'!L6:L300,\"Others\")+SUMIFS('Human Rights'!J5:J300,'Human Rights'!K5:K300,\"USD\",'Human Rights'!L5:L300,\"Others\")+SUMIFS('Ministry of Health'!I6:I300,'Ministry of Health'!J6:J300,\"USD\",'Ministry of Health'!K6:K300,\"Others\")+SUMIFS('Humanitarian Aid'!K6:K300,'Humanitarian Aid'!L6:L300,\"USD\",'Humanitarian Aid'!N6:N300,\"Others\")+SUMIFS('Ministry of Defence'!L6:L300,'Ministry of Defence'!M6:M300,\"USD\",'Ministry of Defence'!N6:N300,\"Others\")+SUMIFS(MRDI!K6:K300,MRDI!L6:L300,\"USD\",MRDI!M6:M300,\"Others\")+SUMIFS('Ministry of Internal Affairs'!K6:K300,'Ministry of Internal Affairs'!L6:L300,\"USD\",'Ministry of Internal Affairs'!M6:M300,\"Others\")+SUMIFS('Ministry of Justice'!K6:K300,'Ministry of Justice'!L6:L300,\"USD\",'Ministry of Justice'!M6:M300,\"Others\")+SUMIFS('State Minister''s Office'!I6:I300,'State Minister''s Office'!J6:J300,\"USD\",'State Minister''s Office'!K6:K300,\"Others\")+SUMIFS('Large-scale Committments '!J6:J303,'Large-scale Committments '!K6:K303,\"USD\",'Large-scale Committments '!L6:L303,\"Others\")+SUMIFS(MOESD!K6:K300,MOESD!L6:L300,\"USD\",MOESD!M6:M300,\"Others\")","v":1700},{"$f":"SUMIFS('Economic Recovery'!I6:I300,'Economic Recovery'!J6:J300,\"GEL\",'Economic Recovery'!K6:K300,\"Others\")+SUMIFS('Ministry of Env. and Agricultur'!J6:J305,'Ministry of Env. and Agricultur'!K6:K305,\"GEL\",'Ministry of Env. and Agricultur'!L6:L305,\"Others\")+SUMIFS('Ministry of Education'!J6:J300,'Ministry of Education'!K6:K300,\"GEL\",'Ministry of Education'!L6:L300,\"Others\")+SUMIFS('Human Rights'!J5:J300,'Human Rights'!K5:K300,\"GEL\",'Human Rights'!L5:L300,\"Others\")+SUMIFS('Ministry of Health'!I6:I300,'Ministry of Health'!J6:J300,\"GEL\",'Ministry of Health'!K6:K300,\"Others\")+SUMIFS('Humanitarian Aid'!K6:K300,'Humanitarian Aid'!L6:L300,\"GEL\",'Humanitarian Aid'!N6:N300,\"Others\")+SUMIFS('Ministry of Defence'!L6:L300,'Ministry of Defence'!M6:M300,\"GEL\",'Ministry of Defence'!N6:N300,\"Others\")+SUMIFS(MRDI!K6:K300,MRDI!L6:L300,\"GEL\",MRDI!M6:M300,\"Others\")+SUMIFS('Ministry of Internal Affairs'!K6:K300,'Ministry of Internal Affairs'!L6:L300,\"GEL\",'Ministry of Internal Affairs'!M6:M300,\"Others\")+SUMIFS('Ministry of Justice'!K6:K300,'Ministry of Justice'!L6:L300,\"GEL\",'Ministry of Justice'!M6:M300,\"Others\")+SUMIFS('State Minister''s Office'!I6:I300,'State Minister''s Office'!J6:J300,\"GEL\",'State Minister''s Office'!K6:K300,\"Others\")+SUMIFS('Large-scale Committments '!J6:J303,'Large-scale Committments '!K6:K303,\"GEL\",'Large-scale Committments '!L6:L303,\"Others\")+SUMIFS(MOESD!K6:K300,MOESD!L6:L300,\"GEL\",MOESD!M6:M300,\"Others\")","v":0},{"$f":"IFERROR(__xludf.DUMMYFUNCTION(\"(L18*GOOGLEFINANCE(\"\"Currency:EURGEL\"\")+(M18*GOOGLEFINANCE(\"\"Currency:USDGEL\"\")+N18))\"),5397.5)","v":5397.5}]
[null,"Large-scale committments ",{"$f":"SUMIF('Large-scale Committments '!K6:K303,\"EUR\",'Large-scale Committments '!I6:I303)","v":139300000},{"$f":"SUMIF('Large-scale Committments '!K6:K303,\"USD\",'Large-scale Committments '!I6:I303)","v":1100000},{"$f":"SUMIF('Large-scale Committments '!K6:K303,\"GEL\",'Large-scale Committments '!I6:I303)","v":0},{"$f":"IFERROR(__xludf.DUMMYFUNCTION(\"(C19*GOOGLEFINANCE(\"\"currency:eurgel\"\"))+(D19*GOOGLEFINANCE(\"\"currency:usdgel\"\"))+E19\"),4.839120116E8)","v":483912011.6},{"$f":"SUMIF('Large-scale Committments '!K6:K303,\"EUR\",'Large-scale Committments '!J6:J303)","v":159300000},{"$f":"SUMIF('Large-scale Committments '!K6:K303,\"USD\",'Large-scale Committments '!J6:J303)","v":1100000},{"$f":"SUMIF('Large-scale Committments '!K6:K303,\"GEL\",'Large-scale Committments '!J6:J303)","v":0},{"$f":"IFERROR(__xludf.DUMMYFUNCTION(\"(G19*GOOGLEFINANCE(\"\"currency:eurgel\"\"))+(H19*GOOGLEFINANCE(\"\"currency:usdgel\"\"))+I19\"),5.528882516E8)","v":552888251.6}]
[null,"Total",{"$f":"SUM(C7:C19)","v":139450417},1297260,1031345619,1516402691,159505417,1297748,115118.8,554339664.9]

{"sheet":"Ministry of Env. and Agricultur","index":1,"n_rows":326,"n_cols":19,"rows_kept":326,"cut":false,"hidden":false,"merged":[[2,13,3,13],[2,14,3,16],[5,2,32,2],[46,2,49,2],[5,1,49,1],[33,2,45,2],[0,0,0,14],[0,17,0,18],[1,3,1,14],[2,0,3,0],[2,1,3,6],[2,7,3,7],[2,8,3,12],[2,17,3,18]]}
["COVID-19 RESPONSE FOR PREPAREDENESS",null,null,null,null,null,null,null,null,null,null,null,null,null,null,null,null,"DATE OF UPDATE:"]
[]
["#","NEEDS",null,null,null,null,null,null,"SUPPORT PROVIDED BY DEV PARTNERS",null,null,null,null,"Status","Georgraphic Coverage",null,null,"Contact Person (DONORS)"]
[]
[1.0,"Initiator","Description","PRODUCTS/REQUIREMENTS","NUMBER","BUDGET PER SUBJECT","BUDGET","Currency","Organization","Budget Provided","Currency","Assistance Type","Comment","1. Completed \n2. Agreed with the donor/partner - is currently in process \n3. Currently negotiating with donor/partner \n4. Exploring support opportunities","(Please, select from the list)\n\nCentral Level\nLocal Level (Please select the region or municipality)","(Please, select from the list)\n\nRegions","(Please, select from the list)\n\nMunicipalities","DONOR","GOV"]
[2.0,"Ministry of Environment Protection and Agriculture"," National Food Agency of the MEPA is main body in the country responsible for monitoring and supervision of food related activities and is maintaining routine surveillance for the effective fulfillment of its obligations, wich requires relevant equipments and and amenities needed: ","Pick-up trucks",100.0,null,null,null,null,null,null,"Material Assistance",null,"4. Exploring support opportunities",null,null,null,null,"Khatia Tsilosani;\nkhatia.tsilosani@mepa.gov.ge;\n 577 080048 "]
[3.0,null,null,"Sprayers",100.0,null,null,null,null,null,null,"Material Assistance",null,"4. Exploring support opportunities"]
[4.0,null,null,"Laptops",100.0,null,null,null,null,null,null,"Material Assistance",null,"4. Exploring support opportunities"]
[5.0,null,null,"Tablets",100.0,null,null,null,null,null,null,"Material Assistance",null,"4. Exploring support opportunities"]
[6.0,null,null,"Biosafety equipment (masks, glasses, gloves, boots, etc.)",200.0,null,null,null,null,null,null,"Material Assistance",null,"4. Exploring support opportunities"]
[7.0,null,null,"Veterinary biosafety equipment ",200.0,null,null,null,null,null,null,"Material Assistance",null,"4. Exploring support opportunities"]
[8.0,null,null,"Extensive material aid required in the veterinary sector, including respirators, first aid kits, insecticides and acaricides for animal treatment",null,null,null,null,null,null,null,"Material Assistance",null,"4. Exploring support opportunities"]
[9.0,null,null,"Strengthening laboratory capacity of the MEPA not only in Tbilisi central office, but also in regions and to create hub of reference laboratory. ",null,null,null,null,null,null,null,"TA/Expert Consultancy",null,"4. Exploring support opportunities"]
[10.0,null,null,"Special equipment for staff of Environmental Supervision Department to ensure maintenance of quarantine rules in affected regions ",null,null,null,null,null,null,null,"Material Assistance",null,"4. Exploring support opportunities"]
[11.0,null,null,"Disinfectants (wide spectrum: antiviral/antibacterial) ",1000.0,null,null,null,null,null,null,"Material Assistance",null,"4. Exploring support opportunities"]
[12.0,null,null,"Information campaigns aimed at private sector representatives to raise their awareness of recent challenges COVID 2019. ",null,null,null,null,null,null,null,"Material Assistance",null,"4. Exploring support opportunities"]
[13.0,null,null,"Hand disinfectants (500 ml volume each) ",300.0,null,null,null,null,null,null,"Material Assistance",null,"4. Exploring support opportunities"]
[14.0,null,null,"Head covers",185000.0,null,null,null,null,null,null,"Material Assistance",null,"4. Exploring support opportunities"]
[15.0,null,null,"Disposable shoe covers for farms (Tyvek skid resistant FC boot covers in gray)",185000.0,null,null,null,null,null,null,"Material Assistance",null,"4. Exploring support opportunities"]
[16.0,null,null,"Safety splash goggles",5000.0,null,null,null,null,null,null,"Material Assistance",null,"4. Exploring support opportunities"]
[17.0,null,null,"Multi-use tuberculin needles ",10000.0,null,null,null,null,null,null,"Material Assistance",null,"4. Exploring support opportunities"]
[18.0,null,null,"Thermal containers (10-15 ml volume) ",350.0,null,null,null,null,null,null,"Material Assistance",null,"4. Exploring support opportunities"]
[19.0,null,null,"Bag, Biohazard, High Temperatures (size L) ",5000.0,null,null,null,null,null,null,"Material Assistance",null,"4. Exploring support opportunities"]
[20.0,null,null,"Bag, Biohazard, High Temperature (size XL)",3000.0,null,null,null,null,null,null,"Material Assistance",null,"4. Exploring support opportunities"]
[21.0,null,null,"First aid kits",75.0,null,null,null,null,null,null,"Material Assistance",null,"4. Exploring support opportunities"]
[22.0,null,null,"Automatic tuberculin syringes ",100.0,null,null,null,null,null,null,"Material Assistance",null,"4. Exploring support opportunities"]
[23.0,null,null,"Coats",185000.0,null,null,null,null,null,null,"Material Assistance",null,"4. Exploring support opportunities"]
[24.0,null,null,"Automatic vaccine syringes ",200.0,null,null,null,null,null,null,"Material Assistance",null,"4. Exploring support opportunities"]
[25.0,null,null,"Clothing, latex gloves (size L, XL)",500000.0,null,null,null,null,null,null,"Material Assistance",null,"4. Exploring support opportunities"]
[26.0,null,null,"N95-N98 respirators with bioprotection ",445000.0,null,null,null,null,null,null,"Material Assistance",null,"4. Exploring support opportunities"]
[27.0,null,null,"Clothing, suits, Tyvek",260000.0,null,null,null,null,null,null,"Material Assistance",null,"4. Exploring support opportunities"]
[28.0,null,null,"Insecto-acaricides for treating animals ",1500.0,null,null,null,null,null,null,"Material Assistance",null,"4. Exploring support opportunities"]
[29.0,null,null,"Strengthening the capacity of Extension offices and NFA regional representations in the regions to reach as many farmers as possible.",null,null,null,null,null,null,null,"TA/Expert Consultancy",null,"4. Exploring support opportunities"]
[null,null,"Programs to tackle food security challenges and respond the need of population toward primary food products:","Financial Incentive Program for Registered Agricultural Landowners/Beneficiaries\n","406 000 ha","800 GEL per 1 ha",3.248E8,"GEL",null,null,null,null,null,"4. Exploring support opportunities"]
[null,null,null,"Support program for Primary Production","50 000 ha",null,1.0E8,"GEL",null,null,null,null,null,"4. Exploring support opportunities"]
[30.0,null,null,"Promotion of appropriate measures for agri-technical tillage of agricultural plots (ploughing activities) through subsidies ",null,null,null,null,null,null,null,"Financial Assistance - not specified",null,"4. Exploring support opportunities"]
[31.0,null,null,"Support program for production of wheat ","30 000 ha;\n4-5 wheat storage enterprises will be created",null,3.0E7,"GEL",null,null,null,"Others",null,"4. Exploring support opportunities",null,null,null,null,"Nikoloz Chimakadze\n577 403 736\n\nNikoloz.chimakadze@mepa.gov.ge \n"]
[null,null,null,"Support program for spring and winter activities in 2020 \n","40 000 ha","160 GEL per 1 ha ",6400000.0,"GEL",null,null,null,null,null,"4. Exploring support opportunities"]
[32.0,null,null,"Support program to increase the land area for sunflower crops and support of oil production ","10 000 ha;\n10-15 oil enterprises will be created/rehabilitated",null,1.0E7,"GEL",null,null,null,"Others",null,"4. Exploring support opportunities"]
[33.0,null,null,"Support program to increase the production of existing fish farms and aquaculture",null,null,5000000.0,"GEL",null,null,null,"Others",null,"4. Exploring support opportunities"]
[null,null,null,"Support program for provision of agricultural plots with irrigation\n","30 000ha;\n150 wells",null,1.5E8,"GEL",null,null,null,null,null,"4. Exploring support opportunities"]
[34.0,null,null,"Support the production of meat under animal husbandry and production of combined feed",null,null,5000000.0,"GEL",null,null,null,"Others",null,"4. Exploring support opportunities"]
[35.0,null,null,"Support the dairy farming development under animal husbandry and primary feed production ",null,null,1.5E7,"GEL",null,null,null,"Others",null,"4. Exploring support opportunities"]
[36.0,null,null,"Support of Agri production (machinery and greenhouses) ",null,null,1.5E7,"GEL",null,null,null,"Others",null,"4. Exploring support opportunities"]
[null,null,null,"Support program for  Young Entrepreneurs","at least 1 000 entrepreneurs",null,6.0E7,"GEL",null,null,null,null,null,"4. Exploring support opportunities"]
[37.0,null,null,"Support program for arrangement of anti hail netting","5 000 ha",null,2.0E8,"GEL",null,null,null,"Others",null,"4. Exploring support opportunities"]
[38.0,null,"Programs for irrigation and infrastucture ","Arrangement of drip irrigation systems",null,null,null,null,null,null,null,"Others",null,"4. Exploring support opportunities"]
[39.0,null,null,"Support program for existing enterprises and the rehabilitation of inactive enterprises",250.0,null,5.0E7,"GEL",null,null,null,"Others",null,"4. Exploring support opportunities"]
[40.0,null,null,"Co-financing program of  processing and storage enterprises","at least 90 Unit",null,5.0E7,"GEL",null,null,null,"Others",null,"4. Exploring support opportunities"]
[41.0,null,null,"Support program to increase the lending of agriculture through the banking sector",null,null,null,null,null,null,null,"Others",null,"4. Exploring support opportunities"]
[42.0]
[43.0]
[44.0]
[45.0]
[46.0]
[47.0]
[48.0]
[49.0]
[50.0]
[51.0]
[52.0]
[53.0]
[54.0]
[55.0]
[56.0]
[57.0]
[58.0]
[59.0]
[60.0]
[61.0]
[62.0]
[63.0]
[64.0]
[65.0]
[66.0]
[67.0]
[68.0]
[69.0]
[70.0]
[71.0]
[72.0]
[73.0]
[74.0]
[75.0]
[76.0]
[77.0]
[78.0]
[79.0]
[80.0]
[81.0]
[82.0]
[83.0]
[84.0]
[85.0]
[86.0]
[87.0]
[88.0]
[89.0]
[90.0]
[91.0]
[92.0]
[93.0]
[94.0]
[95.0]
[96.0]
[97.0]
[98.0]
[99.0]
[100.0]
[101.0]
[102.0]
[103.0]
[104.0]
[105.0]
[106.0]
[107.0]
[108.0]
[109.0]
[110.0]
[111.0]
[112.0]
[113.0]
[114.0]
[115.0]
[116.0]
[117.0]
[118.0]
[119.0]
[120.0]
[121.0]
[122.0]
[123.0]
[124.0]
[125.0]
[126.0]
[127.0]
[128.0]
[129.0]
[130.0]
[131.0]
[132.0]
[133.0]
[134.0]
[135.0]
[136.0]
[137.0]
[138.0]
[139.0]
[140.0]
[141.0]
[142.0]
[143.0]
[144.0]
[145.0]
[146.0]
[147.0]
[148.0]
[149.0]
[150.0]
[151.0]
[152.0]
[153.0]
[154.0]
[155.0]
[156.0]
[157.0]
[158.0]
[159.0]
[160.0]
[161.0]
[162.0]
[163.0]
[164.0]
[165.0]
[166.0]
[167.0]
[168.0]
[169.0]
[170.0]
[171.0]
[172.0]
[173.0]
[174.0]
[175.0]
[176.0]
[177.0]
[178.0]
[179.0]
[180.0]
[181.0]
[182.0]
[183.0]
[184.0]
[185.0]
[186.0]
[187.0]
[188.0]
[189.0]
[190.0]
[191.0]
[192.0]
[193.0]
[194.0]
[195.0]
[196.0]
[197.0]
[198.0]
[199.0]
[200.0]
[201.0]
[202.0]
[203.0]
[204.0]
[205.0]
[206.0]
[207.0]
[208.0]
[209.0]
[210.0]
[211.0]
[212.0]
[213.0]
[214.0]
[215.0]
[216.0]
[217.0]
[218.0]
[219.0]
[220.0]
[221.0]
[222.0]
[223.0]
[224.0]
[225.0]
[226.0]
[227.0]
[228.0]
[229.0]
[230.0]
[231.0]
[232.0]
[233.0]
[234.0]
[235.0]
[236.0]
[237.0]
[238.0]
[239.0]
[240.0]
[241.0]
[242.0]
[243.0]
[244.0]
[245.0]
[246.0]
[247.0]
[248.0]
[249.0]
[250.0]
[251.0]
[252.0]
[253.0]
[254.0]
[255.0]
[256.0]
[257.0]
[258.0]
[259.0]
[260.0]
[261.0]
[262.0]
[263.0]
[264.0]
[265.0]
[266.0]
[267.0]
[268.0]
[269.0]
[270.0]
[271.0]
[272.0]
[273.0]
[274.0]
[275.0]
[276.0]
[277.0]
[278.0]
[279.0]
[280.0]
[281.0]
[282.0]
[283.0]
[284.0]
[285.0]
[286.0]
[287.0]
[288.0]
[289.0]
[290.0]
[291.0]
[292.0]
[293.0]
[294.0]
[295.0]
[296.0]
[297.0]
[298.0]
[299.0]
[300.0]
[301.0]
[302.0]
[303.0]
[304.0]
[305.0]
[306.0]
[307.0]
[308.0]
[309.0]
[310.0]
[311.0]
[312.0]
[313.0]
[314.0]
[315.0]
[316.0]
[317.0]

{"sheet":"Economic Recovery","index":2,"n_rows":282,"n_cols":18,"rows_kept":282,"cut":false,"hidden":false,"merged":[[2,13,3,15],[2,16,3,17],[5,1,7,1],[5,2,7,2],[0,0,0,13],[0,16,0,17],[1,3,1,13],[2,0,3,0],[2,1,3,6],[2,7,3,11],[2,12,3,12]]}
["COVID-19 RESPONSE FOR PREPAREDENESS",null,null,null,null,null,null,null,null,null,null,null,null,null,null,null,"DATE OF UPDATE:"]
[]
["#","NEEDS",null,null,null,null,null,"SUPPORT PROVIDED BY DEV PARTNERS",null,null,null,null,"Status","Georgraphic Coverage",null,null,"Contact Person (DONORS)"]
[]
[1.0,"Initiator","Description","PRODUCTS/REQUIREMENTS","NUMBER","BUDGET PER SUBJECT","BUDGET","Organization","Budget ","Currency","Assistance Type","Comment","1. Completed \n2. Agreed with the donor/partner - is currently in process \n3. Currently negotiating with donor/partner \n4. Exploring support opportunities","(Please, select from the list)\n\nCentral Level\nLocal Level (Please select the region or municipality)","Please, select from the list)\n\nRegions"," (Please, select from the list)\n\nMunicipalities","DONOR","GOV"]
[2.0,"Administration of the Government ","For Georgia's economy to recover quickly from the ravages caused by COVID-19, ways and means must be found to prevent a massive collapse and set rapid measures for swift recovery. Many businesses are directly impacted by the very measures imposed to contain the spread of the virus, to this end Government's pledge is to design the effective recovery policy plan to respond the economic recession ","1.Technical assistance to develop the Economic Recovery Plan: setting the pull of profound experts (rapid response team - international & local) in economy",null,null,null,"USAID/Economic Governance Program",null,null,"TA/Expert Consultancy",null,"3. Currently negotiating with donor/partner ","Central Level",null,null,"Natalia Beruashvili;  599 537 234","Beka Lilashvili; liluashvilibeqa@gmail.com; 539991419"]
[3.0,null,null,"2. Partnering with other relevant programmes to ensure the holistic and coherent donor coordination ",null,null,null,"USAID/Economic Governance Program & others",null,null,"TA/Expert Consultancy",null,"3. Currently negotiating with donor/partner ","Central Level"]
[4.0,null,null,"3. Support in the implementation of the Plan",null,null,null,"USAID/Economic Governance Program & others",null,null,"TA/Expert Consultancy",null,"4. Exploring support opportunities","Countrywide"]
[25.0]
[28.0]
[29.0]
[30.0]
[31.0]
[32.0]
[33.0]
[34.0]
[35.0]
[36.0]
[37.0]
[38.0]
[39.0]
[40.0]
[41.0]
[42.0]
[43.0]
[44.0]
[45.0]
[46.0]
[47.0]
[48.0]
[49.0]
[50.0]
[51.0]
[52.0]
[53.0]
[54.0]
[55.0]
[56.0]
[57.0]
[58.0]
[59.0]
[60.0]
[61.0]
[62.0]
[63.0]
[64.0]
[65.0]
[66.0]
[67.0]
[68.0]
[69.0]
[70.0]
[71.0]
[72.0]
[73.0]
[74.0]
[75.0]
[76.0]
[77.0]
[78.0]
[79.0]
[80.0]
[81.0]
[82.0]
[83.0]
[84.0]
[85.0]
[86.0]
[87.0]
[88.0]
[89.0]
[90.0]
[91.0]
[92.0]
[93.0]
[94.0]
[95.0]
[96.0]
[97.0]
[98.0]
[99.0]
[100.0]
[101.0]
[102.0]
[103.0]
[104.0]
[105.0]
[106.0]
[107.0]
[108.0]
[109.0]
[110.0]
[111.0]
[112.0]
[113.0]
[114.0]
[115.0]
[116.0]
[117.0]
[118.0]
[119.0]
[120.0]
[121.0]
[122.0]
[123.0]
[124.0]
[125.0]
[126.0]
[127.0]
[128.0]
[129.0]
[130.0]
[131.0]
[132.0]
[133.0]
[134.0]
[135.0]
[136.0]
[137.0]
[138.0]
[139.0]
[140.0]
[141.0]
[142.0]
[143.0]
[144.0]
[145.0]
[146.0]
[147.0]
[148.0]
[149.0]
[150.0]
[151.0]
[152.0]
[153.0]
[154.0]
[155.0]
[156.0]
[157.0]
[158.0]
[159.0]
[160.0]
[161.0]
[162.0]
[163.0]
[164.0]
[165.0]
[166.0]
[167.0]
[168.0]
[169.0]
[170.0]
[171.0]
[172.0]
[173.0]
[174.0]
[175.0]
[176.0]
[177.0]
[178.0]
[179.0]
[180.0]
[181.0]
[182.0]
[183.0]
[184.0]
[185.0]
[186.0]
[187.0]
[188.0]
[189.0]
[190.0]
[191.0]
[192.0]
[193.0]
[194.0]
[195.0]
[196.0]
[197.0]
[198.0]
[199.0]
[200.0]
[201.0]
[202.0]
[203.0]
[204.0]
[205.0]
[206.0]
[207.0]
[208.0]
[209.0]
[210.0]
[211.0]
[212.0]
[213.0]
[214.0]
[215.0]
[216.0]
[217.0]
[218.0]
[219.0]
[220.0]
[221.0]
[222.0]
[223.0]
[224.0]
[225.0]
[226.0]
[227.0]
[228.0]
[229.0]
[230.0]
[231.0]
[232.0]
[233.0]
[234.0]
[235.0]
[236.0]
[237.0]
[238.0]
[239.0]
[240.0]
[241.0]
[242.0]
[243.0]
[244.0]
[245.0]
[246.0]
[247.0]
[248.0]
[249.0]
[250.0]
[251.0]
[252.0]
[253.0]
[254.0]
[255.0]
[256.0]
[257.0]
[258.0]
[259.0]
[260.0]
[261.0]
[262.0]
[263.0]
[264.0]
[265.0]
[266.0]
[267.0]
[268.0]
[269.0]
[270.0]
[271.0]
[272.0]
[273.0]
[274.0]
[275.0]
[276.0]
[277.0]
[278.0]
[279.0]
[280.0]
[281.0]
[282.0]
[283.0]
[284.0]
[285.0]
[286.0]
[287.0]
[288.0]
[289.0]
[290.0]
[291.0]
[292.0]
[293.0]
[294.0]
[295.0]
[296.0]
[297.0]
[298.0]
[299.0]
[300.0]

{"sheet":"Ministry of Education","index":3,"n_rows":304,"n_cols":19,"rows_kept":304,"cut":false,"hidden":false,"merged":[[2,13,3,13],[2,14,3,16],[0,0,0,14],[0,17,0,18],[1,3,1,14],[2,0,3,0],[2,1,3,6],[2,7,3,7],[2,8,3,12],[2,17,3,18]]}
["COVID-19 RESPONSE FOR PREPAREDENESS",null,null,null,null,null,null,null,null,null,null,null,null,null,null,null,null,"DATE OF UPDATE:"]
[]
["#","NEEDS",null,null,null,null,null,null,"SUPPORT PROVIDED BY DEV PARTNERS",null,null,null,null,"Status","Georgraphic Coverage",null,null,"Contact Person (DONORS)"]
[]
[1.0,"Initiator","Description","PRODUCTS/REQUIREMENTS","NUMBER","BUDGET PER SUBJECT","BUDGET","Currency","Organization","Budget Provided","Currency","Assistance Type","Comment","1. Completed \n2. Agreed with the donor/partner - is currently in process \n3. Currently negotiating with donor/partner \n4. Exploring support opportunities","(Please, select from the list)\n\nCentral Level\nLocal Level (Please select the region or municipality)","(Please, select from the list)\n\n\nRegions","(Please, select from the list)\n\n\nMunicipalities ","DONOR","GOV"]
[2.0,"GIZ"," For the proper functioning of the economy, it is of utmost importance, on the one hand, to raise employment / self-employment and, on the other hand, to quick supply the private sector with the workforce. It is essential for the  system to quickly respond and recover, to ensure business development by conducting short-term training courses, as well as the rapid employment of the citizens."," Supplement to current technical assistance, in particular the procurement of expertise in the first component (local) and the procurement of equipment in the second component. ",null,null,150000.0,"EUR","GIZ/BMZ",150000.0,"EUR","TA/Expert Consultancy","The first component - central; Second - local colleges in different regions.","2. Agreed with the donor/partner - is currently in process ","Central Level"]
[3.0]
[4.0]
[5.0]
[6.0]
[7.0]
[8.0]
[9.0]
[10.0]
[11.0]
[12.0]
[13.0]
[14.0]
[15.0]
[16.0]
[17.0]
[18.0]
[19.0]
[20.0]
[21.0]
[22.0]
[23.0]
[24.0]
[25.0]
[26.0]
[27.0]
[28.0]
[29.0]
[30.0]
[31.0]
[32.0]
[33.0]
[34.0]
[35.0]
[36.0]
[37.0]
[38.0]
[39.0]
[40.0]
[41.0]
[42.0]
[43.0]
[44.0]
[45.0]
[46.0]
[47.0]
[48.0]
[49.0]
[50.0]
[51.0]
[52.0]
[53.0]
[54.0]
[55.0]
[56.0]
[57.0]
[58.0]
[59.0]
[60.0]
[61.0]
[62.0]
[63.0]
[64.0]
[65.0]
[66.0]
[67.0]
[68.0]
[69.0]
[70.0]
[71.0]
[72.0]
[73.0]
[74.0]
[75.0]
[76.0]
[77.0]
[78.0]
[79.0]
[80.0]
[81.0]
[82.0]
[83.0]
[84.0]
[85.0]
[86.0]
[87.0]
[88.0]
[89.0]
[90.0]
[91.0]
[92.0]
[93.0]
[94.0]
[95.0]
[96.0]
[97.0]
[98.0]
[99.0]
[100.0]
[101.0]
[102.0]
[103.0]
[104.0]
[105.0]
[106.0]
[107.0]
[108.0]
[109.0]
[110.0]
[111.0]
[112.0]
[113.0]
[114.0]
[115.0]
[116.0]
[117.0]
[118.0]
[119.0]
[120.0]
[121.0]
[122.0]
[123.0]
[124.0]
[125.0]
[126.0]
[127.0]
[128.0]
[129.0]
[130.0]
[131.0]
[132.0]
[133.0]
[134.0]
[135.0]
[136.0]
[137.0]
[138.0]
[139.0]
[140.0]
[141.0]
[142.0]
[143.0]
[144.0]
[145.0]
[146.0]
[147.0]
[148.0]
[149.0]
[150.0]
[151.0]
[152.0]
[153.0]
[154.0]
[155.0]
[156.0]
[157.0]
[158.0]
[159.0]
[160.0]
[161.0]
[162.0]
[163.0]
[164.0]
[165.0]
[166.0]
[167.0]
[168.0]
[169.0]
[170.0]
[171.0]
[172.0]
[173.0]
[174.0]
[175.0]
[176.0]
[177.0]
[178.0]
[179.0]
[180.0]
[181.0]
[182.0]
[183.0]
[184.0]
[185.0]
[186.0]
[187.0]
[188.0]
[189.0]
[190.0]
[191.0]
[192.0]
[193.0]
[194.0]
[195.0]
[196.0]
[197.0]
[198.0]
[199.0]
[200.0]
[201.0]
[202.0]
[203.0]
[204.0]
[205.0]
[206.0]
[207.0]
[208.0]
[209.0]
[210.0]
[211.0]
[212.0]
[213.0]
[214.0]
[215.0]
[216.0]
[217.0]
[218.0]
[219.0]
[220.0]
[221.0]
[222.0]
[223.0]
[224.0]
[225.0]
[226.0]
[227.0]
[228.0]
[229.0]
[230.0]
[231.0]
[232.0]
[233.0]
[234.0]
[235.0]
[236.0]
[237.0]
[238.0]
[239.0]
[240.0]
[241.0]
[242.0]
[243.0]
[244.0]
[245.0]
[246.0]
[247.0]
[248.0]
[249.0]
[250.0]
[251.0]
[252.0]
[253.0]
[254.0]
[255.0]
[256.0]
[257.0]
[258.0]
[259.0]
[260.0]
[261.0]
[262.0]
[263.0]
[264.0]
[265.0]
[266.0]
[267.0]
[268.0]
[269.0]
[270.0]
[271.0]
[272.0]
[273.0]
[274.0]
[275.0]
[276.0]
[277.0]
[278.0]
[279.0]
[280.0]
[281.0]
[282.0]
[283.0]
[284.0]
[285.0]
[286.0]
[287.0]
[288.0]
[289.0]
[290.0]
[291.0]
[292.0]
[293.0]
[294.0]
[295.0]
[296.0]
[297.0]
[298.0]
[299.0]
[300.0]

{"sheet":"Human Rights","index":4,"n_rows":279,"n_cols":19,"rows_kept":279,"cut":false,"hidden":false,"merged":[[29,1,30,1],[32,1,34,1],[32,2,34,2],[4,2,13,2],[14,2,17,2],[18,1,28,1],[18,2,22,2],[23,2,24,2],[25,2,26,2],[27,2,30,2],[1,14,2,16],[1,17,2,18],[5,8,6,8],[5,18,6,18],[0,0,0,14],[0,17,0,18],[1,0,2,0],[1,1,2,1],[1,2,2,7],[1,8,2,12],[1,13,2,13],[7,9,8,9],[7,10,8,10],[7,11,8,11],[7,12,8,12],[7,6,8,6],[9,6,11,6],[19,6,20,6],[9,7,11,7],[9,8,11,8],[9,9,11,9],[9,10,11,10],[9,11,11,11],[7,8,8,8],[12,8,15,8],[18,8,21,8],[19,9,20,9],[19,11,20,11],[4,1,8,1],[7,4,8,4],[7,5,8,5],[7,7,8,7],[9,1,11,1],[12,1,13,1],[14,1,16,1]]}
["COVID-19 RESPONSE FOR PREPAREDENESS",null,null,null,null,null,null,null,null,null,null,null,null,null,null,null,null,"DATE OF UPDATE:"]
["#",null,"NEEDS",null,null,null,null,null,"SUPPORT PROVIDED BY DEV PARTNERS",null,null,null,null,"Status","Georgraphic Coverage",null,null,"Contact Person (DONORS)"]
[]
[1.0,"Initiator","Description","PRODUCTS/REQUIREMENTS","NUMBER","BUDGET PER UNIT","TOTAL BUDGET","Currency","Organization","Budget Provided","Currency","Assistance Type","Comment","1. Completed \n2. Agreed with the donor/partner - is currently in process \n3. Currently negotiating with donor/partner \n4. Exploring support opportunities","Central Level or\nLocal Level (Please select the region or municipality)","(Please, select from the list)\nRegions","(Please, select from the list)\nMunicipalities","DONOR","GOV"]
[2.0,"Administration of the Government of Georgia","Access to Information: Technical support","Translation of web-platform www.StopCov.ge into Armenian language","N/A","N/A",{"$f":"J5","v":417},"EUR","COE / UNDP",417.0,"EUR","TA/Expert Consultancy","Web-page is being translated in parts. Some parts are ready, some are in progress ","2. Agreed with the donor/partner - is currently in process ",null,null,null,"COE: Nino Gobronidze - Nino.GOBRONIDZE@coe.int;\nUNDP: Tinatin Tkeshelashvili - tinatin.tkeshelashvili@undp.org","Lela Akiashvili;\nlakiashvili@gov.ge;\n599914323"]
[3.0,null,null,"Printing of the AOG prepared brochure “Frequently asked questions in quarantine zones” into Arm & Az languages ","Georgian - 15,000 \nArmenian - 10,000\nAzerbaijani - 10,000",null,{"$f":"J6","v":""},"","UNDP ",null,null,"TA/Expert Consultancy",null,"1. Completed",null,null,null,"UNDP: Tinatin Tkeshelashvili - tinatin.tkeshelashvili@undp.org","Lela Akiashvili;\nlakiashvili@gov.ge;\n599914323"]
[4.0,null,null,"Development of accessible version of StopCov.ge for persons with disabilities ",null,null,{"$f":"J7","v":""},"",null,null,null,"TA/Expert Consultancy",null,"3. Currently negotiating with donor/partner "]
[5.0,null,null,"Translation and printing of infomration material into minority languages","Georgian - 50,000 \nArmenian - 50,000\nAzerbaijani - 50,000",null,{"$f":"J8","v":4000},"USD","UNICEF",4000.0,"USD","TA/Expert Consultancy",null,"2. Agreed with the donor/partner - is currently in process "]
[6.0,null,null,"Translation and delivery of information to Roma communities",null,null,null,null,null,null,null,null,null,"2. Agreed with the donor/partner - is currently in process "]
[7.0,"UNDP",null,"Informational videos adapted with subtitles, sign language translation, translated in minority languages and in easy-readable formats for people with psycho-social needs",null,null,{"$f":"J10","v":20000},"USD","UNDP",20000.0,"USD","TA/Expert Consultancy"]
[8.0,null,null,"Information produced in easy-readable formats for people with psycho-social needs distributed in psychiatric phasilities and boarding houses"]
[9.0,null,null,"Videos for PwDs transmitted through public broadcasters"]
[10.0,"UN Women",null,"On-line platform on Facebook “Women against COVID-19” for spreading StopCov.ge information","1 unit",300.0,300.0,{"$f":"K13","v":"USD"},"UN Women",300.0,"USD","TA/Expert Consultancy",null,"3. Currently negotiating with donor/partner "]
[11.0,null,null,"Posters on COVID response printed in Armenian and Azerbaijani languages shared with grassroots’ communities in Kvemo Qartli and Samtskhe Javakheti","\nArmenian - 150\nAzerbaijani - 150",1.0,100.0,"USD",null,100.0,"USD","TA/Expert Consultancy",null,"3. Currently negotiating with donor/partner "]
[12.0,"Administration of the Government of Georgia","Access to Services for Vulnerable Groups: Victims of Domestic Violence","Scale up the capacity of domestic violence shelters by providing needs-based temporary rent-support for beneficiaries","20 units",300.0,6000.0,"USD",null,6000.0,"USD","TA/Expert Consultancy",null,"2. Agreed with the donor/partner - is currently in process ",null,null,null,null,"Lela Akiashvili;\nlakiashvili@gov.ge;\n599914323;\nMeri Maglaperidze;\n599161615"]
[13.0,null,null,"Development of post-crisis (post-shelter) support programmes for victims of domestic violence",null,null,16000.0,"USD",null,16000.0,"USD","TA/Expert Consultancy",null,"2. Agreed with the donor/partner - is currently in process ",null,null,null,null,"Lela Akiashvili;\nlakiashvili@gov.ge;\n599914323"]
[14.0,null,null,"Establish distance phsychological support services",null,null,null,null,null,null,null,null,null,"4. Exploring support opportunities"]
[15.0,"UN Women",null,"Support to the functioning of two NGO-run domestic violence crisis centers in Tsaishi and Telavi",null,null,{"$f":"J18","v":41000},"USD","UN Women",41000.0,"USD","TA/Expert Consultancy",null,"2. Agreed with the donor/partner - is currently in process "]
[16.0,"Administration of the Government of Georgia","Support to Vulnerable Groups: Persons with Disabilities","Distribution of hygiene and sanitation packages for Persons with impairment Disabilities in Tbilisi",null,null,{"$f":"J19","v":10000},"USD","UNDP",10000.0,"USD","TA/Expert Consultancy",null,"4. Exploring support opportunities","Central Level",null,null,null,"Lela Akiashvili;\nlakiashvili@gov.ge;\n599914323"]
[17.0,null,null,"Support to service-providers in developing distance services for Persons with Disabilities",null,null,{"$f":"J20","v":10000},"USD",null,10000.0,"USD","TA/Expert Consultancy",null,"2. Agreed with the donor/partner - is currently in process "]
[18.0,null,null,"Establish distance phsychological support services for PwDs",null,null,null,"USD",null,null,"USD",null,null,"2. Agreed with the donor/partner - is currently in process "]
[19.0,null,null,"Support in establishing protocols for treating PwD patients",null,null,{"$f":"J22","v":5000},"USD",null,5000.0,"USD","TA/Expert Consultancy",null,"2. Agreed with the donor/partner - is currently in process "]
[20.0,null,null,"Support parents of Children with Disabilities",null,null,{"$f":"J23","v":""},null,"UNICEF",null,null,null,null,"3. Currently negotiating with donor/partner "]
[21.0,null,"Support to Vulnerable Groups: Single Parents","Provide online training for single-parents in practical professions (Accounting; Personal Financing; Microsoft Programmes: Excel, PowerPoint, Word; Resume Writing; Project Management; English language; Coding; Data science) ",null,null,null,{"$f":"K24","v":""},null,null,null,null,null,"3. Currently negotiating with donor/partner ",null,null,null,null,"Lela Akiashvili;\nlakiashvili@gov.ge;\n599914323"]
[22.0,null,null,"Food/medical aid","4113 (single parents registered)",null,null,"",null,null,null,null,null,"3. Currently negotiating with donor/partner "]
[23.0,null,"Support to Vulnerable Groups: Persons involved in informal Economy","Provide online training for persons involved in informal economy in practical professions (Accounting; Personal Financing; Microsoft Programmes: Excel, PowerPoint, Word; Resume Writing; Project Management; English language; Coding; Data science) ",null,null,null,"",null,null,null,null,null,null,null,null,null,null,"Lela Akiashvili;\nlakiashvili@gov.ge;\n599914323"]
[24.0,null,null,"Create a skill-matching data-base to connect persons involved in informal economy with businesses and potential employers",null,null,null,"",null,null,null,null,null,null,null,null,null,null,"Lela Akiashvili;\nlakiashvili@gov.ge;\n599914323"]
[25.0,null,"Support to Vulnerable Groups: Women Groups and Civic Organizations in Regions","Small-scale grants for community organizations to address COVID-19 related priority needs for vulnurable families",null,null,null,""]
[26.0,null,null,"Food and medical aid support needed to Tetri Tskaro region, Village Kosalari","190 units","USD 30",5700.0,"USD",null,null,"USD",null,"THIS IS URGENT","4. Exploring support opportunities",null,null,null,null,"Chinara Kojaeva; 579 35 14 54 \nLela Akiashvili;\nlakiashvili@gov.ge;\n599914323"]
[27.0,"UN Women",null,"Training to enhance vulnerable women’s entrepreneurship and small-business skills ",null,null,null,""]
[28.0,null,null,"Small-scale grants for women, women’s groups and their community organizations across Georgia to address COVID-19 related priority needs",null,null,55000.0,"USD","UN Women",55000.0,"USD","Financial Assistance - Grant",null,"2. Agreed with the donor/partner - is currently in process "]
[29.0,"The State Ministry for Reconciliation and Civic Equality","Support to Vulnerable Groups: Roma Communities","Distribution of hygiene and sanitation packages for Roma communities in Gardabani, Dedoplistskharo, Tbilisi, Kobuleti, Kutaisi",null,null,16000.0,"USD","UNICEF",16000.0,"USD","Humanitarian Aid",null,"2. Agreed with the donor/partner - is currently in process "]
[30.0,null,"Support to Vulnerable Groups: IDPs","Distribution of hygiene and sanitation packages for IDP settelments",null,null,null,"",null,null,null,null,null,null,null,"Kvemo Kartli Region, Imereti, and Samegrelo-Zemo Svaneti","Gori, Kutaisi, Zugdidi"]
[31.0,null,null,"Distribution of information material for IDP settlements",null,null,null,"",null,null,null,null,null,null,null,"Kvemo Kartli Region, Imereti, and Samegrelo-Zemo Svaneti","Gori, Kutaisi, Zugdidi"]
[32.0,null,null,null,null,null,null,"",null,null,null,null,null,null,null,"Kvemo Kartli Region, Imereti, and Samegrelo-Zemo Svaneti","Gori, Kutaisi, Zugdidi"]
[33.0,null,null,null,null,null,null,""]
[34.0,null,null,null,null,null,null,""]
[35.0,null,null,null,null,null,null,""]
[36.0,null,null,null,null,null,null,""]
[37.0,null,null,null,null,null,null,""]
[38.0,null,null,null,null,null,null,""]
[39.0,null,null,null,null,null,null,""]
[40.0]
[41.0]
[42.0]
[43.0]
[44.0]
[45.0]
[46.0]
[47.0]
[48.0]
[49.0]
[50.0]
[51.0]
[52.0]
[53.0]
[54.0]
[55.0]
[56.0]
[57.0]
[58.0]
[59.0]
[60.0]
[61.0]
[62.0]
[63.0]
[64.0]
[65.0]
[66.0]
[67.0]
[68.0]
[69.0]
[70.0]
[71.0]
[72.0]
[73.0]
[74.0]
[75.0]
[76.0]
[77.0]
[78.0]
[79.0]
[80.0]
[81.0]
[82.0]
[83.0]
[84.0]
[85.0]
[86.0]
[87.0]
[88.0]
[89.0]
[90.0]
[91.0]
[92.0]
[93.0]
[94.0]
[95.0]
[96.0]
[97.0]
[98.0]
[99.0]
[100.0]
[101.0]
[102.0]
[103.0]
[104.0]
[105.0]
[106.0]
[107.0]
[108.0]
[109.0]
[110.0]
[111.0]
[112.0]
[113.0]
[114.0]
[115.0]
[116.0]
[117.0]
[118.0]
[119.0]
[120.0]
[121.0]
[122.0]
[123.0]
[124.0]
[125.0]
[126.0]
[127.0]
[128.0]
[129.0]
[130.0]
[131.0]
[132.0]
[133.0]
[134.0]
[135.0]
[136.0]
[137.0]
[138.0]
[139.0]
[140.0]
[141.0]
[142.0]
[143.0]
[144.0]
[145.0]
[146.0]
[147.0]
[148.0]
[149.0]
[150.0]
[151.0]
[152.0]
[153.0]
[154.0]
[155.0]
[156.0]
[157.0]
[158.0]
[159.0]
[160.0]
[161.0]
[162.0]
[163.0]
[164.0]
[165.0]
[166.0]
[167.0]
[168.0]
[169.0]
[170.0]
[171.0]
[172.0]
[173.0]
[174.0]
[175.0]
[176.0]
[177.0]
[178.0]
[179.0]
[180.0]
[181.0]
[182.0]
[183.0]
[184.0]
[185.0]
[186.0]
[187.0]
[188.0]
[189.0]
[190.0]
[191.0]
[192.0]
[193.0]
[194.0]
[195.0]
[196.0]
[197.0]
[198.0]
[199.0]
[200.0]
[201.0]
[202.0]
[203.0]
[204.0]
[205.0]
[206.0]
[207.0]
[208.0]
[209.0]
[210.0]
[211.0]
[212.0]
[213.0]
[214.0]
[215.0]
[216.0]
[217.0]
[218.0]
[219.0]
[220.0]
[221.0]
[222.0]
[223.0]
[224.0]
[225.0]
[226.0]
[227.0]
[228.0]
[229.0]
[230.0]
[231.0]
[232.0]
[233.0]
[234.0]
[235.0]
[236.0]
[237.0]
[238.0]
[239.0]
[240.0]
[241.0]
[242.0]
[243.0]
[244.0]
[245.0]
[246.0]
[247.0]
[248.0]
[249.0]
[250.0]
[251.0]
[252.0]
[253.0]
[254.0]
[255.0]
[256.0]
[257.0]
[258.0]
[259.0]
[260.0]
[261.0]
[262.0]
[263.0]
[264.0]
[265.0]
[266.0]
[267.0]
[268.0]
[269.0]
[270.0]
[271.0]
[272.0]
[273.0]
[274.0]
[275.0]
[276.0]

{"sheet":"Ministry of Health","index":5,"n_rows":309,"n_cols":18,"rows_kept":309,"cut":false,"hidden":false,"merged":[[2,13,3,15],[2,16,3,17],[5,1,30,1],[0,0,0,13],[0,16,0,17],[1,2,1,13],[2,0,3,0],[2,1,3,6],[2,7,3,11],[2,12,3,12]]}
["COVID-19 RESPONSE FOR PREPAREDENESS",null,null,null,null,null,null,null,null,null,null,null,null,null,null,null,"DATE OF UPDATE:"]
[]
["#","NEEDS",null,null,null,null,null,"SUPPORT PROVIDED BY DEV PARTNERS",null,null,null,null,"Status","Georgraphic Coverage",null,null,"Contact Person (DONORS)"]
[]
[1.0,"Initiator","PRODUCTS/REQUIREMENTS","NUMBER","BUDGET PER SUBJECT","BUDGET (GEL)","Currency","Organization","Budget provided","Currency","Assistance Type","Comment","1. Completed \n2. Agreed with the donor/partner - is currently in process \n3. Currently negotiating with donor/partner \n4. Exploring support opportunities","(Please, select from the list)\n\nCentral Level\nLocal Level (Please select the region or municipality)","(Please, select from the list)\n\n\nRegions","(Please, select from the list)\n\n\nMunicipalities","DONOR","GOV"]
[2.0,"Ministry of Health","Mechanical ventilation Unit, Mindray, SV300, with turbine, battery Powered, Interactive Color-Fluid Screen, for Adults and Pediatricians.",20.0,"20,000.00",400000.0,"GEL",null,null,null,"Material Assistance",null,"4. Exploring support opportunities",null,null,null,"Zhorzholiani Archil;\narchil.zhorzholiani@giz.de \n\n599686211","Tamar Gabunia; tgabunia@moh.gov.ge; 599071018"]
[3.0,null,"Hazmat suits","50,000",29.0,1450000.0,"GEL",null,null,null,"Material Assistance",null,"4. Exploring support opportunities"]
[4.0,null,"3-layer face masks","900,000",1.0,900000.0,"GEL","GIZ/BMZ",35000.0,"EUR","Material Assistance","GIZ/BMZ will provide 100,000 face masks out of 900,000","2. Agreed with the donor/partner - is currently in process "]
[null,null,null,null,null,null,null,"WHO","316,12","USD","Material Assistance","10,000 surgical masks and 200 masks type FFP2\n","1. Completed","Countrywide",null,null,"Silviu Domente\n domentes@who.int\n 599475485","Tamar Gabunia; tgabunia@moh.gov.ge; 599071018"]
[5.0,null,"Sanitizer dispenser solution","15,000 L",48.9,733500.0,"GEL","GIZ/BMZ",20000.0,"EUR","Material Assistance","GIZ/BMZ will provide 2,000 L out of 15,000 L","2. Agreed with the donor/partner - is currently in process "]
[6.0,null,"Non-contact thermometer","2,500",65.0,162500.0,"GEL",null,null,null,"Material Assistance",null,"4. Exploring support opportunities"]
[7.0,null,"Mechanical ventilation apparatus - Hamilton T1, transportable, with portable oxygen aluminum balloon, with corresponding reducer. Required for portable balloon and central system connection",10.0,"54,925.00",549250.0,"GEL",null,null,null,"Material Assistance",null,"4. Exploring support opportunities"]
[8.0,null,"Patient Monitor, Mindray, Umec 10, with Standard Monitoring Function (Saturation, ECG, Non-Invasive Pressure, Temperature, Pulse, Respiratory Rate)",20.0,"2,000.00",40000.0,"GEL",null,null,null,"Material Assistance",null,"4. Exploring support opportunities"]
[9.0,null,"\nNitrile glove","50,000",0.3,15000.0,"GEL","WHO","836,6","USD","Material Assistance","10,000 examination gloves of three sizes (M, L and XL)","1. Completed","Countrywide",null,null,"Silviu Domente\n domentes@who.int\n 599475485","Tamar Gabunia; tgabunia@moh.gov.ge; 599071018"]
[10.0,null,"Shoe covers - biological","10,000",6.0,60000.0,"GEL",null,null,null,"Material Assistance",null,"4. Exploring support opportunities"]
[11.0,null,"Goggle-type glasses","45,000",10.0,450000.0,"GEL","WHO",212.0,"USD","Material Assistance","200 protective goggles","1. Completed","Countrywide",null,null,"Silviu Domente\n domentes@who.int\n 599475485","Tamar Gabunia; tgabunia@moh.gov.ge; 599071018"]
[12.0,null,"Surgical coat","40,000",6.0,240000.0,"GEL","WHO",1056.0,"USD","Material Assistance","1400 gowns AAMI level 3, non sterile, disp, of two sizes (L and XL)","1. Completed","Countrywide",null,null,"Silviu Domente\n domentes@who.int\n 599475485","Tamar Gabunia; tgabunia@moh.gov.ge; 599071018"]
[13.0,null,"TOTAL","1,112,550","77,091.20",5000250.0,"GEL",null,null,null,null,null,"4. Exploring support opportunities"]
[]
[14.0,null,"Infectious Disease Hospital in Tbilisi: Refurbishment ",null,null,null,null,null,null,null,"Material Assistance"]
[null,null,"Infectious Disease Hospital in Tbilisi:   Hospital equipment & supplies for beds ",200.0,null,null,null,null,null,null,"Material Assistance"]
[15.0,null,"Central Republican Hospital in Tbilisi:  Reconstruction / refurbishment",null,null,null,null,null,null,null,"Material Assistance"]
[16.0,null,"Central Republican Hospital in Tbilisi:   Hospital equipment & for supplies beds ",350.0,null,null,null,null,null,null,"Material Assistance"]
[17.0,null,"Hospital in Rukhi, Samegrelo:  Hospital equipment &  supplies for beds ",350.0,null,null,null,null,null,null,"Material Assistance"]
[18.0,null,"Republican Hospital in Batumi, Adjara:  Hospital equipment and supplies for beds ",150.0,null,null,null,null,null,null,"Material Assistance"]
[19.0,null,"Personal Protective Equipment and Testing capacity building: i) Rapid Tests and reagents for PCR testing (including Cepheid cartridges); ii) access to needed supplies via global coordination mechanisms.",null,null,null,null,null,null,null,"Material Assistance"]
[20.0,null,"TA in strengthening emergency response capacity of hospitals and public health services: i) International TA in needs assessment, emergency response planning, monitoring and evaluation; ii) Improving infection prevention and control in local clinics, and improve capacity of physicians and nurses in managing severe COVID 19 ",null,null,null,null,"WHO",9756.0,"USD","TA/Expert Consultancy","Hospital Readiness Assessment","1. Completed","Countrywide",null,null,"Silviu Domente\n domentes@who.int\n 599475485","Tamar Gabunia; tgabunia@moh.gov.ge; 599071018"]
[null,null,null,null,null,null,null,"WHO",1274.0,"USD","TA/Expert Consultancy","Countribution to Tabletop Exercise in Batumi, organized by the ministry and NCDC","1. Completed","Countrywide",null,null,"Silviu Domente\n domentes@who.int\n 599475485","Tamar Gabunia; tgabunia@moh.gov.ge; 599071018"]
[null,null,null,null,null,null,null,"WHO",350.0,"USD","TA/Expert Consultancy","Distance training on clinical management of severe cases","1. Completed","Central Level",null,null,null,"Tamar Gabunia; tgabunia@moh.gov.ge; 599071018"]
[21.0,null,"Building information system for effective COVID 19 surveillance, data management and contact tracing systems. (These systems can be built on existing e-government structures). ","TBD","TBD","TBD",null,null,null,null,"TA/Expert Consultancy",null,"3. Currently negotiating with donor/partner ","Countrywide",null,null,"Salome Odisharia, GRF Project Manager                                                                                                                                          E-mail: salome.odisharia@undp.org                                                                                                                                                                                Cell: 577798707                                                                                                                                                                                Naniko Tsiklauri, PAR Project Manager\nCell: +599 545259\nE-mail: nana.tsiklauri@undp.org\n                   "]
[22.0,null,"Strengthening first-point-of contact strategy for possible COVID-19 cases: The main options for first contact strategy include a centralized hotline, an online platform, and physical locations in specially established temporary centres or primary care facilities. Assistance is needed to build capacity of primary care providers, develop call centers which have clear algorithms and visual aids to triage calls and indicate the appropriate patient pathway. ","TBD","TBD","TBD",null,"UNDP Georgia ",null,null,"TA/Expert Consultancy",null,"3. Currently negotiating with donor/partner ","Countrywide",null,null,"Salome Odisharia, GRF Project Manager                                                                                                                                          E-mail: salome.odisharia@undp.org                                                                                                                                                                                Cell: 577798707                                                                                                                                                                                Naniko Tsiklauri, PAR Project Manager\nCell: +599 545259\nE-mail: nana.tsiklauri@undp.org\n                   "]
[23.0,null,null,null,null,null,null,"WHO",1700.0,"USD","Others","Translation and printing of communication materials","1. Completed","Countrywide",null,null,"Silviu Domente\n domentes@who.int\n 599475","Tamar Gabunia; tgabunia@moh.gov.ge; 599071018"]
[24.0]
[25.0]
[26.0]
[27.0]
[28.0]
[29.0]
[30.0]
[31.0]
[32.0]
[33.0]
[34.0]
[35.0]
[36.0]
[37.0]
[38.0]
[39.0]
[40.0]
[41.0]
[42.0]
[43.0]
[44.0]
[45.0]
[46.0]
[47.0]
[48.0]
[49.0]
[50.0]
[51.0]
[52.0]
[53.0]
[54.0]
[55.0]
[56.0]
[57.0]
[58.0]
[59.0]
[60.0]
[61.0]
[62.0]
[63.0]
[64.0]
[65.0]
[66.0]
[67.0]
[68.0]
[69.0]
[70.0]
[71.0]
[72.0]
[73.0]
[74.0]
[75.0]
[76.0]
[77.0]
[78.0]
[79.0]
[80.0]
[81.0]
[82.0]
[83.0]
[84.0]
[85.0]
[86.0]
[87.0]
[88.0]
[89.0]
[90.0]
[91.0]
[92.0]
[93.0]
[94.0]
[95.0]
[96.0]
[97.0]
[98.0]
[99.0]
[100.0]
[101.0]
[102.0]
[103.0]
[104.0]
[105.0]
[106.0]
[107.0]
[108.0]
[109.0]
[110.0]
[111.0]
[112.0]
[113.0]
[114.0]
[115.0]
[116.0]
[117.0]
[118.0]
[119.0]
[120.0]
[121.0]
[122.0]
[123.0]
[124.0]
[125.0]
[126.0]
[127.0]
[128.0]
[129.0]
[130.0]
[131.0]
[132.0]
[133.0]
[134.0]
[135.0]
[136.0]
[137.0]
[138.0]
[139.0]
[140.0]
[141.0]
[142.0]
[143.0]
[144.0]
[145.0]
[146.0]
[147.0]
[148.0]
[149.0]
[150.0]
[151.0]
[152.0]
[153.0]
[154.0]
[155.0]
[156.0]
[157.0]
[158.0]
[159.0]
[160.0]
[161.0]
[162.0]
[163.0]
[164.0]
[165.0]
[166.0]
[167.0]
[168.0]
[169.0]
[170.0]
[171.0]
[172.0]
[173.0]
[174.0]
[175.0]
[176.0]
[177.0]
[178.0]
[179.0]
[180.0]
[181.0]
[182.0]
[183.0]
[184.0]
[185.0]
[186.0]
[187.0]
[188.0]
[189.0]
[190.0]
[191.0]
[192.0]
[193.0]
[194.0]
[195.0]
[196.0]
[197.0]
[198.0]
[199.0]
[200.0]
[201.0]
[202.0]
[203.0]
[204.0]
[205.0]
[206.0]
[207.0]
[208.0]
[209.0]
[210.0]
[211.0]
[212.0]
[213.0]
[214.0]
[215.0]
[216.0]
[217.0]
[218.0]
[219.0]
[220.0]
[221.0]
[222.0]
[223.0]
[224.0]
[225.0]
[226.0]
[227.0]
[228.0]
[229.0]
[230.0]
[231.0]
[232.0]
[233.0]
[234.0]
[235.0]
[236.0]
[237.0]
[238.0]
[239.0]
[240.0]
[241.0]
[242.0]
[243.0]
[244.0]
[245.0]
[246.0]
[247.0]
[248.0]
[249.0]
[250.0]
[251.0]
[252.0]
[253.0]
[254.0]
[255.0]
[256.0]
[257.0]
[258.0]
[259.0]
[260.0]
[261.0]
[262.0]
[263.0]
[264.0]
[265.0]
[266.0]
[267.0]
[268.0]
[269.0]
[270.0]
[271.0]
[272.0]
[273.0]
[274.0]
[275.0]
[276.0]
[277.0]
[278.0]
[279.0]
[280.0]
[281.0]
[282.0]
[283.0]
[284.0]
[285.0]
[286.0]
[287.0]
[288.0]
[289.0]
[290.0]
[291.0]
[292.0]
[293.0]
[294.0]
[295.0]
[296.0]
[297.0]
[298.0]
[299.0]
[300.0]

{"sheet":"Humanitarian Aid","index":6,"n_rows":285,"n_cols":21,"rows_kept":285,"cut":false,"hidden":false,"merged":[[2,16,3,18],[2,19,3,20],[5,1,8,1],[5,2,8,2],[5,3,8,3],[10,2,11,2],[12,1,21,1],[12,2,21,2],[0,0,0,16],[0,19,0,20],[1,3,1,16],[2,0,3,0],[2,1,3,8],[2,9,3,14],[2,15,3,15]]}
["COVID-19 RESPONSE FOR PREPAREDENESS",null,null,null,null,null,null,null,null,null,null,null,null,null,null,null,null,null,null,"DATE OF UPDATE:"]
[]
["#","NEEDS",null,null,null,null,null,null,null,"SUPPORT PROVIDED BY DEV PARTNERS",null,null,null,null,null,"Status","Georgraphic Coverage",null,null,"Contact Person (DONORS)"]
[]
[1.0,"Initiator","Description","PRODUCTS/REQUIREMENTS","NUMBER","BUDGET PER UNIT","TOTAL BUDGET","Currency",null,"Organization","Budget Provided","Currency","Budget Provided","Assistance Type","Comment","1. Completed \n2. Agreed with the donor/partner - is currently in process \n3. Currently negotiating with donor/partner \n4. Exploring support opportunities","(Please, select from the list)\n\nCentral Level\nLocal Level (Please select the region or municipality)","(Please, select from the list)\n\n\nRegions","(Please, select from the list)\n\n\nMunicipalities","DONOR","GOV"]
[2.0,"World Vision Georgia","World Vision Georgia is implementing long-term programs in Tbilisi, Samtskhe Javakheti, Kakheti and Imereti regions with the aim to buttress child protection systems, strengthen communities and assist the most vulnerable families. With the spread of COVID-19, each program has a detailed list (with names) of all families where food and hygiene packages should be delivered.","Food and Hygiene Aid",300.0,null,null,null,null,null,null,null,null,"Humanitarian Aid",null,"2. Agreed with the donor/partner - is currently in process ","Local Level","Samtskhe - Javakheti Region","Akhaltsikhe Municipality","Development Center Director of Samtskhe-Javakheti, Ms. Nino Lomidze - 595 338 555","Sozar Subari"]
[3.0,null,null,null,350.0,null,null,null,null,null,null,null,null,"Humanitarian Aid",null,"2. Agreed with the donor/partner - is currently in process ","Local Level","Imereti Region","Kutaisi Municipality","Development Center Director of Imereti, Mr. Davit Chkhobadze - 514 559 595","Sozar Subari"]
[4.0,null,null,null,309.0,null,null,null,null,null,null,null,null,"Humanitarian Aid",null,"2. Agreed with the donor/partner - is currently in process ","Local Level","Kakheti Region","Telavi Municipality","Development Center Director of Kakheti, Ms. Nana Atuashvili - 593 170 319","Sozar Subari"]
[5.0,null,null,null,637.0,null,null,null,null,null,null,null,null,"Humanitarian Aid","In addition, World Vision Georgia provides support for food and hygiene packages for the following vulnerable children:\n\n1.Street children identified by mobile groups as well as daycare beneficiaries: A total of 150 children will benefit from this program. Contact Person: Maya Mgeliashvili, Tel: 593 380 777\n2.Beneficiaries registered under the UNHCR-funded program: Asylum seekers housed in Martkopi Center: 50 beneficiaries and refugees, humanitarian and stateless persons - 25 beneficiaries. Contact Person: Maka Tatuashvili, Tel: 599 731 020\nEka Gurgenidze - 577 052 084","2. Agreed with the donor/partner - is currently in process ","Local Level","Tbilisi","Tbilisi Municipality","Tbilisi Regional Development Project Manager, Ms. Natia Mzhavanadze - 595 322 771","Sozar Subari"]
[6.0,"Administration of the Government","Food and medical aid in Regions","Food and medical aid support needed to Tetri Tskaro region, Village Kosalari",200.0,40.0,8000.0,"USD",null,null,null,null,null,"Humanitarian Aid","THIS IS URGENT","4. Exploring support opportunities","Local Level","Kvemo Kartli Region","Tetritskaro Municipality",null,"Lela Akiashvili;\nlakiashvili@gov.ge;\n599914323"]
[7.0,null,"Food and medical aid in Tbilisi","Food and medical supplies needed to a single mother of four (598 12 69 29)",3.0,40.0,120.0,"USD",null,null,null,null,null,"Humanitarian Aid",null,"4. Exploring support opportunities","Central Level","Tbilisi","Tbilisi Municipality","598 12 69 20 (თავად ბენეფიციარის საკონტაქტო ნომერი)","Lela Akiashvili;\nlakiashvili@gov.ge;\n599914323"]
[8.0,null,null,"Food and rent-support is needed to a single mother of one 558375151 (ჟანა ვახტანგიშვილი)",1.0,40.0,40.0,"USD",null,null,null,null,null,"Humanitarian Aid"]
[null,"Georgia Red Cross Society"," Georgia Red Cross Society ensures permanent linkage with the relevant authorities at both local and central levels to contribute to solving COVID-19 problems in the country.","Providing permanent information campaign to the population about the ways and safety measures for the spread of coronavirus (COVID-19), as well as the importance of self-isolation, social stigma, coping with stress with Georgian, Azerbaijani, Armenian and Abkhazian language flyers and videos distribution, social media, various TV inclusions. ","More than 1,200,000 people received direct information through the information campaign.",null,null,null,null,null,null,null,null,"Others"]
[10.0,null,null,"Ensuring continue of mobilizing,  retraining and management of Spontaneous volunteers. Currently, volunteer training continues with the use of a specially designed online platform (https://help.redcross.ge/), which provides information on: Coronavirus overview, ways to transfer, personal safety standards, rules for using personal safety equipment, social stigma, self-isolation principles and stress management. It should be noted that properly trained and equipped volunteers were fully involved in the process of thermo-screening at various border checkpoints.","Up to 200 people daily, including registered on hotline at Tbilisi City Hall",null,null,null,null,null,null,null,null,"Others"]
[11.0,null,null,"Implementing of regular monitoring of the body temperature of persons living in quarantine in Batumi and the data collected is transmitted to the Batumi branch of the National Agency for Disease Control and Public Health for supervision. ","On average 500 patients per day",null,null,null,null,null,null,null,null,"Others",null,null,null,"Autonomous Republic of Adjara","Batumi Municipality"]
[12.0,null,null,"Relevant services are provided by trained volunteers to people in need of psychological assistance, including those in self-isolation, to deal with panic and stress, and to reduce stigma. ","Hotline service is activated (0 800 000 018).",null,null,null,null,null,null,null,null,"Others"]
[13.0,null,null,"Food and hygiene items are being collected and handed over to those living in isolation and quarantine, as well as to the elderly and those with disabilities who are over 70 years old alone and with chronic illnesses","Up to 10,000 people in Tbilisi and more than 15,000 people in 35-various municipalities of Georgia",null,null,null,null,null,null,null,null,"Others"]
[14.0,null,null,"Implementing home care for the vulnerable and chronically ill, as well as for people in social needs. ","Home volunteer service is provided at the base of 20 Red Cross Society's branches in Georgia.",null,null,null,null,null,null,null,null,"Others"]
[15.0,null,null,"Queues are arranged by volunteers in banks as well as in various commercial establishments to ensure social distance."," Up to 1100 units",null,null,null,null,null,null,null,null,"Others"]
[16.0,null,null,"Information sessions are held periodically for media representatives to discuss risk communication and security rules for journalists",null,null,null,null,null,null,null,null,null,"Others"]
[17.0,null,null,"Information meetings are held regularly with international humanitarian organizations such as UN agencies (UNHCR, UNICEF), as well as Care International, Save the Children; Action Against Hunger to coordinateand in order to avoid duplication in response activities. The meetings are also attended by representatives of the Ministry of Internally Displaced Persons from the Occupied Territories, Ministry of Labor, Health and Social Affairs of Georgia and the International Health Organization, who inform participants about the current situation and joint response measures.",null,null,null,null,null,null,null,null,null,"Others"]
[18.0,null,null,"Active negotiations are underway with such as the Korean and Chinese Red Cross national societies, on the need to provide Georgia with rapid coronavirus tests for mass testing of Georgian populations in case of need.",null,null,null,null,null,null,null,null,null,"Others"]
[19.0]
[20.0]
[21.0]
[22.0]
[23.0]
[24.0]
[25.0]
[26.0]
[27.0]
[28.0]
[29.0]
[30.0]
[31.0]
[32.0]
[33.0]
[34.0]
[35.0]
[36.0]
[37.0]
[38.0]
[39.0]
[40.0]
[41.0]
[42.0]
[43.0]
[44.0]
[45.0]
[46.0]
[47.0]
[48.0]
[49.0]
[50.0]
[51.0]
[52.0]
[53.0]
[54.0]
[55.0]
[56.0]
[57.0]
[58.0]
[59.0]
[60.0]
[61.0]
[62.0]
[63.0]
[64.0]
[65.0]
[66.0]
[67.0]
[68.0]
[69.0]
[70.0]
[71.0]
[72.0]
[73.0]
[74.0]
[75.0]
[76.0]
[77.0]
[78.0]
[79.0]
[80.0]
[81.0]
[82.0]
[83.0]
[84.0]
[85.0]
[86.0]
[87.0]
[88.0]
[89.0]
[90.0]
[91.0]
[92.0]
[93.0]
[94.0]
[95.0]
[96.0]
[97.0]
[98.0]
[99.0]
[100.0]
[101.0]
[102.0]
[103.0]
[104.0]
[105.0]
[106.0]
[107.0]
[108.0]
[109.0]
[110.0]
[111.0]
[112.0]
[113.0]
[114.0]
[115.0]
[116.0]
[117.0]
[118.0]
[119.0]
[120.0]
[121.0]
[122.0]
[123.0]
[124.0]
[125.0]
[126.0]
[127.0]
[128.0]
[129.0]
[130.0]
[131.0]
[132.0]
[133.0]
[134.0]
[135.0]
[136.0]
[137.0]
[138.0]
[139.0]
[140.0]
[141.0]
[142.0]
[143.0]
[144.0]
[145.0]
[146.0]
[147.0]
[148.0]
[149.0]
[150.0]
[151.0]
[152.0]
[153.0]
[154.0]
[155.0]
[156.0]
[157.0]
[158.0]
[159.0]
[160.0]
[161.0]
[162.0]
[163.0]
[164.0]
[165.0]
[166.0]
[167.0]
[168.0]
[169.0]
[170.0]
[171.0]
[172.0]
[173.0]
[174.0]
[175.0]
[176.0]
[177.0]
[178.0]
[179.0]
[180.0]
[181.0]
[182.0]
[183.0]
[184.0]
[185.0]
[186.0]
[187.0]
[188.0]
[189.0]
[190.0]
[191.0]
[192.0]
[193.0]
[194.0]
[195.0]
[196.0]
[197.0]
[198.0]
[199.0]
[200.0]
[201.0]
[202.0]
[203.0]
[204.0]
[205.0]
[206.0]
[207.0]
[208.0]
[209.0]
[210.0]
[211.0]
[212.0]
[213.0]
[214.0]
[215.0]
[216.0]
[217.0]
[218.0]
[219.0]
[220.0]
[221.0]
[222.0]
[223.0]
[224.0]
[225.0]
[226.0]
[227.0]
[228.0]
[229.0]
[230.0]
[231.0]
[232.0]
[233.0]
[234.0]
[235.0]
[236.0]
[237.0]
[238.0]
[239.0]
[240.0]
[241.0]
[242.0]
[243.0]
[244.0]
[245.0]
[246.0]
[247.0]
[248.0]
[249.0]
[250.0]
[251.0]
[252.0]
[253.0]
[254.0]
[255.0]
[256.0]
[257.0]
[258.0]
[259.0]
[260.0]
[261.0]
[262.0]
[263.0]
[264.0]
[265.0]
[266.0]
[267.0]
[268.0]
[269.0]
[270.0]
[271.0]
[272.0]
[273.0]
[274.0]
[275.0]
[276.0]
[277.0]
[278.0]
[279.0]
[280.0]
[281.0]

{"sheet":"Ministry of Defence","index":7,"n_rows":299,"n_cols":21,"rows_kept":299,"cut":false,"hidden":false,"merged":[[2,16,3,18],[2,19,3,20],[5,1,27,1],[5,2,27,2],[5,3,19,3],[20,3,25,3],[26,3,27,3],[0,0,0,16],[0,19,0,20],[1,4,1,16],[2,0,3,0],[2,1,3,9],[2,10,3,14],[2,15,3,15]]}
["COVID-19 RESPONSE FOR PREPAREDENESS",null,null,null,null,null,null,null,null,null,null,null,null,null,null,null,null,null,null,"DATE OF UPDATE:"]
[]
["#","NEEDS",null,null,null,null,null,null,null,null,"SUPPORT PROVIDED BY DEV PARTNERS",null,null,null,null,"Status","Georgraphic Coverage",null,null,"Contact Person (DONORS)"]
[]
[1.0,"Initiator","Description","Purpose","PRODUCTS/REQUIREMENTS\n(Purpose)","NUMBER","BUDGET PER SUBJECT","BUDGET","Currency",null,"Organization","Budget Provided","Currency","Assistance Type","Comment","1. Completed \n2. Agreed with the donor/partner - is currently in process \n3. Currently negotiating with donor/partner \n4. Exploring support opportunities","(Please, select from the list)\n\nCentral Level\nLocal Level (Please select the region or municipality)","(Please, select from the list)\n\nRegions","(Please, select from the list)\n\nMunicipalities","DONOR","GOV"]
[2.0,"Ministry of Defence"," Calculation of the Tangible Assets for the 100 Checkpoints of the Defence Forces","Accomodation and Hygiene","Camp (20 person)\nAccomodation",100.0,null,null,null,null,null,null,null,"Material Assistance",null,"4. Exploring support opportunities"]
[3.0,null,null,null,"Camp (20/10 person)\nField DFAC/Dining Facility",100.0,null,null,null,null,null,null,null,"Material Assistance",null,"4. Exploring support opportunities"]
[4.0,null,null,null,"Camp (20 person)\nMedical",100.0,null,null,null,null,null,null,null,"Material Assistance",null,"4. Exploring support opportunities"]
[5.0,null,null,null,"Bed\nField",2500.0,null,null,null,null,null,null,null,"Material Assistance",null,"4. Exploring support opportunities"]
[6.0,null,null,null,"Face Basin/Sink\nwith 10 sections",100.0,null,null,null,null,null,null,null,"Material Assistance",null,"4. Exploring support opportunities"]
[7.0,null,null,null,"Bio-Toilet\nfor men - 2; for women -1",300.0,null,null,null,null,null,null,null,"Material Assistance",null,"4. Exploring support opportunities"]
[8.0,null,null,null,"Generator\n>5.5 KW",100.0,null,null,null,null,null,null,null,"Material Assistance",null,"4. Exploring support opportunities"]
[9.0,null,null,null,"Heater\n2 units in one camp",600.0,null,null,null,null,null,null,null,"Material Assistance",null,"4. Exploring support opportunities"]
[10.0,null,null,null,"Fire Extinguisher (8kg)\nfor camps",300.0,null,null,null,null,null,null,null,"Material Assistance",null,"4. Exploring support opportunities"]
[11.0,null,null,null,"Refrigerator\nwith glass door",100.0,null,null,null,null,null,null,null,"Material Assistance",null,"4. Exploring support opportunities"]
[12.0,null,null,null,"Electric Kettle\n220V",100.0,null,null,null,null,null,null,null,"Material Assistance",null,"4. Exploring support opportunities"]
[13.0,null,null,null,"Thermometer\nMercury",200.0,null,null,null,null,null,null,null,"Material Assistance",null,"4. Exploring support opportunities"]
[14.0,null,null,null,"Disinfectent Dispenser\nDisinfection",500.0,null,null,null,null,null,null,null,"Material Assistance",null,"4. Exploring support opportunities"]
[15.0,null,null,null,"Electronic Thermometer \nfor control",200.0,null,null,null,null,null,null,null,"Material Assistance",null,"4. Exploring support opportunities"]
[16.0,null,null,null,"Laser/Infrared Thermometer\nfor control",200.0,null,null,null,null,null,null,null,"Material Assistance",null,"4. Exploring support opportunities"]
[21.0,null,null,"For Road Blocking","Barrier\nPlastic/Blocks",1200.0,null,null,null,null,null,null,null,"Material Assistance",null,"4. Exploring support opportunities"]
[22.0,null,null,null,"Pointer\nProhibitory",200.0,null,null,null,null,null,null,null,"Material Assistance",null,"4. Exploring support opportunities"]
[23.0,null,null,null,"Pointer\nProhibitory, Hand-held",200.0,null,null,null,null,null,null,null,"Material Assistance",null,"4. Exploring support opportunities"]
[24.0,null,null,null,"Projector\n>150V",400.0,null,null,null,null,null,null,null,"Material Assistance",null,"4. Exploring support opportunities"]
[25.0,null,null,null,"Loud-Hailer/Megaphone\nVoicing",100.0,null,null,null,null,null,null,null,"Material Assistance",null,"4. Exploring support opportunities"]
[26.0,null,null,null,"Barbed-wire\n20 m roll",100.0,null,null,null,null,null,null,null,"Material Assistance",null,"4. Exploring support opportunities"]
[28.0,null,null,"Rapidly Consuming Items (Daily Expenditure)","Mask\nMedical",7500.0,null,null,null,null,null,null,null,"Material Assistance",null,"4. Exploring support opportunities"]
[29.0,null,null,null,"Gloves\nDisposable",7500.0,null,null,null,null,null,null,null,"Material Assistance",null,"4. Exploring support opportunities"]
[30.0,null,null,null,"Man portable thermal fogging machine\nman-portable, has to dispense both - water and oil-based chemicals ",40.0,null,null,null,null,null,null,null,"Material Assistance",null,"4. Exploring support opportunities"]
[31.0]
[32.0]
[33.0]
[34.0]
[35.0]
[36.0]
[37.0]
[38.0]
[39.0]
[40.0]
[41.0]
[42.0]
[43.0]
[44.0]
[45.0]
[46.0]
[47.0]
[48.0]
[49.0]
[50.0]
[51.0]
[52.0]
[53.0]
[54.0]
[55.0]
[56.0]
[57.0]
[58.0]
[59.0]
[60.0]
[61.0]
[62.0]
[63.0]
[64.0]
[65.0]
[66.0]
[67.0]
[68.0]
[69.0]
[70.0]
[71.0]
[72.0]
[73.0]
[74.0]
[75.0]
[76.0]
[77.0]
[78.0]
[79.0]
[80.0]
[81.0]
[82.0]
[83.0]
[84.0]
[85.0]
[86.0]
[87.0]
[88.0]
[89.0]
[90.0]
[91.0]
[92.0]
[93.0]
[94.0]
[95.0]
[96.0]
[97.0]
[98.0]
[99.0]
[100.0]
[101.0]
[102.0]
[103.0]
[104.0]
[105.0]
[106.0]
[107.0]
[108.0]
[109.0]
[110.0]
[111.0]
[112.0]
[113.0]
[114.0]
[115.0]
[116.0]
[117.0]
[118.0]
[119.0]
[120.0]
[121.0]
[122.0]
[123.0]
[124.0]
[125.0]
[126.0]
[127.0]
[128.0]
[129.0]
[130.0]
[131.0]
[132.0]
[133.0]
[134.0]
[135.0]
[136.0]
[137.0]
[138.0]
[139.0]
[140.0]
[141.0]
[142.0]
[143.0]
[144.0]
[145.0]
[146.0]
[147.0]
[148.0]
[149.0]
[150.0]
[151.0]
[152.0]
[153.0]
[154.0]
[155.0]
[156.0]
[157.0]
[158.0]
[159.0]
[160.0]
[161.0]
[162.0]
[163.0]
[164.0]
[165.0]
[166.0]
[167.0]
[168.0]
[169.0]
[170.0]
[171.0]
[172.0]
[173.0]
[174.0]
[175.0]
[176.0]
[177.0]
[178.0]
[179.0]
[180.0]
[181.0]
[182.0]
[183.0]
[184.0]
[185.0]
[186.0]
[187.0]
[188.0]
[189.0]
[190.0]
[191.0]
[192.0]
[193.0]
[194.0]
[195.0]
[196.0]
[197.0]
[198.0]
[199.0]
[200.0]
[201.0]
[202.0]
[203.0]
[204.0]
[205.0]
[206.0]
[207.0]
[208.0]
[209.0]
[210.0]
[211.0]
[212.0]
[213.0]
[214.0]
[215.0]
[216.0]
[217.0]
[218.0]
[219.0]
[220.0]
[221.0]
[222.0]
[223.0]
[224.0]
[225.0]
[226.0]
[227.0]
[228.0]
[229.0]
[230.0]
[231.0]
[232.0]
[233.0]
[234.0]
[235.0]
[236.0]
[237.0]
[238.0]
[239.0]
[240.0]
[241.0]
[242.0]
[243.0]
[244.0]
[245.0]
[246.0]
[247.0]
[248.0]
[249.0]
[250.0]
[251.0]
[252.0]
[253.0]
[254.0]
[255.0]
[256.0]
[257.0]
[258.0]
[259.0]
[260.0]
[261.0]
[262.0]
[263.0]
[264.0]
[265.0]
[266.0]
[267.0]
[268.0]
[269.0]
[270.0]
[271.0]
[272.0]
[273.0]
[274.0]
[275.0]
[276.0]
[277.0]
[278.0]
[279.0]
[280.0]
[281.0]
[282.0]
[283.0]
[284.0]
[285.0]
[286.0]
[287.0]
[288.0]
[289.0]
[290.0]
[291.0]
[292.0]
[293.0]
[294.0]
[295.0]
[296.0]
[297.0]
[298.0]
[299.0]
[300.0]

{"sheet":"MRDI","index":8,"n_rows":304,"n_cols":20,"rows_kept":304,"cut":false,"hidden":false,"merged":[[2,15,3,17],[2,18,3,19],[5,1,27,1],[5,2,15,2],[16,2,26,2],[0,0,0,15],[0,18,0,19],[1,3,1,15],[2,0,3,0],[2,1,3,8],[2,9,3,13],[2,14,3,14]]}
["COVID-19 RESPONSE FOR PREPAREDENESS",null,null,null,null,null,null,null,null,null,null,null,null,null,null,null,null,null,"DATE OF UPDATE:"]
[]
["#","NEEDS",null,null,null,null,null,null,null,"SUPPORT PROVIDED BY DEV PARTNERS",null,null,null,null,"Status","Georgraphic Coverage",null,null,"Contact Person (DONORS)"]
[]
[1.0,"Initiator","Description/Purpose","PRODUCTS/REQUIREMENTS","NUMBER","BUDGET PER SUBJECT","BUDGET","Currency",null,"Organization","Budget Provided","Currency","Assistance Type","Comment","1. Completed \n2. Agreed with the donor/partner - is currently in process \n3. Currently negotiating with donor/partner \n4. Exploring support opportunities","(Please, select from the list)\n\nCentral Level\nLocal Level (Please select the region or municipality)","(Please, select from the list)\n\nRegions","(Please, select from the list)\n\nMunicipalities","DONOR","GOV"]
[2.0,"Ministry of Regional Development and Infrastructure of Georgia","UWSCG provides the population with water and wastewater servises across the country. For the proper functioning of the company it is of utmost important to have the following materials to prevent the spread of Covid-19.","Disinfiction liquid for hand",300.0,null,null,null,null,"SDC/ADC/UNDP",null,null,"Material Assistance",null,"3. Currently negotiating with donor/partner ","Countrywide",null,null,null,"Ann Onashvili 599692090 (UWSCG)"]
[3.0,null,null,"Disinfiction liquid for furniture",250.0,null,null,null,null,"SDC/ADC/UNDP",null,null,"Material Assistance",null,"3. Currently negotiating with donor/partner ","Countrywide",null,null,null,"Ann Onashvili 599692090 (UWSCG)"]
[4.0,null,null,"Disinfiction liquid for floor",120.0,null,null,null,null,"SDC/ADC/UNDP",null,null,"Material Assistance",null,"3. Currently negotiating with donor/partner ","Countrywide",null,null,null,"Ann Onashvili 599692090 (UWSCG)"]
[5.0,null,null,"Overal suit (antibacterial)",150.0,null,null,null,null,"SDC/ADC/UNDP",null,null,"Material Assistance",null,"3. Currently negotiating with donor/partner ","Countrywide",null,null,null,"Ann Onashvili 599692090 (UWSCG)"]
[6.0,null,null,"Protective glasses",1000.0,null,null,null,null,"SDC/ADC/UNDP",null,null,"Material Assistance",null,"3. Currently negotiating with donor/partner ","Countrywide",null,null,null,"Ann Onashvili 599692090 (UWSCG)"]
[7.0,null,null,"Face masks",30000.0,null,null,null,null,"SDC/ADC/UNDP",null,null,"Material Assistance",null,"3. Currently negotiating with donor/partner ","Countrywide",null,null,null,"Ann Onashvili 599692090 (UWSCG)"]
[8.0]
[9.0]
[10.0]
[11.0]
[12.0]
[13.0,null,"\nThe MRDI is awaiting the economic recovery plan, which is under preparation already. As per our communication, the document will cover regional and municipal needs, priorities both at central and local levels. MRDI stands ready to adjust its donor funded activities accordingly. \n  "]
[14.0]
[15.0]
[16.0]
[17.0]
[18.0]
[19.0]
[20.0]
[21.0]
[22.0]
[23.0]
[24.0]
[25.0]
[26.0]
[27.0]
[28.0]
[29.0]
[30.0]
[31.0]
[32.0]
[33.0]
[34.0]
[35.0]
[36.0]
[37.0]
[38.0]
[39.0]
[40.0]
[41.0]
[42.0]
[43.0]
[44.0]
[45.0]
[46.0]
[47.0]
[48.0]
[49.0]
[50.0]
[51.0]
[52.0]
[53.0]
[54.0]
[55.0]
[56.0]
[57.0]
[58.0]
[59.0]
[60.0]
[61.0]
[62.0]
[63.0]
[64.0]
[65.0]
[66.0]
[67.0]
[68.0]
[69.0]
[70.0]
[71.0]
[72.0]
[73.0]
[74.0]
[75.0]
[76.0]
[77.0]
[78.0]
[79.0]
[80.0]
[81.0]
[82.0]
[83.0]
[84.0]
[85.0]
[86.0]
[87.0]
[88.0]
[89.0]
[90.0]
[91.0]
[92.0]
[93.0]
[94.0]
[95.0]
[96.0]
[97.0]
[98.0]
[99.0]
[100.0]
[101.0]
[102.0]
[103.0]
[104.0]
[105.0]
[106.0]
[107.0]
[108.0]
[109.0]
[110.0]
[111.0]
[112.0]
[113.0]
[114.0]
[115.0]
[116.0]
[117.0]
[118.0]
[119.0]
[120.0]
[121.0]
[122.0]
[123.0]
[124.0]
[125.0]
[126.0]
[127.0]
[128.0]
[129.0]
[130.0]
[131.0]
[132.0]
[133.0]
[134.0]
[135.0]
[136.0]
[137.0]
[138.0]
[139.0]
[140.0]
[141.0]
[142.0]
[143.0]
[144.0]
[145.0]
[146.0]
[147.0]
[148.0]
[149.0]
[150.0]
[151.0]
[152.0]
[153.0]
[154.0]
[155.0]
[156.0]
[157.0]
[158.0]
[159.0]
[160.0]
[161.0]
[162.0]
[163.0]
[164.0]
[165.0]
[166.0]
[167.0]
[168.0]
[169.0]
[170.0]
[171.0]
[172.0]
[173.0]
[174.0]
[175.0]
[176.0]
[177.0]
[178.0]
[179.0]
[180.0]
[181.0]
[182.0]
[183.0]
[184.0]
[185.0]
[186.0]
[187.0]
[188.0]
[189.0]
[190.0]
[191.0]
[192.0]
[193.0]
[194.0]
[195.0]
[196.0]
[197.0]
[198.0]
[199.0]
[200.0]
[201.0]
[202.0]
[203.0]
[204.0]
[205.0]
[206.0]
[207.0]
[208.0]
[209.0]
[210.0]
[211.0]
[212.0]
[213.0]
[214.0]
[215.0]
[216.0]
[217.0]
[218.0]
[219.0]
[220.0]
[221.0]
[222.0]
[223.0]
[224.0]
[225.0]
[226.0]
[227.0]
[228.0]
[229.0]
[230.0]
[231.0]
[232.0]
[233.0]
[234.0]
[235.0]
[236.0]
[237.0]
[238.0]
[239.0]
[240.0]
[241.0]
[242.0]
[243.0]
[244.0]
[245.0]
[246.0]
[247.0]
[248.0]
[249.0]
[250.0]
[251.0]
[252.0]
[253.0]
[254.0]
[255.0]
[256.0]
[257.0]
[258.0]
[259.0]
[260.0]
[261.0]
[262.0]
[263.0]
[264.0]
[265.0]
[266.0]
[267.0]
[268.0]
[269.0]
[270.0]
[271.0]
[272.0]
[273.0]
[274.0]
[275.0]
[276.0]
[277.0]
[278.0]
[279.0]
[280.0]
[281.0]
[282.0]
[283.0]
[284.0]
[285.0]
[286.0]
[287.0]
[288.0]
[289.0]
[290.0]
[291.0]
[292.0]
[293.0]
[294.0]
[295.0]
[296.0]
[297.0]
[298.0]
[299.0]
[300.0]

{"sheet":"MOESD","index":9,"n_rows":304,"n_cols":20,"rows_kept":304,"cut":false,"hidden":false,"merged":[[2,15,3,17],[2,18,3,19],[5,1,27,1],[5,2,15,2],[16,2,26,2],[0,0,0,15],[0,18,0,19],[1,3,1,15],[2,0,3,0],[2,1,3,8],[2,9,3,13],[2,14,3,14]]}
["COVID-19 RESPONSE FOR PREPAREDENESS",null,null,null,null,null,null,null,null,null,null,null,null,null,null,null,null,null,"DATE OF UPDATE:"]
[]
["#","NEEDS",null,null,null,null,null,null,null,"SUPPORT PROVIDED BY DEV PARTNERS",null,null,null,null,"Status","Georgraphic Coverage",null,null,"Contact Person (DONORS)"]
[]
[1.0,"Initiator","Description/Purpose","PRODUCTS/REQUIREMENTS","NUMBER","BUDGET PER SUBJECT","BUDGET","Currency",null,"Organization","Budget Provided","Currency","Assistance Type","Comment","1. Completed \n2. Agreed with the donor/partner - is currently in process \n3. Currently negotiating with donor/partner \n4. Exploring support opportunities","(Please, select from the list)\n\nCentral Level\nLocal Level (Please select the region or municipality)","(Please, select from the list)\n\nRegions","(Please, select from the list)\n\nMunicipalities","DONOR","GOV"]
[2.0,"Ministry of Economy and Sustainable Development of Georgia"]
[3.0]
[4.0]
[5.0]
[6.0]
[7.0]
[8.0]
[9.0]
[10.0]
[11.0]
[12.0]
[13.0]
[14.0]
[15.0]
[16.0]
[17.0]
[18.0]
[19.0]
[20.0]
[21.0]
[22.0]
[23.0]
[24.0]
[25.0]
[26.0]
[27.0]
[28.0]
[29.0]
[30.0]
[31.0]
[32.0]
[33.0]
[34.0]
[35.0]
[36.0]
[37.0]
[38.0]
[39.0]
[40.0]
[41.0]
[42.0]
[43.0]
[44.0]
[45.0]
[46.0]
[47.0]
[48.0]
[49.0]
[50.0]
[51.0]
[52.0]
[53.0]
[54.0]
[55.0]
[56.0]
[57.0]
[58.0]
[59.0]
[60.0]
[61.0]
[62.0]
[63.0]
[64.0]
[65.0]
[66.0]
[67.0]
[68.0]
[69.0]
[70.0]
[71.0]
[72.0]
[73.0]
[74.0]
[75.0]
[76.0]
[77.0]
[78.0]
[79.0]
[80.0]
[81.0]
[82.0]
[83.0]
[84.0]
[85.0]
[86.0]
[87.0]
[88.0]
[89.0]
[90.0]
[91.0]
[92.0]
[93.0]
[94.0]
[95.0]
[96.0]
[97.0]
[98.0]
[99.0]
[100.0]
[101.0]
[102.0]
[103.0]
[104.0]
[105.0]
[106.0]
[107.0]
[108.0]
[109.0]
[110.0]
[111.0]
[112.0]
[113.0]
[114.0]
[115.0]
[116.0]
[117.0]
[118.0]
[119.0]
[120.0]
[121.0]
[122.0]
[123.0]
[124.0]
[125.0]
[126.0]
[127.0]
[128.0]
[129.0]
[130.0]
[131.0]
[132.0]
[133.0]
[134.0]
[135.0]
[136.0]
[137.0]
[138.0]
[139.0]
[140.0]
[141.0]
[142.0]
[143.0]
[144.0]
[145.0]
[146.0]
[147.0]
[148.0]
[149.0]
[150.0]
[151.0]
[152.0]
[153.0]
[154.0]
[155.0]
[156.0]
[157.0]
[158.0]
[159.0]
[160.0]
[161.0]
[162.0]
[163.0]
[164.0]
[165.0]
[166.0]
[167.0]
[168.0]
[169.0]
[170.0]
[171.0]
[172.0]
[173.0]
[174.0]
[175.0]
[176.0]
[177.0]
[178.0]
[179.0]
[180.0]
[181.0]
[182.0]
[183.0]
[184.0]
[185.0]
[186.0]
[187.0]
[188.0]
[189.0]
[190.0]
[191.0]
[192.0]
[193.0]
[194.0]
[195.0]
[196.0]
[197.0]
[198.0]
[199.0]
[200.0]
[201.0]
[202.0]
[203.0]
[204.0]
[205.0]
[206.0]
[207.0]
[208.0]
[209.0]
[210.0]
[211.0]
[212.0]
[213.0]
[214.0]
[215.0]
[216.0]
[217.0]
[218.0]
[219.0]
[220.0]
[221.0]
[222.0]
[223.0]
[224.0]
[225.0]
[226.0]
[227.0]
[228.0]
[229.0]
[230.0]
[231.0]
[232.0]
[233.0]
[234.0]
[235.0]
[236.0]
[237.0]
[238.0]
[239.0]
[240.0]
[241.0]
[242.0]
[243.0]
[244.0]
[245.0]
[246.0]
[247.0]
[248.0]
[249.0]
[250.0]
[251.0]
[252.0]
[253.0]
[254.0]
[255.0]
[256.0]
[257.0]
[258.0]
[259.0]
[260.0]
[261.0]
[262.0]
[263.0]
[264.0]
[265.0]
[266.0]
[267.0]
[268.0]
[269.0]
[270.0]
[271.0]
[272.0]
[273.0]
[274.0]
[275.0]
[276.0]
[277.0]
[278.0]
[279.0]
[280.0]
[281.0]
[282.0]
[283.0]
[284.0]
[285.0]
[286.0]
[287.0]
[288.0]
[289.0]
[290.0]
[291.0]
[292.0]
[293.0]
[294.0]
[295.0]
[296.0]
[297.0]
[298.0]
[299.0]
[300.0]

{"sheet":"Ministry of Internal Affairs","index":10,"n_rows":304,"n_cols":20,"rows_kept":304,"cut":false,"hidden":false,"merged":[[2,15,3,17],[2,18,3,19],[5,1,27,1],[5,2,27,2],[0,0,0,15],[0,18,0,19],[1,3,1,15],[2,0,3,0],[2,1,3,8],[2,9,3,13],[2,14,3,14]]}
["COVID-19 RESPONSE FOR PREPAREDENESS",null,null,null,null,null,null,null,null,null,null,null,null,null,null,null,null,null,"DATE OF UPDATE:"]
[]
["#","NEEDS",null,null,null,null,null,null,null,"SUPPORT PROVIDED BY DEV PARTNERS",null,null,null,null,"Status","Georgraphic Coverage",null,null,"Contact Person (DONORS)"]
[]
[1.0,"Initiator","Description/Purpose","PRODUCTS/REQUIREMENTS","NUMBER","BUDGET PER SUBJECT","BUDGET","Currency",null,"Organization","Budget Provided","Currency","Assistance Type","Comment","1. Completed \n2. Agreed with the donor/partner - is currently in process \n3. Currently negotiating with donor/partner \n4. Exploring support opportunities","(Please, select from the list)\n\nCentral Level\nLocal Level (Please select the region or municipality)","(Please, select from the list)\n\nRegions","(Please, select from the list)\n\nMunicipalities","DONOR","GOV"]
[2.0,"Ministry of Internal Affairs of Georgia","The Emergency Management Service, Border Police and Security Police of the MIA are parts of the special inter-agency emergency coordination team that was asked to carry out preventive activities to reduce the risk of spreading novel coronavirus disease and infections.","Disposable white Tyverk coverall suit with protective gloves, attached hood and boots","10 500",null,null,null,null,null,null,null,"Material Assistance",null,"4. Exploring support opportunities"]
[3.0,null,null,"Respirator N95","16 000",null,null,null,null,null,null,null,"Material Assistance",null,"4. Exploring support opportunities"]
[4.0,null,null,"Safety masks","90 000",null,null,null,null,null,null,null,"Material Assistance",null,"4. Exploring support opportunities"]
[5.0,null,null,"Decontamination shower tent with three exits / lines",2.0,null,null,null,null,null,null,null,"Material Assistance",null,"4. Exploring support opportunities"]
[6.0,null,null,"Outdoor waterproof mat – 5X5",2.0,null,null,null,null,null,null,null,"Material Assistance",null,"4. Exploring support opportunities"]
[7.0,null,null,"Safety poles – Height 1.2 meters (for decontamination shower tent)",10.0,null,null,null,null,null,null,null,"Material Assistance",null,"4. Exploring support opportunities"]
[8.0,null,null,"Biohazard disinfection spray for personal decontamination",500.0,null,null,null,null,null,null,null,"Material Assistance",null,"4. Exploring support opportunities"]
[9.0,null,null,"Tent for a total area of 40-50 m² (with heating system)",10.0,null,null,null,null,null,null,null,"Material Assistance",null,"4. Exploring support opportunities"]
[10.0,null,null,"Tent for a total area of 20 m² (with heating system)",10.0,null,null,null,null,null,null,null,"Material Assistance",null,"4. Exploring support opportunities"]
[11.0,null,null,"IR THERMOMETER",190.0,null,null,null,null,null,null,null,"Material Assistance",null,"4. Exploring support opportunities"]
[12.0,null,null,"Protective gloves",3000.0,null,null,null,null,null,null,null,"Material Assistance",null,"4. Exploring support opportunities"]
[13.0,null,null,"Googles/Face shield",1000.0,null,null,null,null,null,null,null,"Material Assistance",null,"4. Exploring support opportunities"]
[14.0,null,null,"Personal protective gowns & head cap",5000.0,null,null,null,null,null,null,null,"Material Assistance",null,"4. Exploring support opportunities"]
[15.0,null,null,"Disinfection spray","200 litre",null,null,null,null,null,null,null,"Material Assistance"]
[16.0]
[17.0]
[18.0]
[19.0]
[20.0]
[21.0]
[22.0]
[23.0]
[24.0]
[25.0]
[26.0]
[27.0]
[28.0]
[29.0]
[30.0]
[31.0]
[32.0]
[33.0]
[34.0]
[35.0]
[36.0]
[37.0]
[38.0]
[39.0]
[40.0]
[41.0]
[42.0]
[43.0]
[44.0]
[45.0]
[46.0]
[47.0]
[48.0]
[49.0]
[50.0]
[51.0]
[52.0]
[53.0]
[54.0]
[55.0]
[56.0]
[57.0]
[58.0]
[59.0]
[60.0]
[61.0]
[62.0]
[63.0]
[64.0]
[65.0]
[66.0]
[67.0]
[68.0]
[69.0]
[70.0]
[71.0]
[72.0]
[73.0]
[74.0]
[75.0]
[76.0]
[77.0]
[78.0]
[79.0]
[80.0]
[81.0]
[82.0]
[83.0]
[84.0]
[85.0]
[86.0]
[87.0]
[88.0]
[89.0]
[90.0]
[91.0]
[92.0]
[93.0]
[94.0]
[95.0]
[96.0]
[97.0]
[98.0]
[99.0]
[100.0]
[101.0]
[102.0]
[103.0]
[104.0]
[105.0]
[106.0]
[107.0]
[108.0]
[109.0]
[110.0]
[111.0]
[112.0]
[113.0]
[114.0]
[115.0]
[116.0]
[117.0]
[118.0]
[119.0]
[120.0]
[121.0]
[122.0]
[123.0]
[124.0]
[125.0]
[126.0]
[127.0]
[128.0]
[129.0]
[130.0]
[131.0]
[132.0]
[133.0]
[134.0]
[135.0]
[136.0]
[137.0]
[138.0]
[139.0]
[140.0]
[141.0]
[142.0]
[143.0]
[144.0]
[145.0]
[146.0]
[147.0]
[148.0]
[149.0]
[150.0]
[151.0]
[152.0]
[153.0]
[154.0]
[155.0]
[156.0]
[157.0]
[158.0]
[159.0]
[160.0]
[161.0]
[162.0]
[163.0]
[164.0]
[165.0]
[166.0]
[167.0]
[168.0]
[169.0]
[170.0]
[171.0]
[172.0]
[173.0]
[174.0]
[175.0]
[176.0]
[177.0]
[178.0]
[179.0]
[180.0]
[181.0]
[182.0]
[183.0]
[184.0]
[185.0]
[186.0]
[187.0]
[188.0]
[189.0]
[190.0]
[191.0]
[192.0]
[193.0]
[194.0]
[195.0]
[196.0]
[197.0]
[198.0]
[199.0]
[200.0]
[201.0]
[202.0]
[203.0]
[204.0]
[205.0]
[206.0]
[207.0]
[208.0]
[209.0]
[210.0]
[211.0]
[212.0]
[213.0]
[214.0]
[215.0]
[216.0]
[217.0]
[218.0]
[219.0]
[220.0]
[221.0]
[222.0]
[223.0]
[224.0]
[225.0]
[226.0]
[227.0]
[228.0]
[229.0]
[230.0]
[231.0]
[232.0]
[233.0]
[234.0]
[235.0]
[236.0]
[237.0]
[238.0]
[239.0]
[240.0]
[241.0]
[242.0]
[243.0]
[244.0]
[245.0]
[246.0]
[247.0]
[248.0]
[249.0]
[250.0]
[251.0]
[252.0]
[253.0]
[254.0]
[255.0]
[256.0]
[257.0]
[258.0]
[259.0]
[260.0]
[261.0]
[262.0]
[263.0]
[264.0]
[265.0]
[266.0]
[267.0]
[268.0]
[269.0]
[270.0]
[271.0]
[272.0]
[273.0]
[274.0]
[275.0]
[276.0]
[277.0]
[278.0]
[279.0]
[280.0]
[281.0]
[282.0]
[283.0]
[284.0]
[285.0]
[286.0]
[287.0]
[288.0]
[289.0]
[290.0]
[291.0]
[292.0]
[293.0]
[294.0]
[295.0]
[296.0]
[297.0]
[298.0]
[299.0]
[300.0]

{"sheet":"State Minister's Office","index":11,"n_rows":304,"n_cols":18,"rows_kept":304,"cut":false,"hidden":false,"merged":[[2,13,3,15],[2,16,3,17],[0,0,0,13],[0,16,0,17],[1,3,1,13],[2,0,3,0],[2,1,3,6],[2,7,3,11],[2,12,3,12],[5,1,27,1]]}
[null,null,null,null,null,null,null,null,null,null,null,null,null,null,null,null,"DATE OF UPDATE:"]
[]
["#","NEEDS",null,null,null,null,null,"SUPPORT PROVIDED BY DEV PARTNERS",null,null,null,null,"Status","Georgraphic Coverage",null,null,"Contact Person (DONORS)"]
[]
[1.0,"Initiator","Description/Purpose","PRODUCTS/REQUIREMENTS","NUMBER","BUDGET PER SUBJECT","BUDGET","Organization","Budget Provided","Currency","Assistance Type","Comment","1. Completed \n2. Agreed with the donor/partner - is currently in process \n3. Currently negotiating with donor/partner \n4. Exploring support opportunities","(Please, select from the list)\n\nCentral Level\nLocal Level (Please select the region or municipality)","(Please, select from the list)\n\nRegions","(Please, select from the list)\n\nMunicipalities","DONOR","GOV"]
[2.0,"Office of the State Minister of Georgia for Reconciliation and Civil Equality","Safety kits (one-piece suit, goggles, mask) – 500\nSanitizer (500 ml) – 800\nLiquid soap (1,0 lit) – 100\nLiquid soap (5,0 lit) - 100\n",null,null,null,null,null,45700.0,"GEL","Material Assistance","Purchased by USAID and delivered by UNDP","1. Completed","Local Level","Abkhazia Region",null,"Louisa Vinton; louisa.vinton@undp.org"]
[3.0,null,"Sanitizer (5,0 lit) - 12 \n",null,null,null,null,null,192.0,"GEL","Material Assistance","Purchased by UN Women and delivered by UNDP","1. Completed","Local Level","Abkhazia Region",null,"Louisa Vinton; louisa.vinton@undp.org"]
[4.0,null,"Liquid soap (5,0 lit) - 1",null,null,null,null,null,19.8,"GEL","Material Assistance","Purchased by World Vision and delivered by UNDP","1. Completed","Local Level","Abkhazia Region",null,"Louisa Vinton; louisa.vinton@undp.org"]
[5.0,null,"Sanitizer (500 ml) - 70",null,null,null,null,null,945.0,"GEL","Material Assistance","Purchased by FAO and delivered by UNDP","1. Completed","Local Level","Abkhazia Region",null,"Louisa Vinton; louisa.vinton@undp.org"]
[6.0,null,"Sanitizer (600 ml) – 1300\nSanitizer (5,0 lit) – 200\nSurgical masks – 13,00\n",null,null,null,null,null,54662.0,"GEL","Material Assistance","Purchased and delivered by UNDP","1. Completed","Local Level","Abkhazia Region",null,"Louisa Vinton; louisa.vinton@undp.org"]
[7.0,null,"Printing flyers and posters (on COVID-19 prevention recommendations): flyers in Armenian language- 72 000, in Azerbaijani language -64 000;   Posters in Armenian language - 2 800, in Azerbaijani language - 2 800",null,null,null,null,null,"16 544","GEL",null,"Printed by USAID/UNAG PITA Program","1. Completed","Local Level","Kvemo Kartli Region","Marneuli Municipality","Lasha Jugeli; lasha@una.ge"]
[8.0,null,"Printing flyers (on COVID-19 quarantine measures): flyers in Armenian language- 80 000, in Azerbaijani language - 90 000    ",null,null,null,null,null,13600.0,"GEL",null,"Printed by USAID/UNAG PITA Program","1. Completed","Local Level","Kvemo Kartli Region","Marneuli Municipality","Lasha Jugeli; lasha@una.ge"]
[9.0]
[10.0]
[11.0]
[12.0]
[13.0]
[14.0]
[15.0]
[16.0]
[17.0]
[18.0]
[19.0]
[20.0]
[21.0]
[22.0]
[23.0]
[24.0]
[25.0]
[26.0]
[27.0]
[28.0]
[29.0]
[30.0]
[31.0]
[32.0]
[33.0]
[34.0]
[35.0]
[36.0]
[37.0]
[38.0]
[39.0]
[40.0]
[41.0]
[42.0]
[43.0]
[44.0]
[45.0]
[46.0]
[47.0]
[48.0]
[49.0]
[50.0]
[51.0]
[52.0]
[53.0]
[54.0]
[55.0]
[56.0]
[57.0]
[58.0]
[59.0]
[60.0]
[61.0]
[62.0]
[63.0]
[64.0]
[65.0]
[66.0]
[67.0]
[68.0]
[69.0]
[70.0]
[71.0]
[72.0]
[73.0]
[74.0]
[75.0]
[76.0]
[77.0]
[78.0]
[79.0]
[80.0]
[81.0]
[82.0]
[83.0]
[84.0]
[85.0]
[86.0]
[87.0]
[88.0]
[89.0]
[90.0]
[91.0]
[92.0]
[93.0]
[94.0]
[95.0]
[96.0]
[97.0]
[98.0]
[99.0]
[100.0]
[101.0]
[102.0]
[103.0]
[104.0]
[105.0]
[106.0]
[107.0]
[108.0]
[109.0]
[110.0]
[111.0]
[112.0]
[113.0]
[114.0]
[115.0]
[116.0]
[117.0]
[118.0]
[119.0]
[120.0]
[121.0]
[122.0]
[123.0]
[124.0]
[125.0]
[126.0]
[127.0]
[128.0]
[129.0]
[130.0]
[131.0]
[132.0]
[133.0]
[134.0]
[135.0]
[136.0]
[137.0]
[138.0]
[139.0]
[140.0]
[141.0]
[142.0]
[143.0]
[144.0]
[145.0]
[146.0]
[147.0]
[148.0]
[149.0]
[150.0]
[151.0]
[152.0]
[153.0]
[154.0]
[155.0]
[156.0]
[157.0]
[158.0]
[159.0]
[160.0]
[161.0]
[162.0]
[163.0]
[164.0]
[165.0]
[166.0]
[167.0]
[168.0]
[169.0]
[170.0]
[171.0]
[172.0]
[173.0]
[174.0]
[175.0]
[176.0]
[177.0]
[178.0]
[179.0]
[180.0]
[181.0]
[182.0]
[183.0]
[184.0]
[185.0]
[186.0]
[187.0]
[188.0]
[189.0]
[190.0]
[191.0]
[192.0]
[193.0]
[194.0]
[195.0]
[196.0]
[197.0]
[198.0]
[199.0]
[200.0]
[201.0]
[202.0]
[203.0]
[204.0]
[205.0]
[206.0]
[207.0]
[208.0]
[209.0]
[210.0]
[211.0]
[212.0]
[213.0]
[214.0]
[215.0]
[216.0]
[217.0]
[218.0]
[219.0]
[220.0]
[221.0]
[222.0]
[223.0]
[224.0]
[225.0]
[226.0]
[227.0]
[228.0]
[229.0]
[230.0]
[231.0]
[232.0]
[233.0]
[234.0]
[235.0]
[236.0]
[237.0]
[238.0]
[239.0]
[240.0]
[241.0]
[242.0]
[243.0]
[244.0]
[245.0]
[246.0]
[247.0]
[248.0]
[249.0]
[250.0]
[251.0]
[252.0]
[253.0]
[254.0]
[255.0]
[256.0]
[257.0]
[258.0]
[259.0]
[260.0]
[261.0]
[262.0]
[263.0]
[264.0]
[265.0]
[266.0]
[267.0]
[268.0]
[269.0]
[270.0]
[271.0]
[272.0]
[273.0]
[274.0]
[275.0]
[276.0]
[277.0]
[278.0]
[279.0]
[280.0]
[281.0]
[282.0]
[283.0]
[284.0]
[285.0]
[286.0]
[287.0]
[288.0]
[289.0]
[290.0]
[291.0]
[292.0]
[293.0]
[294.0]
[295.0]
[296.0]
[297.0]
[298.0]
[299.0]
[300.0]

{"sheet":"Ministry of Justice","index":12,"n_rows":303,"n_cols":20,"rows_kept":303,"cut":false,"hidden":false,"merged":[[2,15,3,17],[2,18,3,19],[5,1,26,1],[5,2,14,2],[15,2,25,2],[0,0,0,15],[0,18,0,19],[1,3,1,15],[2,0,3,0],[2,1,3,8],[2,9,3,13],[2,14,3,14]]}
[null,null,null,null,null,null,null,null,null,null,null,null,null,null,null,null,null,null,"DATE OF UPDATE:"]
[]
["#","NEEDS",null,null,null,null,null,null,null,"SUPPORT PROVIDED BY DEV PARTNERS",null,null,null,null,"Status","Georgraphic Coverage",null,null,"Contact Person (DONORS)"]
[]
[1.0,"Initiator","Description/Purpose","PRODUCTS/REQUIREMENTS","NUMBER","BUDGET PER SUBJECT","BUDGET","Currency",null,"Organization","Budget Provided","Currency","Assistance Type","Comment","1. Completed \n2. Agreed with the donor/partner - is currently in process \n3. Currently negotiating with donor/partner \n4. Exploring support opportunities","(Please, select from the list)\n\nCentral Level\nLocal Level (Please select the region or municipality)","(Please, select from the list)\n\nRegions","(Please, select from the list)\n\nMunicipalities","DONOR","GOV"]
[2.0,"Ministry of Justice","Aid provided for the Penitentiary system","Nitrile gloves ",3000.0,null,null,null,null,"ICRC",null,null,"Material Assistance",null,"1. Completed",null,null,null,null,"Ketevan Sarajishvili \nksarajishvili@justice.gov.ge\n"]
[3.0,null,null,"Sanitizer solution for surface","11 L + 60 L",null,null,null,null,"ICRC",null,null,"Material Assistance",null,"1. Completed",null,null,null,null,"Ketevan Sarajishvili \nksarajishvili@justice.gov.ge\n"]
[4.0,null,null,"Hand sanitizer solution ","5 L",null,null,null,null,"ICRC",null,null,"Material Assistance",null,"1. Completed",null,null,null,null,"Ketevan Sarajishvili \nksarajishvili@justice.gov.ge\n"]
[5.0,null,null,"Non-contact thermometer",30.0,null,null,null,null,"ICRC",null,null,"Material Assistance",null,"2. Agreed with the donor/partner - is currently in process ",null,null,null,null,"Ketevan Sarajishvili \nksarajishvili@justice.gov.ge\n"]
[6.0,null,null,"Hazmat suits",5.0,null,null,null,null,"ICRC",null,null,"Material Assistance",null,"2. Agreed with the donor/partner - is currently in process ",null,null,null,null,"Ketevan Sarajishvili \nksarajishvili@justice.gov.ge\n"]
[8.0,null,null,"Additional phone call minutes for inmates ",null,null,null,null,null,"ICRC",null,null,"Financial Assistance - not specified"," exact amount and type of financial assistance will be identified in several days  ","3. Currently negotiating with donor/partner ",null,null,null,null,"Ketevan Sarajishvili \nksarajishvili@justice.gov.ge\n"]
[9.0,null,null,"Veil",15000.0,null,null,null,null,"CoE",null,null,"Material Assistance",null,"3. Currently negotiating with donor/partner "]
[10.0,null,null,"Face mask N95",500.0,null,null,null,null,"CoE",null,null,"Material Assistance",null,"3. Currently negotiating with donor/partner "]
[11.0,null,null,"Compllete set of biological protection overalls",50.0,null,null,null,null,"CoE",null,null,"Material Assistance",null,"3. Currently negotiating with donor/partner "]
[12.0,null,null,"Facial protective shield",500.0,null,null,null,null,"CoE",null,null,"Material Assistance",null,"3. Currently negotiating with donor/partner "]
[13.0,null,null,"Remote thermometer",45.0,null,null,null,null,"CoE",null,null,"Material Assistance",null,"3. Currently negotiating with donor/partner "]
[14.0,null,null,"Surgical coat",15000.0,null,null,null,null,"CoE",null,null,"Material Assistance",null,"3. Currently negotiating with donor/partner "]
[15.0,null,null,"Shoe covers",30000.0,null,null,null,null,"CoE",null,null,"Material Assistance",null,"3. Currently negotiating with donor/partner "]
[16.0,null,null,"Cap",10000.0,null,null,null,null,"CoE",null,null,"Material Assistance",null,"3. Currently negotiating with donor/partner "]
[17.0,null,null,"Rubber glove",65000.0,null,null,null,null,"CoE",null,null,"Material Assistance",null,"3. Currently negotiating with donor/partner "]
[18.0,null,null,"Chlorine-containing disifectant for desobarrers","500 L",null,null,null,null,"CoE",null,null,"Material Assistance",null,"3. Currently negotiating with donor/partner "]
[19.0,null,null,"Ethyl containing disinfectant for equipment surface, wall, floors","500 L",null,null,null,null,"CoE",null,null,"Material Assistance",null,"3. Currently negotiating with donor/partner "]
[20.0,null,null,"Ethyl containing hand disinfectant","500 L",null,null,null,null,"CoE",null,null,"Material Assistance",null,"3. Currently negotiating with donor/partner "]
[21.0,null,null,"Additional phone call minutes for inmates",null,null,30000.0,"GEL",null,"INL",null,null,"Financial Assistance - not specified",null,"3. Currently negotiating with donor/partner "]
[22.0]
[23.0]
[24.0]
[25.0]
[26.0]
[27.0]
[28.0]
[29.0]
[30.0]
[31.0]
[32.0]
[33.0]
[34.0]
[35.0]
[36.0]
[37.0]
[38.0]
[39.0]
[40.0]
[41.0]
[42.0]
[43.0]
[44.0]
[45.0]
[46.0]
[47.0]
[48.0]
[49.0]
[50.0]
[51.0]
[52.0]
[53.0]
[54.0]
[55.0]
[56.0]
[57.0]
[58.0]
[59.0]
[60.0]
[61.0]
[62.0]
[63.0]
[64.0]
[65.0]
[66.0]
[67.0]
[68.0]
[69.0]
[70.0]
[71.0]
[72.0]
[73.0]
[74.0]
[75.0]
[76.0]
[77.0]
[78.0]
[79.0]
[80.0]
[81.0]
[82.0]
[83.0]
[84.0]
[85.0]
[86.0]
[87.0]
[88.0]
[89.0]
[90.0]
[91.0]
[92.0]
[93.0]
[94.0]
[95.0]
[96.0]
[97.0]
[98.0]
[99.0]
[100.0]
[101.0]
[102.0]
[103.0]
[104.0]
[105.0]
[106.0]
[107.0]
[108.0]
[109.0]
[110.0]
[111.0]
[112.0]
[113.0]
[114.0]
[115.0]
[116.0]
[117.0]
[118.0]
[119.0]
[120.0]
[121.0]
[122.0]
[123.0]
[124.0]
[125.0]
[126.0]
[127.0]
[128.0]
[129.0]
[130.0]
[131.0]
[132.0]
[133.0]
[134.0]
[135.0]
[136.0]
[137.0]
[138.0]
[139.0]
[140.0]
[141.0]
[142.0]
[143.0]
[144.0]
[145.0]
[146.0]
[147.0]
[148.0]
[149.0]
[150.0]
[151.0]
[152.0]
[153.0]
[154.0]
[155.0]
[156.0]
[157.0]
[158.0]
[159.0]
[160.0]
[161.0]
[162.0]
[163.0]
[164.0]
[165.0]
[166.0]
[167.0]
[168.0]
[169.0]
[170.0]
[171.0]
[172.0]
[173.0]
[174.0]
[175.0]
[176.0]
[177.0]
[178.0]
[179.0]
[180.0]
[181.0]
[182.0]
[183.0]
[184.0]
[185.0]
[186.0]
[187.0]
[188.0]
[189.0]
[190.0]
[191.0]
[192.0]
[193.0]
[194.0]
[195.0]
[196.0]
[197.0]
[198.0]
[199.0]
[200.0]
[201.0]
[202.0]
[203.0]
[204.0]
[205.0]
[206.0]
[207.0]
[208.0]
[209.0]
[210.0]
[211.0]
[212.0]
[213.0]
[214.0]
[215.0]
[216.0]
[217.0]
[218.0]
[219.0]
[220.0]
[221.0]
[222.0]
[223.0]
[224.0]
[225.0]
[226.0]
[227.0]
[228.0]
[229.0]
[230.0]
[231.0]
[232.0]
[233.0]
[234.0]
[235.0]
[236.0]
[237.0]
[238.0]
[239.0]
[240.0]
[241.0]
[242.0]
[243.0]
[244.0]
[245.0]
[246.0]
[247.0]
[248.0]
[249.0]
[250.0]
[251.0]
[252.0]
[253.0]
[254.0]
[255.0]
[256.0]
[257.0]
[258.0]
[259.0]
[260.0]
[261.0]
[262.0]
[263.0]
[264.0]
[265.0]
[266.0]
[267.0]
[268.0]
[269.0]
[270.0]
[271.0]
[272.0]
[273.0]
[274.0]
[275.0]
[276.0]
[277.0]
[278.0]
[279.0]
[280.0]
[281.0]
[282.0]
[283.0]
[284.0]
[285.0]
[286.0]
[287.0]
[288.0]
[289.0]
[290.0]
[291.0]
[292.0]
[293.0]
[294.0]
[295.0]
[296.0]
[297.0]
[298.0]
[299.0]
[300.0]

{"sheet":"Large-scale Committments ","index":13,"n_rows":287,"n_cols":19,"rows_kept":287,"cut":false,"hidden":false,"merged":[[2,14,3,16],[2,17,3,18],[0,0,0,14],[0,17,0,18],[1,3,1,14],[2,0,3,0],[2,1,3,6],[2,7,3,12],[2,13,3,13],[14,1,18,1],[5,1,12,1]]}
["COVID-19 RESPONSE FOR PREPAREDENESS",null,null,null,null,null,null,null,null,null,null,null,null,null,null,null,null,"DATE OF UPDATE:"]
[]
["#","NEEDS",null,null,null,null,null,"SUPPORT PROVIDED BY DEV PARTNERS",null,null,null,null,null,"Status","Georgraphic Coverage",null,null,"Contact Person (DONORS)"]
[]
[1.0,"Initiator","Description","PRODUCTS/REQUIREMENTS","NUMBER","BUDGET PER SUBJECT","BUDGET","Organization","Budget ","Budget Provided","Currency","Assistance Type","Comment","1. Completed \n2. Agreed with the donor/partner - is currently in process \n3. Currently negotiating with donor/partner \n4. Exploring support opportunities","(Please, select from the list)\n\nCentral Level\nLocal Level (Please select the region or municipality)","(Please, select from the list)\n\n\nRegions","(Please, select from the list)\n\n\nMunicipalities","DONOR","GOV"]
[2.0,"EU","The EU will support Georgia's economy, notably small and medium-sized enterprises (SMEs), the self-employed and other economic operators by providing liquidity. This will take place via International Financial Institutions (IFIs), with whom we are already working in order to facilitate, simplify and accelerate the uptake of existing credit lines and grants to SMEs in local currency amounting to €200 million. Out of this, between €50 to €60 million should be available for Georgian SMEs and microenterprises for which they can apply via our partner financial intermediaries. The amount provided in grants will leverage loans and/or other financial products.",null,null,null,null,"EU",5.0E7,5.0E7,"EUR","Financial Assistance - Loan","Commitment for EaP Countries: Armenia, Azerbaijan, Belarus, Georgia, Moldova, and Ukraine.","3. Currently negotiating with donor/partner ","Countrywide",null,null,"Vincent Rey;\nvincent.rey@eeas.europa.eu"]
[3.0,null,"Healthcare system needs:\n\n1. Short-term response to the COVID-19 pandemic; 2 : Strengthening resilience of health systems to face future outbreaks of diseases",null,null,null,null,"EU",3.0E7,3.0E7,"EUR","Financial Assistance - Grant","Commitment for EaP Countries: Armenia, Azerbaijan, Belarus, Georgia, Moldova, and Ukraine.","3. Currently negotiating with donor/partner ","Countrywide",null,null,"Vincent Rey;\nvincent.rey@eeas.europa.eu"]
[null,null,"Georgian SMEs can apply to a new support programme of €100 million, which will help them easily access credit in Lari and restart their businesses after the crisis. About €20 million of the total amount could be available for Georgian SMEs and micro enterprises.The amount provided in grants will leverage loans and/or other financial products.",null,null,null,null,null,2.0E7,2.0E7,"EUR","Financial Assistance - Loan","Commitment for Georgia","3. Currently negotiating with donor/partner ","Countrywide",null,null,"Vincent Rey;\nvincent.rey@eeas.europa.eu"]
[null,null,"EU Commission will make available €500 million of guarantees planned under the European Fund for Sustainable Development (EFSD) to facilitate the provision of liquidity in the EU’s neighbourhood including through working capital, trade finance, or moratoria on debt service.\n",null,null,null,null,null,"TBC",2.0E7,"EUR","Financial Assistance - Guarantee","Commitment for entire EU’s neighbourhood ","3. Currently negotiating with donor/partner ","Countrywide",null,null,"Vincent Rey;\nvincent.rey@eeas.europa.eu"]
[4.0,null,"Supporting local business, farmers and individuals in gaining skills, developing their businesses and/or recovering from the crisis. (Grant funding that will be launched in 2020 in Georgia under various projects throughout the country). ",null,null,null,null,"EU",2.4E7,2.4E7,"EUR","Financial Assistance - Grant","Commitment for Georgia","2. Agreed with the donor/partner - is currently in process ","Countrywide",null,null,"Vincent Rey;\nvincent.rey@eeas.europa.eu"]
[null,null,"CSO grants for activities in Georgia in areas including social entrepreneurship, social services and human rights.",null,null,null,null,null,4000000.0,4000000.0,"EUR","Financial Assistance - Grant","Commitment for Georgia","2. Agreed with the donor/partner - is currently in process ","Countrywide",null,null,"Vincent Rey;\nvincent.rey@eeas.europa.eu"]
[null,null,"RRM - Rapid Response Mechanism - Small grants to CSOs, already responding to immediate needs",null,null,null,null,null,1300000.0,1300000.0,"EUR","Financial Assistance - Grant","Commitment for EaP Countries: Armenia, Azerbaijan, Belarus, Georgia, Moldova, and Ukraine.","2. Agreed with the donor/partner - is currently in process ","Countrywide",null,null,"Vincent Rey;\nvincent.rey@eeas.europa.eu"]
[null,null,"Eastern Partnership Solidarity Programme - civil society support and sub-grants to smaller, local organisations",null,null,null,null,null,1.0E7,1.0E7,"EUR","Financial Assistance - Grant","Commitment for EaP Countries: Armenia, Azerbaijan, Belarus, Georgia, Moldova, and Ukraine.","3. Currently negotiating with donor/partner ","Countrywide",null,null,"Vincent Rey;\nvincent.rey@eeas.europa.eu"]
[25.0,"USA","Health funding to Georgia to help prepare laboratory systems, activate case-finding and event-based surveillance, support technical experts for response and preparedness, bolster risk communication, and more",null,null,null,null,null,1100000.0,1100000.0,"USD","Financial Assistance - Grant","In partnership with the WHO and IFRC\n\nThis financial assistance is divided between $400K for IFRC and $700 for WHO. ","2. Agreed with the donor/partner - is currently in process ","Countrywide",null,null,"Peter Wiebler;\npwiebler@usaid.gov"]
[28.0,"International Organizations"]
[29.0]
[30.0]
[31.0]
[32.0]
[33.0]
[34.0]
[35.0]
[36.0]
[37.0]
[38.0]
[39.0]
[40.0]
[41.0]
[42.0]
[43.0]
[44.0]
[45.0]
[46.0]
[47.0]
[48.0]
[49.0]
[50.0]
[51.0]
[52.0]
[53.0]
[54.0]
[55.0]
[56.0]
[57.0]
[58.0]
[59.0]
[60.0]
[61.0]
[62.0]
[63.0]
[64.0]
[65.0]
[66.0]
[67.0]
[68.0]
[69.0]
[70.0]
[71.0]
[72.0]
[73.0]
[74.0]
[75.0]
[76.0]
[77.0]
[78.0]
[79.0]
[80.0]
[81.0]
[82.0]
[83.0]
[84.0]
[85.0]
[86.0]
[87.0]
[88.0]
[89.0]
[90.0]
[91.0]
[92.0]
[93.0]
[94.0]
[95.0]
[96.0]
[97.0]
[98.0]
[99.0]
[100.0]
[101.0]
[102.0]
[103.0]
[104.0]
[105.0]
[106.0]
[107.0]
[108.0]
[109.0]
[110.0]
[111.0]
[112.0]
[113.0]
[114.0]
[115.0]
[116.0]
[117.0]
[118.0]
[119.0]
[120.0]
[121.0]
[122.0]
[123.0]
[124.0]
[125.0]
[126.0]
[127.0]
[128.0]
[129.0]
[130.0]
[131.0]
[132.0]
[133.0]
[134.0]
[135.0]
[136.0]
[137.0]
[138.0]
[139.0]
[140.0]
[141.0]
[142.0]
[143.0]
[144.0]
[145.0]
[146.0]
[147.0]
[148.0]
[149.0]
[150.0]
[151.0]
[152.0]
[153.0]
[154.0]
[155.0]
[156.0]
[157.0]
[158.0]
[159.0]
[160.0]
[161.0]
[162.0]
[163.0]
[164.0]
[165.0]
[166.0]
[167.0]
[168.0]
[169.0]
[170.0]
[171.0]
[172.0]
[173.0]
[174.0]
[175.0]
[176.0]
[177.0]
[178.0]
[179.0]
[180.0]
[181.0]
[182.0]
[183.0]
[184.0]
[185.0]
[186.0]
[187.0]
[188.0]
[189.0]
[190.0]
[191.0]
[192.0]
[193.0]
[194.0]
[195.0]
[196.0]
[197.0]
[198.0]
[199.0]
[200.0]
[201.0]
[202.0]
[203.0]
[204.0]
[205.0]
[206.0]
[207.0]
[208.0]
[209.0]
[210.0]
[211.0]
[212.0]
[213.0]
[214.0]
[215.0]
[216.0]
[217.0]
[218.0]
[219.0]
[220.0]
[221.0]
[222.0]
[223.0]
[224.0]
[225.0]
[226.0]
[227.0]
[228.0]
[229.0]
[230.0]
[231.0]
[232.0]
[233.0]
[234.0]
[235.0]
[236.0]
[237.0]
[238.0]
[239.0]
[240.0]
[241.0]
[242.0]
[243.0]
[244.0]
[245.0]
[246.0]
[247.0]
[248.0]
[249.0]
[250.0]
[251.0]
[252.0]
[253.0]
[254.0]
[255.0]
[256.0]
[257.0]
[258.0]
[259.0]
[260.0]
[261.0]
[262.0]
[263.0]
[264.0]
[265.0]
[266.0]
[267.0]
[268.0]
[269.0]
[270.0]
[271.0]
[272.0]
[273.0]
[274.0]
[275.0]
[276.0]
[277.0]
[278.0]
[279.0]
[280.0]
[281.0]
[282.0]
[283.0]
[284.0]
[285.0]
[286.0]
[287.0]
[288.0]
[289.0]
[290.0]
[291.0]
[292.0]
[293.0]
[294.0]
[295.0]
[296.0]
[297.0]
[298.0]
[299.0]
[300.0]

{"sheet":"LISTS","index":14,"n_rows":27,"n_cols":1,"rows_kept":27,"cut":false,"hidden":true,"merged":[]}
["STATUS"]
["1. Completed"]
["2. Agreed with the donor/partner - is currently in process "]
["3. Currently negotiating with donor/partner "]
["4. Exploring support opportunities"]
["N/A"]
[]
[]
["GEOGRAPHIC LEVELS"]
["Central Level"]
["Local Level"]
["Countrywide"]
[]
[]
["REGION&MUNICIPALITY"]
["Tbilisi"]
["Autonomous Republic of Adjara"]
["Autonomous Republic of Abkhazia"]
["Imereti"]
["Samegrelo-Zemo Svaneti"]
["Racha-Lechkhumi-Kvemo Svaneti"]
["Guria"]
["Mtskheta-Mtianeti"]
["Kakheti"]
["Kvemo Kartli"]
["Shida Kartli"]
["Samtskhe-Javakheti"]